NUMERO_MANDATO;RIGA_MANDATO;QUIET;IMPORTO_RIGA;IMPORTO_MANDATO;BENEFICIARIO;CIG;TITOLO_PAGAMENTO;DATA_MANDATO;CAPITOLO;ARTICOLO;NUMERO_IMPEGNO;TITOLO;DESCR_TITOLO;LIVELLO_II;DESCR_LIVELLO_II;LIVELLO_III;DESCR_LIVELLO_III;LIVELLO_IV;DESCR_LIVELLO_IV;LIVELLO_V;DESCR_LIVELLO_V;DATA_PAG_EFF
1153;1;9999999;10,86;260,02;ENEL ENERGIA SPA;9118031536;SALDO Fatt.n. 004308282434  del 07/03/2023 FEBBRAIO 2023 - CONSUMI IMMOBILE COMUNALE VIA OLIMPIA SMS;03/04/2023;134;30;212;1;Spese correnti;3;Acquisto di beni e servizi;2;Acquisto di servizi;5;Utenze e canoni;4;Energia elettrica;05/04/2023
1153;2;9999999;46,15;260,02;ENEL ENERGIA SPA;9118031536;SALDO Fatt.n. 004308282431  del 07/03/2023 FEBBRAIO 2023 - CONSUMI ALLOGGIO DON GALLERANI CALTANA;03/04/2023;134;30;212;1;Spese correnti;3;Acquisto di beni e servizi;2;Acquisto di servizi;5;Utenze e canoni;4;Energia elettrica;05/04/2023
1153;3;9999999;50,96;260,02;ENEL ENERGIA SPA;9118031536;SALDO Fatt.n. 004308282415  del 07/03/2023 FEBBRAIO 2023 - CONSUMI MERCATO CALTANA;03/04/2023;134;30;212;1;Spese correnti;3;Acquisto di beni e servizi;2;Acquisto di servizi;5;Utenze e canoni;4;Energia elettrica;05/04/2023
1153;4;9999999;62,33;260,02;ENEL ENERGIA SPA;9118031536;SALDO Fatt.n. 004308282432  del 07/03/2023 FEBBRAIO 2023 - CONSUMI MERCATO SMS;03/04/2023;134;30;212;1;Spese correnti;3;Acquisto di beni e servizi;2;Acquisto di servizi;5;Utenze e canoni;4;Energia elettrica;05/04/2023
1153;5;9999999;89,72;260,02;ENEL ENERGIA SPA;9118031536;SALDO Fatt.n. 004308282428  del 07/03/2023 FEBBRAIO 2023 - CONSUMI MERCATO CASELLE;03/04/2023;134;30;212;1;Spese correnti;3;Acquisto di beni e servizi;2;Acquisto di servizi;5;Utenze e canoni;4;Energia elettrica;05/04/2023
1154;1;9999999;44,12;44,12;ENEL ENERGIA SPA;9118031536;SALDO Fatt.n. 004308282419  del 07/03/2023 FEBBRAIO 2023 - CONSUMI CIMITERO STIGLIANO - LAMPADE VOTIVE;03/04/2023;134;30;212;1;Spese correnti;3;Acquisto di beni e servizi;2;Acquisto di servizi;5;Utenze e canoni;4;Energia elettrica;05/04/2023
1155;1;9999999;135,86;135,86;ENEL ENERGIA SPA;9118031536;ACCONTO Fatt.n. 004311643867  del 10/03/2023 FEBBRAIO 2023 - CONSUMI VILLA FARSETTI;03/04/2023;134;30;212;1;Spese correnti;3;Acquisto di beni e servizi;2;Acquisto di servizi;5;Utenze e canoni;4;Energia elettrica;05/04/2023
1156;1;9999999;33,38;409,29;ENEL ENERGIA SPA;9118031536;SALDO Fatt.n. 004309046416  del 08/03/2023 FEBBRAIO 2023 - CONSUMI PARCHEGGIO SMS;03/04/2023;134;31;213;1;Spese correnti;3;Acquisto di beni e servizi;2;Acquisto di servizi;5;Utenze e canoni;4;Energia elettrica;05/04/2023
1156;2;9999999;45,08;409,29;ENEL ENERGIA SPA;9118031536;SALDO Fatt.n. 004309663930  del 09/03/2023 FEBBRAIO 2023 - CONSUMI PARCHEGGIO C.C. PRISMA CASELLE;03/04/2023;134;31;213;1;Spese correnti;3;Acquisto di beni e servizi;2;Acquisto di servizi;5;Utenze e canoni;4;Energia elettrica;05/04/2023
1156;3;9999999;48,76;409,29;ENEL ENERGIA SPA;9118031536;SALDO Fatt.n. 004309046411  del 08/03/2023 FEBBRAIO 2023 - CONSUMI FONTANA VETERNIGO;03/04/2023;134;31;213;1;Spese correnti;3;Acquisto di beni e servizi;2;Acquisto di servizi;5;Utenze e canoni;4;Energia elettrica;05/04/2023
1156;4;9999999;98,89;409,29;ENEL ENERGIA SPA;9118031536;SALDO Fatt.n. 004313250610  del 11/03/2023 FEBBRAIO 2023 - CONSUMI PARCHEGGIO OVALE SMS;03/04/2023;134;31;213;1;Spese correnti;3;Acquisto di beni e servizi;2;Acquisto di servizi;5;Utenze e canoni;4;Energia elettrica;05/04/2023
1156;5;9999999;183,18;409,29;ENEL ENERGIA SPA;9118031536;SALDO Fatt.n. 004317294498  del 21/03/2023 FEBBRAIO 2023 - CONSUMI PIAZZA S.D.A. CALTANA;03/04/2023;134;31;213;1;Spese correnti;3;Acquisto di beni e servizi;2;Acquisto di servizi;5;Utenze e canoni;4;Energia elettrica;05/04/2023
1157;1;9999999;1.772,28;1.772,28;ENEL ENERGIA SPA;9118031536;SALDO Fatt.n. 004309663928  del 09/03/2023 FEBBRAIO 2023 - CONSUMI SEDE MUNICIPALE;03/04/2023;134;31;213;1;Spese correnti;3;Acquisto di beni e servizi;2;Acquisto di servizi;5;Utenze e canoni;4;Energia elettrica;05/04/2023
1158;1;9999999;37;37;ENEL ENERGIA SPA;9118031536;ACCONTO Fatt.n. 004308282422  del 07/03/2023 FEBBRAIO 2023 - CONSUMI CIMITERO VETERNIGO - LAMPADE VOTIVE;03/04/2023;134;31;213;1;Spese correnti;3;Acquisto di beni e servizi;2;Acquisto di servizi;5;Utenze e canoni;4;Energia elettrica;05/04/2023
1159;1;9999999;3,99;3,99;ENEL ENERGIA SPA;9118031536;SALDO Fatt.n. 004308282422  del 07/03/2023 FEBBRAIO 2023 - CONSUMI CIMITERO VETERNIGO - LAMPADE VOTIVE;03/04/2023;134;31;213;1;Spese correnti;3;Acquisto di beni e servizi;2;Acquisto di servizi;5;Utenze e canoni;4;Energia elettrica;05/04/2023
1160;1;9999999;133;133;ENEL ENERGIA SPA;9118031536;ACCONTO Fatt.n. 004308282429  del 07/03/2023 FEBBRAIO 2023 - CONSUMI CIMITERO CALTANA - LAMPADE VOTIVE;03/04/2023;134;31;213;1;Spese correnti;3;Acquisto di beni e servizi;2;Acquisto di servizi;5;Utenze e canoni;4;Energia elettrica;05/04/2023
1161;1;9999999;18,98;18,98;ENEL ENERGIA SPA;9118031536;SALDO Fatt.n. 004308282429  del 07/03/2023 FEBBRAIO 2023 - CONSUMI CIMITERO CALTANA - LAMPADE VOTIVE;03/04/2023;134;31;213;1;Spese correnti;3;Acquisto di beni e servizi;2;Acquisto di servizi;5;Utenze e canoni;4;Energia elettrica;05/04/2023
1162;1;9999999;67;67;ENEL ENERGIA SPA;9118031536;ACCONTO Fatt.n. 004308282427  del 07/03/2023 FEBBRAIO 2023 - CONSUMI CIMITERO CASELLE - LAMPADE VOTIVE;03/04/2023;134;31;213;1;Spese correnti;3;Acquisto di beni e servizi;2;Acquisto di servizi;5;Utenze e canoni;4;Energia elettrica;05/04/2023
1163;1;9999999;8,32;8,32;ENEL ENERGIA SPA;9118031536;SALDO Fatt.n. 004308282427  del 07/03/2023 FEBBRAIO 2023 - CONSUMI CIMITERO CASELLE - LAMPADE VOTIVE;03/04/2023;134;31;213;1;Spese correnti;3;Acquisto di beni e servizi;2;Acquisto di servizi;5;Utenze e canoni;4;Energia elettrica;05/04/2023
1164;1;9999999;40;40;ENEL ENERGIA SPA;9118031536;ACCONTO Fatt.n. 004309046415  del 08/03/2023 FEBBRAIO 2023 - CONSUMI CIMITERO S.ANGELO - LAMPADE VOTIVE;03/04/2023;134;31;213;1;Spese correnti;3;Acquisto di beni e servizi;2;Acquisto di servizi;5;Utenze e canoni;4;Energia elettrica;05/04/2023
1165;1;9999999;4,77;4,77;ENEL ENERGIA SPA;9118031536;SALDO Fatt.n. 004309046415  del 08/03/2023 FEBBRAIO 2023 - CONSUMI CIMITERO S.ANGELO - LAMPADE VOTIVE;03/04/2023;134;31;213;1;Spese correnti;3;Acquisto di beni e servizi;2;Acquisto di servizi;5;Utenze e canoni;4;Energia elettrica;05/04/2023
1166;1;9999999;57;57;ENEL ENERGIA SPA;9118031536;ACCONTO Fatt.n. 004309663929  del 09/03/2023 FEBBRAIO 2023 - CONSUMI CIMITERO SMS - LAMPADE VOTIVE;03/04/2023;134;31;213;1;Spese correnti;3;Acquisto di beni e servizi;2;Acquisto di servizi;5;Utenze e canoni;4;Energia elettrica;05/04/2023
1167;1;9999999;6,22;6,22;ENEL ENERGIA SPA;9118031536;SALDO Fatt.n. 004309663929  del 09/03/2023 FEBBRAIO 2023 - CONSUMI CIMITERO SMS - LAMPADE VOTIVE;03/04/2023;134;31;213;1;Spese correnti;3;Acquisto di beni e servizi;2;Acquisto di servizi;5;Utenze e canoni;4;Energia elettrica;05/04/2023
1168;1;9999999;681,16;5.159,71;ENEL ENERGIA SPA;9118031536;SALDO Fatt.n. 004309046413  del 08/03/2023 FEBBRAIO 2023 - CONSUMI SC. ELEM. CALTANA;03/04/2023;1334;30;214;1;Spese correnti;3;Acquisto di beni e servizi;2;Acquisto di servizi;5;Utenze e canoni;4;Energia elettrica;05/04/2023
1168;2;9999999;702,93;5.159,71;ENEL ENERGIA SPA;9118031536;SALDO Fatt.n. 004315412726  del 13/03/2023 FEBBRAIO 2023 - CONSUMI SC. ELEM. CASELLE;03/04/2023;1334;30;214;1;Spese correnti;3;Acquisto di beni e servizi;2;Acquisto di servizi;5;Utenze e canoni;4;Energia elettrica;05/04/2023
1168;3;9999999;3.775,62;5.159,71;ENEL ENERGIA SPA;9118031536;SALDO Fatt.n. 004308282417  del 07/03/2023 FEBBRAIO 2023 - CONSUMI  SC.ELEM - SC. MEDIA SMS;03/04/2023;1334;30;214;1;Spese correnti;3;Acquisto di beni e servizi;2;Acquisto di servizi;5;Utenze e canoni;4;Energia elettrica;05/04/2023
1169;1;9999999;337,77;337,77;ENEL ENERGIA SPA;9118031536;ACCONTO Fatt.n. 004308282423  del 07/03/2023 FEBBRAIO 2023 - CONSUMI PALESTRA SMS;03/04/2023;1334;30;214;1;Spese correnti;3;Acquisto di beni e servizi;2;Acquisto di servizi;5;Utenze e canoni;4;Energia elettrica;05/04/2023
1170;1;9999999;556;556;ENEL ENERGIA SPA;9118031536;ACCONTO Fatt.n. 004308282426  del 07/03/2023 FEBBRAIO 2023 - CONSUMI SC. ELEM - PALESTRA - ASILO S.ANGELO;03/04/2023;1334;30;214;1;Spese correnti;3;Acquisto di beni e servizi;2;Acquisto di servizi;5;Utenze e canoni;4;Energia elettrica;05/04/2023
1171;1;9999999;1.666,40;1.666,40;ENEL ENERGIA SPA;9118031536;ACCONTO Fatt.n. 004308282426  del 07/03/2023 FEBBRAIO 2023 - CONSUMI SC. ELEM - PALESTRA - ASILO S.ANGELO;03/04/2023;1334;30;214;1;Spese correnti;3;Acquisto di beni e servizi;2;Acquisto di servizi;5;Utenze e canoni;4;Energia elettrica;05/04/2023
1172;1;9999999;336;336;ENEL ENERGIA SPA;9118031536;ACCONTO Fatt.n. 004308282420  del 07/03/2023 FEBBRAIO 2023 - CONSUMI SC. ELEM - PALESTRA STIGLIANO;03/04/2023;1334;30;214;1;Spese correnti;3;Acquisto di beni e servizi;2;Acquisto di servizi;5;Utenze e canoni;4;Energia elettrica;05/04/2023
1173;1;9999999;359,47;359,47;ENEL ENERGIA SPA;9118031536;ACCONTO Fatt.n. 004308282420  del 07/03/2023 FEBBRAIO 2023 - CONSUMI SC. ELEM - PALESTRA STIGLIANO;03/04/2023;1334;30;214;1;Spese correnti;3;Acquisto di beni e servizi;2;Acquisto di servizi;5;Utenze e canoni;4;Energia elettrica;05/04/2023
1174;1;9999999;156,73;156,73;ENEL ENERGIA SPA;9118031536;ACCONTO Fatt.n. 004309046412  del 08/03/2023 FEBBRAIO 2023 - CONSUMI PALESTRA CASELLE;03/04/2023;1334;30;214;1;Spese correnti;3;Acquisto di beni e servizi;2;Acquisto di servizi;5;Utenze e canoni;4;Energia elettrica;05/04/2023
1175;1;9999999;644,13;644,13;ENEL ENERGIA SPA;9118031536;ACCONTO Fatt.n. 004309046410  del 08/03/2023 FEBBRAIO 2023 - CONSUMI PALESTRA CALTANA;03/04/2023;1334;30;331;1;Spese correnti;3;Acquisto di beni e servizi;2;Acquisto di servizi;5;Utenze e canoni;4;Energia elettrica;05/04/2023
1176;1;9999999;444;444;ENEL ENERGIA SPA;9118031536;ACCONTO Fatt.n. 004311643868  del 10/03/2023 FEBBRAIO 2023 - CONSUMI SC. ELEM - PALESTRA VETERNIGO;03/04/2023;1334;30;331;1;Spese correnti;3;Acquisto di beni e servizi;2;Acquisto di servizi;5;Utenze e canoni;4;Energia elettrica;05/04/2023
1177;1;9999999;727,15;727,15;ENEL ENERGIA SPA;9118031536;ACCONTO Fatt.n. 004311643868  del 10/03/2023 FEBBRAIO 2023 - CONSUMI SC. ELEM - PALESTRA VETERNIGO;03/04/2023;1334;30;331;1;Spese correnti;3;Acquisto di beni e servizi;2;Acquisto di servizi;5;Utenze e canoni;4;Energia elettrica;05/04/2023
1178;1;9999999;596,71;596,71;ENEL ENERGIA SPA;9118031536;SALDO Fatt.n. 004311643866  del 10/03/2023 FEBBRAIO 2023 - CONSUMI VILLA FARSETTI;03/04/2023;1834;0;215;1;Spese correnti;3;Acquisto di beni e servizi;2;Acquisto di servizi;5;Utenze e canoni;4;Energia elettrica;05/04/2023
1179;1;9999999;3,29;3,29;ENEL ENERGIA SPA;9118031536;ACCONTO Fatt.n. 004311643867  del 10/03/2023 FEBBRAIO 2023 - CONSUMI VILLA FARSETTI;03/04/2023;1834;0;215;1;Spese correnti;3;Acquisto di beni e servizi;2;Acquisto di servizi;5;Utenze e canoni;4;Energia elettrica;05/04/2023
1180;1;9999999;137,04;137,04;ENEL ENERGIA SPA;9118031536;SALDO Fatt.n. 004309046414  del 08/03/2023 FEBBRAIO 2023 - CONSUMI IMP. SPORT. SMS;03/04/2023;1934;0;216;1;Spese correnti;3;Acquisto di beni e servizi;2;Acquisto di servizi;5;Utenze e canoni;4;Energia elettrica;05/04/2023
1181;1;9999999;135,66;135,66;ENEL ENERGIA SPA;9118031536;ACCONTO Fatt.n. 004308282424  del 07/03/2023 FEBBRAIO 2023 - CONSUMI IMP. SPORT. PARROCCHIA CASELLE;03/04/2023;1934;0;216;1;Spese correnti;3;Acquisto di beni e servizi;2;Acquisto di servizi;5;Utenze e canoni;4;Energia elettrica;05/04/2023
1182;1;9999999;56,4;56,4;ENEL ENERGIA SPA;9118031536;SALDO Fatt.n. 004308282424  del 07/03/2023 FEBBRAIO 2023 - CONSUMI IMP. SPORT. PARROCCHIA CASELLE;03/04/2023;1934;0;333;1;Spese correnti;3;Acquisto di beni e servizi;2;Acquisto di servizi;5;Utenze e canoni;4;Energia elettrica;05/04/2023
1183;1;9999999;87,93;87,93;ENEL ENERGIA SPA;9118031536;SALDO Fatt.n. 004308282433  del 07/03/2023 FEBBRAIO 2023 - CONSUMI CALCETTO CASELLE;03/04/2023;1934;0;333;1;Spese correnti;3;Acquisto di beni e servizi;2;Acquisto di servizi;5;Utenze e canoni;4;Energia elettrica;05/04/2023
1184;1;9999999;337,77;337,77;ENEL ENERGIA SPA;9118031536;SALDO Fatt.n. 004308282423  del 07/03/2023 FEBBRAIO 2023 - CONSUMI PALESTRA SMS;03/04/2023;1934;0;333;1;Spese correnti;3;Acquisto di beni e servizi;2;Acquisto di servizi;5;Utenze e canoni;4;Energia elettrica;05/04/2023
1185;1;9999999;556;556;ENEL ENERGIA SPA;9118031536;SALDO Fatt.n. 004308282426  del 07/03/2023 FEBBRAIO 2023 - CONSUMI SC. ELEM - PALESTRA - ASILO S.ANGELO;03/04/2023;1934;0;333;1;Spese correnti;3;Acquisto di beni e servizi;2;Acquisto di servizi;5;Utenze e canoni;4;Energia elettrica;05/04/2023
1186;1;9999999;502;502;ENEL ENERGIA SPA;9118031536;SALDO Fatt.n. 004308282420  del 07/03/2023 FEBBRAIO 2023 - CONSUMI SC. ELEM - PALESTRA STIGLIANO;03/04/2023;1934;0;333;1;Spese correnti;3;Acquisto di beni e servizi;2;Acquisto di servizi;5;Utenze e canoni;4;Energia elettrica;05/04/2023
1187;1;9999999;644,14;644,14;ENEL ENERGIA SPA;9118031536;SALDO Fatt.n. 004309046410  del 08/03/2023 FEBBRAIO 2023 - CONSUMI PALESTRA CALTANA;03/04/2023;1934;0;333;1;Spese correnti;3;Acquisto di beni e servizi;2;Acquisto di servizi;5;Utenze e canoni;4;Energia elettrica;05/04/2023
1188;1;9999999;156,74;156,74;ENEL ENERGIA SPA;9118031536;SALDO Fatt.n. 004309046412  del 08/03/2023 FEBBRAIO 2023 - CONSUMI PALESTRA CASELLE;03/04/2023;1934;0;333;1;Spese correnti;3;Acquisto di beni e servizi;2;Acquisto di servizi;5;Utenze e canoni;4;Energia elettrica;05/04/2023
1189;1;9999999;444;444;ENEL ENERGIA SPA;9118031536;SALDO Fatt.n. 004311643868  del 10/03/2023 FEBBRAIO 2023 - CONSUMI SC. ELEM - PALESTRA VETERNIGO;03/04/2023;1934;0;333;1;Spese correnti;3;Acquisto di beni e servizi;2;Acquisto di servizi;5;Utenze e canoni;4;Energia elettrica;05/04/2023
1190;1;9999999;374,52;374,52;ENEL ENERGIA SPA;9118031536;ACCONTO Fatt.n. 004311643867  del 10/03/2023 FEBBRAIO 2023 - CONSUMI VILLA FARSETTI;03/04/2023;2734;0;217;1;Spese correnti;3;Acquisto di beni e servizi;2;Acquisto di servizi;5;Utenze e canoni;4;Energia elettrica;05/04/2023
1191;1;9999999;20,97;20,97;ENEL ENERGIA SPA;9118031536;SALDO Fatt.n. 004313250611  del 11/03/2023 FEBBRAIO 2023 - CONSUMI ECOCENTRO COMUNALE;03/04/2023;3534;0;218;1;Spese correnti;3;Acquisto di beni e servizi;2;Acquisto di servizi;5;Utenze e canoni;4;Energia elettrica;05/04/2023
1192;1;9999999;394,73;394,73;ENEL ENERGIA SPA;9118031536;SALDO Fatt.n. 004317294499  del 21/03/2023 FEBBRAIO 2023 - CONSUMI MAGAZZINO COMUNALE;03/04/2023;3534;0;218;1;Spese correnti;3;Acquisto di beni e servizi;2;Acquisto di servizi;5;Utenze e canoni;4;Energia elettrica;05/04/2023
1193;1;9999999;13.860,47;13.860,47;ENEL ENERGIA SPA;9118031536;ACCONTO Fatt.n. 004316493321  del 13/03/2023 FEBBRAIO 2023 - CONSUMI ILLUMINAZIONE PUBBLICA;03/04/2023;3544;0;220;1;Spese correnti;3;Acquisto di beni e servizi;2;Acquisto di servizi;15;Contratti di servizio pubblico;15;Contratti di servizio per l'illuminazione pubblica;05/04/2023
1194;1;9999999;4.431,56;4.431,56;ENEL ENERGIA SPA;9118031536;SALDO Fatt.n. 004316493321  del 13/03/2023 FEBBRAIO 2023 - CONSUMI ILLUMINAZIONE PUBBLICA;03/04/2023;3544;0;336;1;Spese correnti;3;Acquisto di beni e servizi;2;Acquisto di servizi;15;Contratti di servizio pubblico;15;Contratti di servizio per l'illuminazione pubblica;05/04/2023
1195;1;9999999;9,27;390,49;ENEL ENERGIA SPA;9118031536;SALDO Fatt.n. 004308282418  del 07/03/2023 FEBBRAIO 2023 - CONSUMI ILLUMINAZIONE PUBBLICA;03/04/2023;3544;0;336;1;Spese correnti;3;Acquisto di beni e servizi;2;Acquisto di servizi;15;Contratti di servizio pubblico;15;Contratti di servizio per l'illuminazione pubblica;05/04/2023
1195;2;9999999;10,86;390,49;ENEL ENERGIA SPA;9118031536;SALDO Fatt.n. 004313250612  del 11/03/2023 FEBBRAIO 2023 - CONSUMI ILLUMINAZIONE PUBBLICA;03/04/2023;3544;0;336;1;Spese correnti;3;Acquisto di beni e servizi;2;Acquisto di servizi;15;Contratti di servizio pubblico;15;Contratti di servizio per l'illuminazione pubblica;05/04/2023
1195;3;9999999;13,54;390,49;ENEL ENERGIA SPA;9118031536;SALDO Fatt.n. 004308282416  del 07/03/2023 FEBBRAIO 2023 - CONSUMI ILLUMINAZIONE PUBBLICA;03/04/2023;3544;0;336;1;Spese correnti;3;Acquisto di beni e servizi;2;Acquisto di servizi;15;Contratti di servizio pubblico;15;Contratti di servizio per l'illuminazione pubblica;05/04/2023
1195;4;9999999;51,91;390,49;ENEL ENERGIA SPA;9118031536;SALDO Fatt.n. 004308282430  del 07/03/2023 FEBBRAIO 2023 - CONSUMI ILLUMINAZIONE PUBBLICA;03/04/2023;3544;0;336;1;Spese correnti;3;Acquisto di beni e servizi;2;Acquisto di servizi;15;Contratti di servizio pubblico;15;Contratti di servizio per l'illuminazione pubblica;05/04/2023
1195;5;9999999;77,98;390,49;ENEL ENERGIA SPA;9118031536;SALDO Fatt.n. 004308282425  del 07/03/2023 FEBBRAIO 2023 - CONSUMI ILLUMINAZIONE PUBBLICA;03/04/2023;3544;0;336;1;Spese correnti;3;Acquisto di beni e servizi;2;Acquisto di servizi;15;Contratti di servizio pubblico;15;Contratti di servizio per l'illuminazione pubblica;05/04/2023
1195;6;9999999;107,93;390,49;ENEL ENERGIA SPA;9118031536;SALDO Fatt.n. 004308282421  del 07/03/2023 FEBBRAIO 2023 - CONSUMI ILLUMINAZIONE PUBBLICA;03/04/2023;3544;0;336;1;Spese correnti;3;Acquisto di beni e servizi;2;Acquisto di servizi;15;Contratti di servizio pubblico;15;Contratti di servizio per l'illuminazione pubblica;05/04/2023
1195;7;9999999;119;390,49;ENEL ENERGIA SPA;9118031536;SALDO Fatt.n. 004315412725  del 13/03/2023 FEBBRAIO 2023 - CONSUMI ILLUMINAZIONE PUBBLICA;03/04/2023;3544;0;336;1;Spese correnti;3;Acquisto di beni e servizi;2;Acquisto di servizi;15;Contratti di servizio pubblico;15;Contratti di servizio per l'illuminazione pubblica;05/04/2023
1196;1;9999999;42,42;14.205,82;ENEL ENERGIA SPA;9118031536;SALDO Fatt.n. 004308282435  del 07/03/2023 FEBBRAIO 2023 - CONSUMI ILLUMINAZIONE PUBBLICA;03/04/2023;3544;0;336;1;Spese correnti;3;Acquisto di beni e servizi;2;Acquisto di servizi;15;Contratti di servizio pubblico;15;Contratti di servizio per l'illuminazione pubblica;05/04/2023
1196;2;9999999;561,03;14.205,82;ENEL ENERGIA SPA;9118031536;SALDO Fatt.n. 004317361181  del 22/03/2023 FEBBRAIO 2023 - CONSUMI ILLUMINAZIONE PUBBLICA;03/04/2023;3544;0;336;1;Spese correnti;3;Acquisto di beni e servizi;2;Acquisto di servizi;15;Contratti di servizio pubblico;15;Contratti di servizio per l'illuminazione pubblica;05/04/2023
1196;3;9999999;956,41;14.205,82;ENEL ENERGIA SPA;9118031536;SALDO Fatt.n. 004317361180  del 22/03/2023 FEBBRAIO 2023 - CONSUMI ILLUMINAZIONE PUBBLICA;03/04/2023;3544;0;336;1;Spese correnti;3;Acquisto di beni e servizi;2;Acquisto di servizi;15;Contratti di servizio pubblico;15;Contratti di servizio per l'illuminazione pubblica;05/04/2023
1196;4;9999999;12.645,96;14.205,82;ENEL ENERGIA SPA;9118031536;SALDO Fatt.n. 004316493322  del 13/03/2023 FEBBRAIO 2023 - CONSUMI ILLUMINAZIONE PUBBLICA;03/04/2023;3544;0;336;1;Spese correnti;3;Acquisto di beni e servizi;2;Acquisto di servizi;15;Contratti di servizio pubblico;15;Contratti di servizio per l'illuminazione pubblica;05/04/2023
1197;1;9999999;800;800;ENEL ENERGIA SPA;9118031536;SALDO Fatt.n. 004311643867  del 10/03/2023 FEBBRAIO 2023 - CONSUMI VILLA FARSETTI;03/04/2023;4234;0;221;1;Spese correnti;3;Acquisto di beni e servizi;2;Acquisto di servizi;5;Utenze e canoni;4;Energia elettrica;05/04/2023
1198;1;9999999;12.402,52;12.402,52;STUDIO LEGALE DOMENICHELLI E ASSOCIATI;Z7B39EA44F;SALDO Fatt.n. 86/2023/EL  del 14/03/2023 PRATICA CASCIARO MIRELLA COSTITUZIONE NEL GIUDIZIO DI CASSAZIONE R.G. 3161-2023.;03/04/2023;40;0;123;1;Spese correnti;3;Acquisto di beni e servizi;2;Acquisto di servizi;11;Prestazioni professionali e specialistiche;6;Patrocinio legale;05/04/2023
1199;1;9999999;3.283,02;3.283,02;ROMEO MARIAGRAZIA;Z2F3A45564;SALDO Fatt.n. 2023/VE1/9  del 10/03/2023 ASSISTENZA NEL RICORSO AVANTI IL TAR VENETO - NRG 207-2023;03/04/2023;540;0;266;1;Spese correnti;3;Acquisto di beni e servizi;2;Acquisto di servizi;11;Prestazioni professionali e specialistiche;6;Patrocinio legale;05/04/2023
1200;1;9999999;113,55;113,55;BACCHIN CRISTIAN; ;riproposizione mandato CONTRIBUTO REGIONALE BUONO-LIBRI E CONTENUTI DIDATTICI ALTERNATIVI ANNO SCOLASTICO FORMATIVO 2022/2023.;03/04/2023;1357;50;228;1;Spese correnti;4;Trasferimenti correnti;2;Trasferimenti correnti a Famiglie;5;Altri trasferimenti a famiglie;999;Altri trasferimenti a famiglie n.a.c.;05/04/2023
1201;1;9999999;187,41;187,41;SETTIMO EDERA; ;riproposizione mandato CONTRIBUTO REGIONALE BUONO-LIBRI E CONTENUTI DIDATTICI ALTERNATIVI ANNO SCOLASTICO FORMATIVO 2022/2023.;03/04/2023;1357;50;228;1;Spese correnti;4;Trasferimenti correnti;2;Trasferimenti correnti a Famiglie;5;Altri trasferimenti a famiglie;999;Altri trasferimenti a famiglie n.a.c.;06/04/2023
1202;1;9999999;150;150;OMESSO NOMINATIVO NEL RISPETTO DELLA NORMATIVA SULLA PROTEZIONE DATI PERSONALI; ;APRILE 2023 -  AFFIDAMENTO FAMILIARE;04/04/2023;3757;50;619;1;Spese correnti;4;Trasferimenti correnti;2;Trasferimenti correnti a Famiglie;2;Interventi assistenziali;999;Altri assegni e sussidi assistenziali;07/04/2023
1207;1;9999999;1.220,00;1.220,00;BIT4ID;Z6D396BFB6;SALDO Fatt.n. 23000276  del 21/02/2023 ATTIVAZIONE SERVIZIO DI RILASCIO FIRME DIGITALI AD USO INTERNO;04/04/2023;748;0;22;1;Spese correnti;3;Acquisto di beni e servizi;2;Acquisto di servizi;19;Servizi informatici e di telecomunicazioni;7;Servizi di gestione documentale;07/04/2023
1208;1;9999999;972,34;972,34;DISMA SAS DI ANGELO RIGO & C.;Z3439735B1;SALDO Fatt.n. 018/2023  del 28/02/2023 SERVIZIO INFORMA GIOVANI FEBBRAIO 2023;04/04/2023;2049;0;47;1;Spese correnti;3;Acquisto di beni e servizi;2;Acquisto di servizi;99;Altri servizi;999;Altri servizi diversi n.a.c.;07/04/2023
1209;1;9999999;225,7;225,7;FAGGIONATO ROBERTO;ZD63A40000;SALDO Fatt.n. FPA 155/23  del 13/03/2023 FORNITURA N. 8 BANDIERE ISTITUZIONALI ITALIA-EUROPA-VENETO MISURE 200X300 E 150X225 CM;04/04/2023;521;6;242;1;Spese correnti;3;Acquisto di beni e servizi;1;Acquisto di beni;2;Altri beni di consumo;999;Altri beni e materiali di consumo n.a.c.;07/04/2023
1210;1;9999999;784,9;784,9;KYOCERA DOCUMENT SOLUTIONS ITALIA SPA;ZB93086395;SALDO Fatt.n. 1010825042  del 17/03/2023 FOTOCOPIATRICI 32 - LOTTO 5 - 60 MESI - CANONE PERIODO DAL 13.12.2022 AL 12.03.2023;04/04/2023;748;0;106;1;Spese correnti;3;Acquisto di beni e servizi;2;Acquisto di servizi;19;Servizi informatici e di telecomunicazioni;7;Servizi di gestione documentale;07/04/2023
1211;1;9999999;270,41;270,41;KYOCERA DOCUMENT SOLUTIONS ITALIA SPA;Z202CF11D4;SALDO Fatt.n. 1010825041  del 17/03/2023 FOTOCOPIATRICI 31 - LOTTO 3 - 60 MESI CANONE DAL 18/12/2022 AL 17/03/2023;04/04/2023;748;0;450;1;Spese correnti;3;Acquisto di beni e servizi;2;Acquisto di servizi;19;Servizi informatici e di telecomunicazioni;9;Servizi per le postazioni di lavoro e relativa manutenzione;07/04/2023
1212;1;9999999;29,88;29,88;SIAE; ;SALDO Fatt.n. 1623008515  del 24/03/2023 DIRITTI AMMNINISTRATIVI DI PROCEDURA PER PROIEZIONE FILM - GLI ORSI NON ESISTONO -;04/04/2023;1831;0;338;1;Spese correnti;3;Acquisto di beni e servizi;2;Acquisto di servizi;2;Organizzazione eventi, pubblicita` e servizi per trasferta;999;Altre spese per relazioni pubbliche, convegni e mostre, pubblicita` n.a.c;07/04/2023
1213;1;9999999;173,65;173,65;MUFFATO CLAUDIO;Z3339B74C3;SALDO Fatt.n. 55  del 13/03/2023 RIPARAZIONE IDROPULITRICE;04/04/2023;2538;0;83;1;Spese correnti;3;Acquisto di beni e servizi;2;Acquisto di servizi;9;Manutenzione ordinaria e riparazioni;5;Manutenzione ordinaria e riparazioni di attrezzature;07/04/2023
1214;1;9999999;414,8;414,8;P. & G. AUTOSERVICE SNC;ZF939EBF68;SALDO Fatt.n. 2/PA  del 13/03/2023 SOSTITUZIONE PNEUMATICI MEZZO YA027AG;04/04/2023;3538;0;134;1;Spese correnti;3;Acquisto di beni e servizi;2;Acquisto di servizi;9;Manutenzione ordinaria e riparazioni;1;Manutenzione ordinaria e riparazioni di mezzi di trasporto ad uso civile, di sicurezza e ordine pubblico;07/04/2023
1215;1;9999999;305;305;DUE BI DI BERTOLDO COSTANTINO E PAOLO SNC;Z9239CB678;SALDO Fatt.n. 2Bis  del 10/03/2023 SERVIZIO DI LAVAGGIO E SANIFICAZIONE PARCO MEZZI COMUNALI;04/04/2023;3542;0;94;1;Spese correnti;3;Acquisto di beni e servizi;2;Acquisto di servizi;13;Servizi ausiliari per il funzionamento dell'ente;2;Servizi di pulizia e lavanderia;07/04/2023
1216;1;9999999;210;210;KAIROS SRL;Z1E39C2F46;SALDO Fatt.n. 48/PA  del 15/03/2023 PARTECIPAZIONE IN DATA 10-02-2023  SEMINARIO - LE AUTORIZZAZIONI PAESAGGISTICHE DIPENDENTI U.T. B.A. - B.G. -  B.F.;04/04/2023;833;0;89;1;Spese correnti;3;Acquisto di beni e servizi;2;Acquisto di servizi;4;Acquisto di servizi per formazione e addestramento del personale dell'ente;4;Acquisto di servizi per formazione obbligatoria;07/04/2023
1217;1;9999999;305;305;ACADEMY TWO SRL;ZD93A69B87;SALDO Fatt.n. 11/2023/P.A.  del 22/03/2023 NOLEGGIO PER PROGRAMMAZIONE FILM - GLI ORSI NON ESISTONO -;04/04/2023;1831;0;322;1;Spese correnti;3;Acquisto di beni e servizi;2;Acquisto di servizi;2;Organizzazione eventi, pubblicita` e servizi per trasferta;999;Altre spese per relazioni pubbliche, convegni e mostre, pubblicita` n.a.c;07/04/2023
1218;1;9999999;2.684,00;2.684,00;REGGIANI CONSULTING SRL;Z5D3994864;SALDO Fatt.n. 20230212  del 09/03/2023 ATTIVITA DI CONSULENZA PER REDAZIONE DPIA;04/04/2023;40;0;58;1;Spese correnti;3;Acquisto di beni e servizi;2;Acquisto di servizi;11;Prestazioni professionali e specialistiche;999;Altre prestazioni professionali e specialistiche n.a.c.;07/04/2023
1219;1;9999999;388,31;9.122,69;ABACO S.P.A.;766214493F;SALDO Fatt.n. 2023120001091  del 08/03/2023 AGGIO RISCOSSIONE OCCUPAZIONE SUOLO PUBBLICO  RENDICONTO DELLA GESTIONE AL 28/02/2023 CIG. 766214493F;04/04/2023;332;0;1228;1;Spese correnti;3;Acquisto di beni e servizi;2;Acquisto di servizi;3;Aggi di riscossione;999;Altri aggi di riscossione n.a.c.;07/04/2023
1219;2;9999999;8.734,38;9.122,69;ABACO S.P.A.;766214493F;SALDO Fatt.n. 2023120001092  del 08/03/2023 AGGIO RISCOSSIONE ESPOSIZIONI PUBBLICITARIE RENDICONTO DELLA GESTIONE DAL 01/02/2023 A 28/02/2023 CIG. 766214493F;04/04/2023;332;0;1228;1;Spese correnti;3;Acquisto di beni e servizi;2;Acquisto di servizi;3;Aggi di riscossione;999;Altri aggi di riscossione n.a.c.;07/04/2023
1220;1;9999999;32.839,13;32.839,13;UNICREDIT LEASING SPA;202734562;SALDO Fatt.n. 2023/24/0000115  del 02/03/2023 N. 56 CANONE DI LEASING IMMOBILIARE  CONTRATTO N. IC01217653;04/04/2023;1337;0;177;1;Spese correnti;3;Acquisto di beni e servizi;2;Acquisto di servizi;8;Leasing operativo;999;Leasing operativo di altri beni;07/04/2023
1221;1;9999999;14.000,00;14.000,00;CONSORZIO ART.E.A. ALTO VICENTINO;ZF6382E697;ACCONTO Fatt.n. 50-2023  del 28/02/2023 INTERVENTI DI MANUTENZIONE ORDINARIA DEGLI IMPIANTI TECNOLOGICI NEI FABBRICATI COMUNALI;04/04/2023;1338;0;118;1;Spese correnti;3;Acquisto di beni e servizi;2;Acquisto di servizi;9;Manutenzione ordinaria e riparazioni;11;Manutenzione ordinaria e riparazioni di altri beni materiali;07/04/2023
1222;1;9999999;683,1;683,1;CONSORZIO ART.E.A. ALTO VICENTINO;ZF6382E697;ACCONTO Fatt.n. 50-2023  del 28/02/2023 INTERVENTI DI MANUTENZIONE ORDINARIA DEGLI IMPIANTI TECNOLOGICI NEI FABBRICATI COMUNALI;04/04/2023;1838;0;119;1;Spese correnti;3;Acquisto di beni e servizi;2;Acquisto di servizi;9;Manutenzione ordinaria e riparazioni;11;Manutenzione ordinaria e riparazioni di altri beni materiali;07/04/2023
1223;1;9999999;11.000,00;11.000,00;CONSORZIO ART.E.A. ALTO VICENTINO;ZF6382E697;SALDO Fatt.n. 50-2023  del 28/02/2023 INTERVENTI DI MANUTENZIONE ORDINARIA DEGLI IMPIANTI TECNOLOGICI NEI FABBRICATI COMUNALI;04/04/2023;1938;0;120;1;Spese correnti;3;Acquisto di beni e servizi;2;Acquisto di servizi;9;Manutenzione ordinaria e riparazioni;11;Manutenzione ordinaria e riparazioni di altri beni materiali;07/04/2023
1224;1;9999999;60.070,79;60.070,79;SINERGO SPA;9395585A03;SALDO Fatt.n. 91  del 16/03/2023 SERVIZIO DI PROGETTAZIONE DEFINITIVA ED ESECUTIVA OER LA REALIZZAZIONE DI UN NUOVO ASILO NIDO NEL CAPOLUOGO - PNRR;04/04/2023;7800;0;876;2;Spese in conto capitale;2;Investimenti fissi lordi e acquisto di terreni;3;Beni immateriali;5;Incarichi professionali per la realizzazione di investimenti;1;Incarichi professionali per la realizzazione di investimenti;07/04/2023
1225;1;9999999;10,46;10,46;A2A ENERGIA SPA;Z453A8F9C4;SALDO Fatt.n. 823000078306  del 27/03/2023 FORNITURA ENERGIA ELETTRICA FEBBRAIO 2023 IN SALVAGUARDIA ILLUMINAZIONE PUBBLICA;04/04/2023;3544;0;341;1;Spese correnti;3;Acquisto di beni e servizi;2;Acquisto di servizi;15;Contratti di servizio pubblico;15;Contratti di servizio per l'illuminazione pubblica;07/04/2023
1226;1;9999999;195,13;195,13;ENI SUSTAINABLE MOBILITY SPA;Z063967AC5;ACCONTO Fatt.n. 29178880  del 28/02/2023 FEBBRAIO 2023 - FORNITURA METANO;04/04/2023;521;0;42;1;Spese correnti;3;Acquisto di beni e servizi;1;Acquisto di beni;2;Altri beni di consumo;999;Altri beni e materiali di consumo n.a.c.;06/04/2023
1227;1;9999999;42,93;42,93;ENI SUSTAINABLE MOBILITY SPA;Z063967AC5;SALDO Fatt.n. 29178880  del 28/02/2023 FEBBRAIO 2023 - FORNITURA METANO;04/04/2023;521;0;42;1;Spese correnti;3;Acquisto di beni e servizi;1;Acquisto di beni;2;Altri beni di consumo;999;Altri beni e materiali di consumo n.a.c.;07/04/2023
1229;1;9999999;3.207,96;3.207,96;MUNGO SPA; ;LIQUIDAZIONE A DITTA MUNGO SPA RIMBORSO ASSENZE RETRIBUITE VICE SINDACO ARPI ALESSANDRO USUFRUITE NEI MESI DI GENNAIO E FEBBRAIO 2023.;05/04/2023;30;99;143;1;Spese correnti;3;Acquisto di beni e servizi;2;Acquisto di servizi;1;Organi e incarichi istituzionali dell'amministrazione;1;Organi istituzionali dell'amministrazione - Indennità;07/04/2023
1230;1;9999999;483,12;483,12;SOLUZIONI OPENSOURCE M3 SNC;Z39396C067;SALDO Fatt.n. 144  del 21/03/2023 CANONE ANNO 2023 SERVIZI CLOUD E POSTA ELETTRONICA;05/04/2023;748;0;30;1;Spese correnti;3;Acquisto di beni e servizi;2;Acquisto di servizi;19;Servizi informatici e di telecomunicazioni;5;Servizi per i sistemi e relativa manutenzione;07/04/2023
1231;1;9999999;887,76;887,76;BASSO III SRL;9219396641;SALDO Fatt.n. 38  del 21/03/2023 REALIZZAZIONE PISTA CICLO-PEDONALE S.P.30 VIA CALTANA TRATTO CIMITERO - VIA PIANIGA: INTEGRAZIONE SPESE TECNICHE, APPROVAZIONE DEL CERTIFICATO DI REGOLARE ESECUZIONE E SVINCOLO GARANZIA DEFINITIVA;05/04/2023;8563;0;1372;2;Spese in conto capitale;2;Investimenti fissi lordi e acquisto di terreni;1;Beni materiali;9;Beni immobili;12;Infrastrutture stradali;07/04/2023
1232;1;9999999;200;200;SC.MAT.MADONNA DEL ROSARIO-ASILO NIDO; ;CONTRIBUTO ECONOMICO PER LA REALIZZAZIONE DI UN ORTO DIDATTICO.;05/04/2023;1259;0;328;1;Spese correnti;4;Trasferimenti correnti;4;Trasferimenti correnti a Istituzioni Sociali Private;1;Trasferimenti correnti a Istituzioni Sociali Private;1;Trasferimenti correnti a Istituzioni Sociali Private;07/04/2023
1233;1;9999999;48,6;48,6;OMESSO NOMINATIVO NEL RISPETTO DELLA NORMATIVA SULLA PROTEZIONE DATI PERSONALI; ;Rimborso bollette;05/04/2023;31;0;101;1;Spese correnti;3;Acquisto di beni e servizi;2;Acquisto di servizi;2;Organizzazione eventi, pubblicita` e servizi per trasferta;999;Altre spese per relazioni pubbliche, convegni e mostre, pubblicita` n.a.c;07/04/2023
1234;1;9999999;177,9;177,9;OMESSO NOMINATIVO NEL RISPETTO DELLA NORMATIVA SULLA PROTEZIONE DATI PERSONALI; ;Rimborso bollette;05/04/2023;121;6;99;1;Spese correnti;3;Acquisto di beni e servizi;1;Acquisto di beni;2;Altri beni di consumo;1;Carta, cancelleria e stampati;07/04/2023
1235;1;9999999;200;200;OMESSO NOMINATIVO NEL RISPETTO DELLA NORMATIVA SULLA PROTEZIONE DATI PERSONALI; ;Rimborso bollette;05/04/2023;748;0;23;1;Spese correnti;3;Acquisto di beni e servizi;2;Acquisto di servizi;19;Servizi informatici e di telecomunicazioni;1;Gestione e manutenzione applicazioni;07/04/2023
1236;1;9999999;1.500,00;1.500,00;ASSOCIAZIONE N.O.E.T.A.A. O.D.V.; ;PRIMA RATA ANNO 2023  CONTRIBUTO PER L ATTIVITA DI PREVENZIONE E SALVAGUARDIA AMBIENTALE;07/04/2023;1159;0;351;1;Spese correnti;4;Trasferimenti correnti;4;Trasferimenti correnti a Istituzioni Sociali Private;1;Trasferimenti correnti a Istituzioni Sociali Private;1;Trasferimenti correnti a Istituzioni Sociali Private;12/04/2023
1237;1;9999999;9,17;168,91;V.E.R.I.T.A.S. SPA; ;SALDO Fatt.n. 600006828218  del 16/03/2023 PERIODO 21.07.2022-28.02.2023 - CONSUMI PIAZZA S.D.A. CALTANA;07/04/2023;134;30;230;1;Spese correnti;3;Acquisto di beni e servizi;2;Acquisto di servizi;5;Utenze e canoni;5;Acqua;12/04/2023
1237;2;9999999;11,23;168,91;V.E.R.I.T.A.S. SPA; ;SALDO Fatt.n. 600006828217  del 16/03/2023 PERIODO 28.07.2022-28.02.2023 - CONSUMI PIAZZA ACTV CALTANA;07/04/2023;134;30;230;1;Spese correnti;3;Acquisto di beni e servizi;2;Acquisto di servizi;5;Utenze e canoni;5;Acqua;12/04/2023
1237;3;9999999;47,54;168,91;V.E.R.I.T.A.S. SPA; ;SALDO Fatt.n. 600006828206  del 16/03/2023 PERIODO 01.01.2023-28.02.2023 - CONSUMI DISTRIBUTORE ACQUA CASELLE;07/04/2023;134;30;230;1;Spese correnti;3;Acquisto di beni e servizi;2;Acquisto di servizi;5;Utenze e canoni;5;Acqua;12/04/2023
1237;4;9999999;50,48;168,91;V.E.R.I.T.A.S. SPA; ;SALDO Fatt.n. 600006828219  del 16/03/2023 PERIODO 07.07.2022-28.02.2023 - ANTINCENDIO PARCHEGGIO STIGLIANO;07/04/2023;134;30;230;1;Spese correnti;3;Acquisto di beni e servizi;2;Acquisto di servizi;5;Utenze e canoni;5;Acqua;12/04/2023
1237;5;9999999;50,49;168,91;V.E.R.I.T.A.S. SPA; ;SALDO Fatt.n. 600006828207  del 16/03/2023 PERIODO 01.01.2023-28.02.2023 - ANTINCENDIO PARCHEGGIO SMS;07/04/2023;134;30;230;1;Spese correnti;3;Acquisto di beni e servizi;2;Acquisto di servizi;5;Utenze e canoni;5;Acqua;12/04/2023
1238;1;9999999;8,34;210,3;V.E.R.I.T.A.S. SPA; ;SALDO Fatt.n. 600006828220  del 16/03/2023 PERIODO 26.07.2022-28.02.2023 - CONSUMI PER MANIFESTAZIONI CALTANA;07/04/2023;134;30;230;1;Spese correnti;3;Acquisto di beni e servizi;2;Acquisto di servizi;5;Utenze e canoni;5;Acqua;12/04/2023
1238;2;9999999;50,49;210,3;V.E.R.I.T.A.S. SPA; ;SALDO Fatt.n. 600006828221  del 16/03/2023 PERIODO 01.01.2023-28.02.2023 - ANTINCENDIO Z.I. SMS;07/04/2023;134;30;230;1;Spese correnti;3;Acquisto di beni e servizi;2;Acquisto di servizi;5;Utenze e canoni;5;Acqua;12/04/2023
1238;3;9999999;50,49;210,3;V.E.R.I.T.A.S. SPA; ;SALDO Fatt.n. 600006828222  del 16/03/2023 PERIODO 01.01.2023-28.02.2023 - ANTINCENDIO Z.I. SMS;07/04/2023;134;30;230;1;Spese correnti;3;Acquisto di beni e servizi;2;Acquisto di servizi;5;Utenze e canoni;5;Acqua;12/04/2023
1238;4;9999999;50,49;210,3;V.E.R.I.T.A.S. SPA; ;SALDO Fatt.n. 600006828223  del 16/03/2023 PERIODO 01.01.2023-28.02.2023 - ANTINCENDIO PARCHEGGIO CC PRISMA CASELLE;07/04/2023;134;30;230;1;Spese correnti;3;Acquisto di beni e servizi;2;Acquisto di servizi;5;Utenze e canoni;5;Acqua;12/04/2023
1238;5;9999999;50,49;210,3;V.E.R.I.T.A.S. SPA; ;SALDO Fatt.n. 600006828224  del 16/03/2023 PERIODO 01.01.2023-28.02.2023 - ANTINCENDIO PRESSO ALLOGGIO GUIOTTO;07/04/2023;134;30;230;1;Spese correnti;3;Acquisto di beni e servizi;2;Acquisto di servizi;5;Utenze e canoni;5;Acqua;12/04/2023
1239;1;9999999;12,94;197,99;V.E.R.I.T.A.S. SPA; ;SALDO Fatt.n. 600006828225  del 16/03/2023 PERIODO 01.01.2023-28.02.2023 - CONSUMI FONTANA VETERNIGO;07/04/2023;134;30;230;1;Spese correnti;3;Acquisto di beni e servizi;2;Acquisto di servizi;5;Utenze e canoni;5;Acqua;12/04/2023
1239;2;9999999;19,35;197,99;V.E.R.I.T.A.S. SPA; ;SALDO Fatt.n. 600006828235  del 16/03/2023 PERIODO 01.01.2023-28.02.2023 - CONSUMI PARCHEGGIO CC PRISMA CASELLE;07/04/2023;134;30;230;1;Spese correnti;3;Acquisto di beni e servizi;2;Acquisto di servizi;5;Utenze e canoni;5;Acqua;12/04/2023
1239;3;9999999;50,49;197,99;V.E.R.I.T.A.S. SPA; ;SALDO Fatt.n. 600006828227  del 16/03/2023 PERIODO 01.01.2023-28.02.2023 - ANTINCENDIO PER MANIFESTAZIONI SMS;07/04/2023;134;30;230;1;Spese correnti;3;Acquisto di beni e servizi;2;Acquisto di servizi;5;Utenze e canoni;5;Acqua;12/04/2023
1239;4;9999999;50,49;197,99;V.E.R.I.T.A.S. SPA; ;SALDO Fatt.n. 600006828234  del 16/03/2023 PERIODO 01.01.2023-28.02.2023 - ANTINCENDIO PIAZZA BEVILACQUA S.ANGELO;07/04/2023;134;30;230;1;Spese correnti;3;Acquisto di beni e servizi;2;Acquisto di servizi;5;Utenze e canoni;5;Acqua;12/04/2023
1239;5;9999999;64,72;197,99;V.E.R.I.T.A.S. SPA; ;SALDO Fatt.n. 600006828228  del 16/03/2023 PERIODO 01.01.2023-28.02.2023 - CONSUMI PER MANIFESTAZIONI SMS;07/04/2023;134;30;230;1;Spese correnti;3;Acquisto di beni e servizi;2;Acquisto di servizi;5;Utenze e canoni;5;Acqua;12/04/2023
1240;1;9999999;14,15;134,96;V.E.R.I.T.A.S. SPA; ;SALDO Fatt.n. 600006828239  del 16/03/2023 PERIODO 01.01.2023-28.02.2023 -  CONSUMI FONTANA VERDE CASELLE;07/04/2023;134;30;230;1;Spese correnti;3;Acquisto di beni e servizi;2;Acquisto di servizi;5;Utenze e canoni;5;Acqua;12/04/2023
1240;2;9999999;18,93;134,96;V.E.R.I.T.A.S. SPA; ;SALDO Fatt.n. 600006828236  del 16/03/2023 PERIODO  01.01.2023-28.02.2023 -  CONSUMI PARCHEGGIO CASELLE;07/04/2023;134;30;230;1;Spese correnti;3;Acquisto di beni e servizi;2;Acquisto di servizi;5;Utenze e canoni;5;Acqua;12/04/2023
1240;3;9999999;50,49;134,96;V.E.R.I.T.A.S. SPA; ;SALDO Fatt.n. 600006828237  del 16/03/2023 PERIODO 01.01.2023-28.02.2023 - ANTINCENDIO PARCHEGGIO CASELLE;07/04/2023;134;30;230;1;Spese correnti;3;Acquisto di beni e servizi;2;Acquisto di servizi;5;Utenze e canoni;5;Acqua;12/04/2023
1240;4;9999999;51,39;134,96;V.E.R.I.T.A.S. SPA; ;SALDO Fatt.n. 600006828238  del 16/03/2023 PERIODO 01.01.2023-28.02.2023 - CONSUMI PIAZZA CASELLE;07/04/2023;134;30;230;1;Spese correnti;3;Acquisto di beni e servizi;2;Acquisto di servizi;5;Utenze e canoni;5;Acqua;12/04/2023
1241;1;9999999;-402,19;214,54;V.E.R.I.T.A.S. SPA; ;SALDO Fatt.n. 600006828216  del 16/03/2023 PERIODO 07.07.2022-28.02.2023 - CONSUMI CIMITERO STIGLIANO;07/04/2023;134;31;231;1;Spese correnti;3;Acquisto di beni e servizi;2;Acquisto di servizi;5;Utenze e canoni;5;Acqua;12/04/2023
1241;2;9999999;104,31;214,54;V.E.R.I.T.A.S. SPA; ;SALDO Fatt.n. 600006828197  del 16/03/2023 PERIODO 01.01.2023-28.02.2023 - CONSUMI MERCATO CASELLE;07/04/2023;134;31;231;1;Spese correnti;3;Acquisto di beni e servizi;2;Acquisto di servizi;5;Utenze e canoni;5;Acqua;12/04/2023
1241;3;9999999;164,08;214,54;V.E.R.I.T.A.S. SPA; ;SALDO Fatt.n. 600006828198  del 16/03/2023 PERIODO 01.01.2023-28.02.2023 - CONSUMI SEDE MUNICIPALE;07/04/2023;134;31;231;1;Spese correnti;3;Acquisto di beni e servizi;2;Acquisto di servizi;5;Utenze e canoni;5;Acqua;12/04/2023
1241;4;9999999;348,34;214,54;V.E.R.I.T.A.S. SPA; ;SALDO Fatt.n. 600006828202  del 16/03/2023 PERIODO 20.07.2022-28.02.2023 - ANTINCENDIO SC. ELEM CALTANA;07/04/2023;134;31;231;1;Spese correnti;3;Acquisto di beni e servizi;2;Acquisto di servizi;5;Utenze e canoni;5;Acqua;12/04/2023
1242;1;9999999;-317,34;18,71;V.E.R.I.T.A.S. SPA; ;SALDO Fatt.n. 600006828192  del 16/03/2023 NOTA DI ACCREDITO PER CONG. CONSUMI - PERIODO  06.07.2022-28.02.2023;07/04/2023;1334;30;232;1;Spese correnti;3;Acquisto di beni e servizi;2;Acquisto di servizi;5;Utenze e canoni;5;Acqua;12/04/2023
1242;2;9999999;336,05;18,71;V.E.R.I.T.A.S. SPA; ;SALDO Fatt.n. 600006828199  del 16/03/2023 PERIODO 01.01.2023-28.02.2023 - CONSUMI SC. MEDIA SMS;07/04/2023;1334;30;232;1;Spese correnti;3;Acquisto di beni e servizi;2;Acquisto di servizi;5;Utenze e canoni;5;Acqua;12/04/2023
1243;1;9999999;-315,34;290,19;V.E.R.I.T.A.S. SPA; ;SALDO Fatt.n. 600006828212  del 16/03/2023  NOTA DI ACCREDITO PER CONG. CONSUMI - PERIODO 20.07.2022-28.02.2023;07/04/2023;1334;30;232;1;Spese correnti;3;Acquisto di beni e servizi;2;Acquisto di servizi;5;Utenze e canoni;5;Acqua;12/04/2023
1243;2;9999999;294,61;290,19;V.E.R.I.T.A.S. SPA; ;SALDO Fatt.n. 600006828190  del 16/03/2023 PERIODO 11.01.2022-28.02.2023 - CONSUMI SC. ELEM CALTANA;07/04/2023;1334;30;232;1;Spese correnti;3;Acquisto di beni e servizi;2;Acquisto di servizi;5;Utenze e canoni;5;Acqua;12/04/2023
1243;3;9999999;310,92;290,19;V.E.R.I.T.A.S. SPA; ;SALDO Fatt.n. 600006828213  del 16/03/2023 PERIODO 15.07.2022-28.02.2023 - CONSUMI CIMITERO VETERNIGO;07/04/2023;1334;30;232;1;Spese correnti;3;Acquisto di beni e servizi;2;Acquisto di servizi;5;Utenze e canoni;5;Acqua;12/04/2023
1244;1;9999999;50,49;147,72;V.E.R.I.T.A.S. SPA; ;SALDO Fatt.n. 600006828200  del 16/03/2023 PERIODO 01.01.2023-28.02.2023 - ANTINCENDIO SC. MEDIA SMS;07/04/2023;1334;30;232;1;Spese correnti;3;Acquisto di beni e servizi;2;Acquisto di servizi;5;Utenze e canoni;5;Acqua;12/04/2023
1244;2;9999999;97,23;147,72;V.E.R.I.T.A.S. SPA; ;SALDO Fatt.n. 600006828201  del 16/03/2023 PERIODO 01.01.2023-28.02.2023 - CONSUMI SC. ELEM. SMS;07/04/2023;1334;30;232;1;Spese correnti;3;Acquisto di beni e servizi;2;Acquisto di servizi;5;Utenze e canoni;5;Acqua;12/04/2023
1245;1;9999999;104,99;104,99;V.E.R.I.T.A.S. SPA; ;ACCONTO Fatt.n. 600006828195  del 16/03/2023 PERIODO 01.01.2023-28.02.2023 - CONSUMI PALESTRA SMS;07/04/2023;1334;30;232;1;Spese correnti;3;Acquisto di beni e servizi;2;Acquisto di servizi;5;Utenze e canoni;5;Acqua;12/04/2023
1246;1;9999999;142,21;142,21;V.E.R.I.T.A.S. SPA; ;ACCONTO Fatt.n. 600006828231  del 16/03/2023 PERIODO 20.07.2022-28.02.2023 - CONSUMI PALESTRA CALTANA;07/04/2023;1334;30;232;1;Spese correnti;3;Acquisto di beni e servizi;2;Acquisto di servizi;5;Utenze e canoni;5;Acqua;12/04/2023
1247;1;9999999;12;12;V.E.R.I.T.A.S. SPA; ;ACCONTO Fatt.n. 600006828194  del 16/03/2023 PERIODO 09.07.2022-28.02.2023 - CONSUMI SC. ELEM - PALESTRA - ASILO S.ANGELO;07/04/2023;1334;30;232;1;Spese correnti;3;Acquisto di beni e servizi;2;Acquisto di servizi;5;Utenze e canoni;5;Acqua;12/04/2023
1248;1;9999999;36,12;36,12;V.E.R.I.T.A.S. SPA; ;ACCONTO Fatt.n. 600006828194  del 16/03/2023 PERIODO 09.07.2022-28.02.2023 - CONSUMI SC. ELEM - PALESTRA - ASILO S.ANGELO;07/04/2023;1334;30;232;1;Spese correnti;3;Acquisto di beni e servizi;2;Acquisto di servizi;5;Utenze e canoni;5;Acqua;12/04/2023
1249;1;9999999;10;10;V.E.R.I.T.A.S. SPA; ;ACCONTO Fatt.n. 600006828203  del 16/03/2023 PERIODO 01.01.2023-28.02.2023 - ANTINCENDIO SC. ELEM - PALESTRA CASELLE;07/04/2023;1334;30;232;1;Spese correnti;3;Acquisto di beni e servizi;2;Acquisto di servizi;5;Utenze e canoni;5;Acqua;12/04/2023
1250;1;9999999;30,49;30,49;V.E.R.I.T.A.S. SPA; ;ACCONTO Fatt.n. 600006828203  del 16/03/2023 PERIODO 01.01.2023-28.02.2023 - ANTINCENDIO SC. ELEM - PALESTRA CASELLE;07/04/2023;1334;30;232;1;Spese correnti;3;Acquisto di beni e servizi;2;Acquisto di servizi;5;Utenze e canoni;5;Acqua;12/04/2023
1251;1;9999999;25,24;25,24;V.E.R.I.T.A.S. SPA; ;ACCONTO Fatt.n. 600006828232  del 16/03/2023 PERIODO 20.07.2022-28.02.2023 - ANTINCENDIO PALESTRA CALTANA;07/04/2023;1334;30;232;1;Spese correnti;3;Acquisto di beni e servizi;2;Acquisto di servizi;5;Utenze e canoni;5;Acqua;12/04/2023
1252;1;9999999;14;14;V.E.R.I.T.A.S. SPA; ;ACCONTO Fatt.n. 600006828204  del 16/03/2023 PERIODO 08.07.2022-28.02.2023 - ANTINCENDIO SC. ELEM - PALESTRA VETERNIGO;07/04/2023;1334;30;232;1;Spese correnti;3;Acquisto di beni e servizi;2;Acquisto di servizi;5;Utenze e canoni;5;Acqua;12/04/2023
1253;1;9999999;22,49;22,49;V.E.R.I.T.A.S. SPA; ;ACCONTO Fatt.n. 600006828204  del 16/03/2023 PERIODO 08.07.2022-28.02.2023 - ANTINCENDIO SC. ELEM - PALESTRA VETERNIGO;07/04/2023;1334;30;232;1;Spese correnti;3;Acquisto di beni e servizi;2;Acquisto di servizi;5;Utenze e canoni;5;Acqua;12/04/2023
1254;1;9999999;8;8;V.E.R.I.T.A.S. SPA; ;ACCONTO Fatt.n. 600006828191  del 16/03/2023 PERIODO 01.01.2023-28.02.2023 - CONSUMI SC. ELEM - PALESTRA CASELLE;07/04/2023;1334;30;232;1;Spese correnti;3;Acquisto di beni e servizi;2;Acquisto di servizi;5;Utenze e canoni;5;Acqua;12/04/2023
1255;1;9999999;24,17;24,17;V.E.R.I.T.A.S. SPA; ;ACCONTO Fatt.n. 600006828191  del 16/03/2023 PERIODO 01.01.2023-28.02.2023 - CONSUMI SC. ELEM - PALESTRA CASELLE;07/04/2023;1334;30;232;1;Spese correnti;3;Acquisto di beni e servizi;2;Acquisto di servizi;5;Utenze e canoni;5;Acqua;12/04/2023
1256;1;9999999;10;10;V.E.R.I.T.A.S. SPA; ;ACCONTO Fatt.n. 600006828205  del 16/03/2023 PERIODO 09.07.2022-28.02.2023 - ANTINCENDIO SC.ELEM - PALESTRA - ASILO S.ANGELO;07/04/2023;1334;30;232;1;Spese correnti;3;Acquisto di beni e servizi;2;Acquisto di servizi;5;Utenze e canoni;5;Acqua;12/04/2023
1257;1;9999999;30,48;30,48;V.E.R.I.T.A.S. SPA; ;ACCONTO Fatt.n. 600006828205  del 16/03/2023 PERIODO 09.07.2022-28.02.2023 - ANTINCENDIO SC.ELEM - PALESTRA - ASILO S.ANGELO;07/04/2023;1334;30;232;1;Spese correnti;3;Acquisto di beni e servizi;2;Acquisto di servizi;5;Utenze e canoni;5;Acqua;12/04/2023
1258;1;9999999;20;20;V.E.R.I.T.A.S. SPA; ;ACCONTO Fatt.n. 600006828193  del 16/03/2023 PERIODO 08.07.2022-28.02.2023 - CONSUMI SC. ELEM - PALESTRA VETERNIGO;07/04/2023;1334;30;232;1;Spese correnti;3;Acquisto di beni e servizi;2;Acquisto di servizi;5;Utenze e canoni;5;Acqua;12/04/2023
1259;1;9999999;33,83;33,83;V.E.R.I.T.A.S. SPA; ;ACCONTO Fatt.n. 600006828193  del 16/03/2023 PERIODO 08.07.2022-28.02.2023 - CONSUMI SC. ELEM - PALESTRA VETERNIGO;07/04/2023;1334;30;232;1;Spese correnti;3;Acquisto di beni e servizi;2;Acquisto di servizi;5;Utenze e canoni;5;Acqua;12/04/2023
1260;1;9999999;30,68;205,01;V.E.R.I.T.A.S. SPA; ;SALDO Fatt.n. 600006828226  del 16/03/2023 PERIODO 01.01.2023-28.02.2023 - CONSUMI VILLA FARSETTI;07/04/2023;1834;0;233;1;Spese correnti;3;Acquisto di beni e servizi;2;Acquisto di servizi;5;Utenze e canoni;5;Acqua;12/04/2023
1260;2;9999999;45,8;205,01;V.E.R.I.T.A.S. SPA; ;SALDO Fatt.n. 600006828196  del 16/03/2023 PERIODO 01.01.2023-28.02.2023 - CONSUMI VILLA FARSETTI;07/04/2023;1834;0;233;1;Spese correnti;3;Acquisto di beni e servizi;2;Acquisto di servizi;5;Utenze e canoni;5;Acqua;12/04/2023
1260;3;9999999;50,49;205,01;V.E.R.I.T.A.S. SPA; ;SALDO Fatt.n. 600006828208  del 16/03/2023 PERIODO 01.01.2023-28.02.2023 - ANTINCENDIO VILLA FARSETTI;07/04/2023;1834;0;233;1;Spese correnti;3;Acquisto di beni e servizi;2;Acquisto di servizi;5;Utenze e canoni;5;Acqua;12/04/2023
1260;4;9999999;78,04;205,01;V.E.R.I.T.A.S. SPA; ;SALDO Fatt.n. 600006828233  del 16/03/2023 PERIODO 01.01.2023-28.02.2023 - CONSUMI VILLA FARSETTI;07/04/2023;1834;0;233;1;Spese correnti;3;Acquisto di beni e servizi;2;Acquisto di servizi;5;Utenze e canoni;5;Acqua;12/04/2023
1261;1;9999999;104,99;104,99;V.E.R.I.T.A.S. SPA; ;SALDO Fatt.n. 600006828195  del 16/03/2023 PERIODO 01.01.2023-28.02.2023 - CONSUMI PALESTRA SMS;07/04/2023;1934;0;234;1;Spese correnti;3;Acquisto di beni e servizi;2;Acquisto di servizi;5;Utenze e canoni;5;Acqua;12/04/2023
1262;1;9999999;142,22;142,22;V.E.R.I.T.A.S. SPA; ;SALDO Fatt.n. 600006828231  del 16/03/2023 PERIODO 20.07.2022-28.02.2023 - CONSUMI PALESTRA CALTANA;07/04/2023;1934;0;234;1;Spese correnti;3;Acquisto di beni e servizi;2;Acquisto di servizi;5;Utenze e canoni;5;Acqua;12/04/2023
1263;1;9999999;12;12;V.E.R.I.T.A.S. SPA; ;SALDO Fatt.n. 600006828194  del 16/03/2023 PERIODO 09.07.2022-28.02.2023 - CONSUMI SC. ELEM - PALESTRA - ASILO S.ANGELO;07/04/2023;1934;0;234;1;Spese correnti;3;Acquisto di beni e servizi;2;Acquisto di servizi;5;Utenze e canoni;5;Acqua;12/04/2023
1264;1;9999999;10;10;V.E.R.I.T.A.S. SPA; ;SALDO Fatt.n. 600006828203  del 16/03/2023 PERIODO 01.01.2023-28.02.2023 - ANTINCENDIO SC. ELEM - PALESTRA CASELLE;07/04/2023;1934;0;234;1;Spese correnti;3;Acquisto di beni e servizi;2;Acquisto di servizi;5;Utenze e canoni;5;Acqua;12/04/2023
1265;1;9999999;25,24;25,24;V.E.R.I.T.A.S. SPA; ;SALDO Fatt.n. 600006828232  del 16/03/2023 PERIODO 20.07.2022-28.02.2023 - ANTINCENDIO PALESTRA CALTANA;07/04/2023;1934;0;234;1;Spese correnti;3;Acquisto di beni e servizi;2;Acquisto di servizi;5;Utenze e canoni;5;Acqua;12/04/2023
1266;1;9999999;14;14;V.E.R.I.T.A.S. SPA; ;SALDO Fatt.n. 600006828204  del 16/03/2023 PERIODO 08.07.2022-28.02.2023 - ANTINCENDIO SC. ELEM - PALESTRA VETERNIGO;07/04/2023;1934;0;234;1;Spese correnti;3;Acquisto di beni e servizi;2;Acquisto di servizi;5;Utenze e canoni;5;Acqua;12/04/2023
1267;1;9999999;8;8;V.E.R.I.T.A.S. SPA; ;SALDO Fatt.n. 600006828191  del 16/03/2023 PERIODO 01.01.2023-28.02.2023 - CONSUMI SC. ELEM - PALESTRA CASELLE;07/04/2023;1934;0;234;1;Spese correnti;3;Acquisto di beni e servizi;2;Acquisto di servizi;5;Utenze e canoni;5;Acqua;12/04/2023
1268;1;9999999;10;10;V.E.R.I.T.A.S. SPA; ;SALDO Fatt.n. 600006828205  del 16/03/2023 PERIODO 09.07.2022-28.02.2023 - ANTINCENDIO SC.ELEM - PALESTRA - ASILO S.ANGELO;07/04/2023;1934;0;234;1;Spese correnti;3;Acquisto di beni e servizi;2;Acquisto di servizi;5;Utenze e canoni;5;Acqua;12/04/2023
1269;1;9999999;20;20;V.E.R.I.T.A.S. SPA; ;SALDO Fatt.n. 600006828193  del 16/03/2023 PERIODO 08.07.2022-28.02.2023 - CONSUMI SC. ELEM - PALESTRA VETERNIGO;07/04/2023;1934;0;234;1;Spese correnti;3;Acquisto di beni e servizi;2;Acquisto di servizi;5;Utenze e canoni;5;Acqua;12/04/2023
1270;1;9999999;19,35;217,88;V.E.R.I.T.A.S. SPA; ;SALDO Fatt.n. 600006828209  del 16/03/2023 PERIODO 01.01.2023-28.02.2023 - CONSUMI MAGAZZINO COMUNALE;07/04/2023;3534;0;235;1;Spese correnti;3;Acquisto di beni e servizi;2;Acquisto di servizi;5;Utenze e canoni;5;Acqua;12/04/2023
1270;2;9999999;50,49;217,88;V.E.R.I.T.A.S. SPA; ;SALDO Fatt.n. 600006828210  del 16/03/2023 PERIODO 01.01.2023-28.02.2023 - ANTINCENDIO MAGAZZINO COMUNALE;07/04/2023;3534;0;235;1;Spese correnti;3;Acquisto di beni e servizi;2;Acquisto di servizi;5;Utenze e canoni;5;Acqua;12/04/2023
1270;3;9999999;52,57;217,88;V.E.R.I.T.A.S. SPA; ;SALDO Fatt.n. 600006828229  del 16/03/2023 PERIODO 14.07.2022-28.02.2023 - ANTINCENDIO ECOCENTRO COMUNALE;07/04/2023;3534;0;235;1;Spese correnti;3;Acquisto di beni e servizi;2;Acquisto di servizi;5;Utenze e canoni;5;Acqua;12/04/2023
1270;4;9999999;95,47;217,88;V.E.R.I.T.A.S. SPA; ;SALDO Fatt.n. 600006828230  del 16/03/2023 PERIODO 14.07.2022-28.02.2023 -  CONSUMI ECOCENTRO COMUNALE;07/04/2023;3534;0;235;1;Spese correnti;3;Acquisto di beni e servizi;2;Acquisto di servizi;5;Utenze e canoni;5;Acqua;12/04/2023
1271;1;9999999;5,57;41,07;V.E.R.I.T.A.S. SPA; ;SALDO Fatt.n. 600006828214  del 16/03/2023 PERIODO 09.07.2022-28.02.2023 - CONSUMI CIMITERO S.ANGELO;07/04/2023;4434;0;237;1;Spese correnti;3;Acquisto di beni e servizi;2;Acquisto di servizi;5;Utenze e canoni;5;Acqua;12/04/2023
1271;2;9999999;12,94;41,07;V.E.R.I.T.A.S. SPA; ;SALDO Fatt.n. 600006828211  del 16/03/2023 PERIODO 01.01.2023-28.02.2023 - CONSUMI CIMITERO SMS;07/04/2023;4434;0;237;1;Spese correnti;3;Acquisto di beni e servizi;2;Acquisto di servizi;5;Utenze e canoni;5;Acqua;12/04/2023
1271;3;9999999;22,56;41,07;V.E.R.I.T.A.S. SPA; ;SALDO Fatt.n. 600006828215  del 16/03/2023 PERIODO 01.01.2023-28.02.2023 - CONSUMI CIMITERO CASELLE;07/04/2023;4434;0;237;1;Spese correnti;3;Acquisto di beni e servizi;2;Acquisto di servizi;5;Utenze e canoni;5;Acqua;12/04/2023
1272;1;9999999;9,37;47,86;COMUNE DI S.MARIA DI SALA; ;CONTRIBUTO IFEL RENDICONTO  AL 08/03/2023;07/04/2023;332;0;0;1;Spese correnti;3;Acquisto di beni e servizi;2;Acquisto di servizi;3;Aggi di riscossione;999;Altri aggi di riscossione n.a.c.;12/04/2023
1272;2;9999999;38,49;47,86;COMUNE DI S.MARIA DI SALA; ;CONTRIBUTO IFEL RENDICONTO AL 30/01/2023;07/04/2023;332;0;0;1;Spese correnti;3;Acquisto di beni e servizi;2;Acquisto di servizi;3;Aggi di riscossione;999;Altri aggi di riscossione n.a.c.;12/04/2023
1273;1;9999999;12,43;12,43;COMUNE DI S.MARIA DI SALA; ;CONTRIBUTO IFEL RENDICONTO AL 07/04/2023;07/04/2023;332;0;0;1;Spese correnti;3;Acquisto di beni e servizi;2;Acquisto di servizi;3;Aggi di riscossione;999;Altri aggi di riscossione n.a.c.;12/04/2023
1274;1;9999999;155;155;MAGGIOLI SPA;Z3639683C9;SALDO Fatt.n. 0002115648  del 27/03/2023 RINN. RIV. I SERVIZI DEMOGRAFICI-PDF;07/04/2023;649;0;38;1;Spese correnti;3;Acquisto di beni e servizi;2;Acquisto di servizi;99;Altri servizi;999;Altri servizi diversi n.a.c.;12/04/2023
1275;1;9999999;4.453,42;4.453,42;COSTRUZIONI GENERALI BIASUZZI SRL;8810720427;SALDO Fatt.n. 8 PA  del 17/03/2023 REALIZZAZIONE DEL TRATTO N.1 DELLA PISTA CICLO-PEDONALE LUNGO VIA NOALESE-SR 515.SVINCOLO RITENUTE;07/04/2023;8563;0;1362;2;Spese in conto capitale;2;Investimenti fissi lordi e acquisto di terreni;1;Beni materiali;9;Beni immobili;12;Infrastrutture stradali;12/04/2023
1276;1;9999999;195,19;195,19;COMUNE DI VENEZIA; ;II SEMESTRE 2022 - RIMBORSO SPESE DI FUNZIONAMENTO DELLA 6 SOTTOCOMMISSIONE ELETTORALE CIRCONDARIALE DI MESTRE-;07/04/2023;651;0;1055;1;Spese correnti;4;Trasferimenti correnti;1;Trasferimenti correnti a Amministrazioni Pubbliche;2;Trasferimenti correnti a Amministrazioni Locali;3;Trasferimenti correnti a Comuni;12/04/2023
1278;1;9999999;200;200;NACCHI ANNALISA; ;GETTONE DI PRESENZA COMMISSIONE CONCORSO;07/04/2023;849;0;370;1;Spese correnti;3;Acquisto di beni e servizi;2;Acquisto di servizi;99;Altri servizi;999;Altri servizi diversi n.a.c.;12/04/2023
1279;1;9999999;23,01;70,67;C/C/P 1039683022 -RISCOSSIONE COATTIVA EX ICP DPA; ;SPESE GESTIONE CONTI CORRENTI POSTALI RISCOSSIONE COATTIVA MARZO 2023;07/04/2023;146;0;52;1;Spese correnti;3;Acquisto di beni e servizi;2;Acquisto di servizi;17;Servizi finanziari;999;Spese per servizi finanziari n.a.c.;17/04/2023
1279;2;9999999;23,83;70,67;C/C/P 1039683022 -RISCOSSIONE COATTIVA EX ICP DPA; ;SPESE GESTIONE CONTI CORRENTI POSTALI RISCOSSIONE COATTIVA GENNAIO 2022;07/04/2023;146;0;52;1;Spese correnti;3;Acquisto di beni e servizi;2;Acquisto di servizi;17;Servizi finanziari;999;Spese per servizi finanziari n.a.c.;17/04/2023
1279;3;9999999;23,83;70,67;C/C/P 1039683022 -RISCOSSIONE COATTIVA EX ICP DPA; ;SPESE GESTIONE CONTI CORRENTI POSTALI RISCOSSIONE COATTIVA FEBBRAIO 2023;07/04/2023;146;0;52;1;Spese correnti;3;Acquisto di beni e servizi;2;Acquisto di servizi;17;Servizi finanziari;999;Spese per servizi finanziari n.a.c.;17/04/2023
1283;1;9999999;9.090,00;9.090,00;AL MOLINO SAS;Z9D37D829D;CODICE IDENTIFICATIVO FASCICOLO 119/2023/2320 CODICE IDENTIFICATIVO DELLA PROCEDURA ESECUTIVA 11984202300001653000 DEBITORE ESECUTATO: AL MOLINO SAS DI BALLEELLO DAMIANO E C. TERZO :COMUNE DI SANTA MARIA DI SALA  (ft. 1/2022);11/04/2023;8483;2;812;2;Spese in conto capitale;2;Investimenti fissi lordi e acquisto di terreni;1;Beni materiali;5;Attrezzature;999;Attrezzature n.a.c.;17/04/2023
1284;1;9999999;130;130;OMESSO NOMINATIVO NEL RISPETTO DELLA NORMATIVA SULLA PROTEZIONE DATI PERSONALI; ;RATA APRILE 2023 CONTRIBUTO ASSEGNI DI SOLLIEVO - 1 TRANCHE;11/04/2023;3957;50;301;1;Spese correnti;4;Trasferimenti correnti;2;Trasferimenti correnti a Famiglie;2;Interventi assistenziali;999;Altri assegni e sussidi assistenziali;11/05/2023
1285;1;9999999;220;220;OMESSO NOMINATIVO NEL RISPETTO DELLA NORMATIVA SULLA PROTEZIONE DATI PERSONALI; ;RATA APRILE 2023 CONTRIBUTO ASSEGNI DI SOLLIEVO -1 TRANCHE;11/04/2023;3957;50;304;1;Spese correnti;4;Trasferimenti correnti;2;Trasferimenti correnti a Famiglie;2;Interventi assistenziali;999;Altri assegni e sussidi assistenziali;17/04/2023
1286;1;9999999;220;220;OMESSO NOMINATIVO NEL RISPETTO DELLA NORMATIVA SULLA PROTEZIONE DATI PERSONALI; ;RATA APRILE 2023 CONTRIBUTO ASSEGNI DI SOLLIEVO -1 TRANCHE;11/04/2023;3957;50;305;1;Spese correnti;4;Trasferimenti correnti;2;Trasferimenti correnti a Famiglie;2;Interventi assistenziali;999;Altri assegni e sussidi assistenziali;17/04/2023
1287;1;9999999;130;130;OMESSO NOMINATIVO NEL RISPETTO DELLA NORMATIVA SULLA PROTEZIONE DATI PERSONALI; ;RATA APRILE 2023 CONTRIBUTO ASSEGNI DI SOLLIEVO -1 TRANCHE;11/04/2023;3957;50;306;1;Spese correnti;4;Trasferimenti correnti;2;Trasferimenti correnti a Famiglie;2;Interventi assistenziali;999;Altri assegni e sussidi assistenziali;17/04/2023
1288;1;9999999;220;220;OMESSO NOMINATIVO NEL RISPETTO DELLA NORMATIVA SULLA PROTEZIONE DATI PERSONALI; ;RATA APRILE 2023 CONTRIBUTO ASSEGNI DI SOLLIEVO -1 TRANCHE;11/04/2023;3957;50;310;1;Spese correnti;4;Trasferimenti correnti;2;Trasferimenti correnti a Famiglie;2;Interventi assistenziali;999;Altri assegni e sussidi assistenziali;24/04/2023
1289;1;9999999;220;220;OMESSO NOMINATIVO NEL RISPETTO DELLA NORMATIVA SULLA PROTEZIONE DATI PERSONALI; ;RATA APRILE 2023 CONTRIBUTO ASSEGNI DI SOLLIEVO -1 TRANCHE;11/04/2023;3957;50;311;1;Spese correnti;4;Trasferimenti correnti;2;Trasferimenti correnti a Famiglie;2;Interventi assistenziali;999;Altri assegni e sussidi assistenziali;17/04/2023
1296;1;9999999;35,28;35,28;COMUNE DI MARTELLAGO; ;NS.PROT.8199 DEL 07/04/23 - VS. PROT. 9731 RIMBORSO SPESE DI NOTIFICA ANNO 2022;11/04/2023;146;0;48;1;Spese correnti;3;Acquisto di beni e servizi;2;Acquisto di servizi;17;Servizi finanziari;999;Spese per servizi finanziari n.a.c.;17/04/2023
1297;1;9999999;50,9;50,9;COMUNE DI CHIOGGIA; ;NS.PROT.7057 RIMBORSO SPESE DI NOTIFICA ANNO 2021 -;11/04/2023;146;0;48;1;Spese correnti;3;Acquisto di beni e servizi;2;Acquisto di servizi;17;Servizi finanziari;999;Spese per servizi finanziari n.a.c.;17/04/2023
1298;1;9999999;900,53;900,53;AGENZIA DELLE ENTRATE - IVA; ;LIQUIDAZIONE IVA COMMERCIALE MESE DI MARZO 2023;11/04/2023;291;0;371;1;Spese correnti;10;Altre spese correnti;3;Versamenti IVA a debito;1;Versamenti IVA a debito per le gestioni commerciali;1;Versamenti IVA a debito per le gestioni commerciali;17/04/2023
1299;1;9999999;5.000,00;5.000,00;CONFCOMMERCIO DEL MIRANESE; ;ACCONTO CONTRIBUTO PER LA PROGETTAZIONE E ORGANIZZAZIONE DI INIZIATIVE DEL DISTRETTO DEL COMMERCIO.;13/04/2023;4759;0;349;1;Spese correnti;4;Trasferimenti correnti;4;Trasferimenti correnti a Istituzioni Sociali Private;1;Trasferimenti correnti a Istituzioni Sociali Private;1;Trasferimenti correnti a Istituzioni Sociali Private;17/04/2023
1300;1;9999999;10.980,00;10.980,00;F.M.S.  S.R.L. - FRATELLI MICHIELETTO STRADE;Z3538C1B95;SALDO Fatt.n. 2023-AFAT4-0000009  del 21/03/2023 LAVORI DI RIFACIMENTO RECINZIONE E INTEGRAZIONE DELLA SEGNALETICA ORIZZONTALE E VERTICALE A RIDOSSO DELLA ROTATORIA TREPONTI SR515 VIA NOALESE;13/04/2023;8563;0;1362;2;Spese in conto capitale;2;Investimenti fissi lordi e acquisto di terreni;1;Beni materiali;9;Beni immobili;12;Infrastrutture stradali;17/04/2023
1301;1;9999999;7.498,00;7.498,00;CANIATO MARCO;ZDE394E82B;SALDO Fatt.n. 17  del 21/03/2023 STESURA PIANO DI CLASSIFICAZIONE ACUSTICA DEL TERRITORIO COMUNALE;13/04/2023;540;0;1200;1;Spese correnti;3;Acquisto di beni e servizi;2;Acquisto di servizi;11;Prestazioni professionali e specialistiche;999;Altre prestazioni professionali e specialistiche n.a.c.;17/04/2023
1302;1;9999999;455,21;455,21;PULIAUTOMATIC SRL;Z803A1764D;ACCONTO Fatt.n. 24/V12  del 23/03/2023 MANUTENZIONE LAVASCIUGA  PALESTRA SMS;13/04/2023;1338;0;136;1;Spese correnti;3;Acquisto di beni e servizi;2;Acquisto di servizi;9;Manutenzione ordinaria e riparazioni;5;Manutenzione ordinaria e riparazioni di attrezzature;17/04/2023
1303;1;9999999;442,31;442,31;PULIAUTOMATIC SRL;Z953A17614;ACCONTO Fatt.n. 25/V12  del 23/03/2023 MANUTENZIONE LAVASCIUGA PALESTRA VETERNIGO;13/04/2023;1338;0;140;1;Spese correnti;3;Acquisto di beni e servizi;2;Acquisto di servizi;9;Manutenzione ordinaria e riparazioni;5;Manutenzione ordinaria e riparazioni di attrezzature;17/04/2023
1304;1;9999999;455,22;455,22;PULIAUTOMATIC SRL;Z803A1764D;SALDO Fatt.n. 24/V12  del 23/03/2023 MANUTENZIONE LAVASCIUGA  PALESTRA SMS;13/04/2023;1938;0;137;1;Spese correnti;3;Acquisto di beni e servizi;2;Acquisto di servizi;9;Manutenzione ordinaria e riparazioni;5;Manutenzione ordinaria e riparazioni di attrezzature;17/04/2023
1305;1;9999999;442,31;442,31;PULIAUTOMATIC SRL;Z953A17614;SALDO Fatt.n. 25/V12  del 23/03/2023 MANUTENZIONE LAVASCIUGA PALESTRA VETERNIGO;13/04/2023;1938;0;141;1;Spese correnti;3;Acquisto di beni e servizi;2;Acquisto di servizi;9;Manutenzione ordinaria e riparazioni;5;Manutenzione ordinaria e riparazioni di attrezzature;17/04/2023
1307;1;9999999;100;100;OMESSO NOMINATIVO NEL RISPETTO DELLA NORMATIVA SULLA PROTEZIONE DATI PERSONALI; ;BORSE DI STUDIO A STUDENTI DELLA SCUOLA SUPERIORE DI I E II GRADO E CFP - ANNO SCOLASTICO 2021/2022.;13/04/2023;1355;0;243;1;Spese correnti;4;Trasferimenti correnti;2;Trasferimenti correnti a Famiglie;5;Altri trasferimenti a famiglie;999;Altri trasferimenti a famiglie n.a.c.;17/04/2023
1308;1;9999999;100;100;OMESSO NOMINATIVO NEL RISPETTO DELLA NORMATIVA SULLA PROTEZIONE DATI PERSONALI; ;BORSE DI STUDIO A STUDENTI DELLA SCUOLA SUPERIORE DI I E II GRADO E CFP - ANNO SCOLASTICO 2021/2022.;13/04/2023;1355;0;244;1;Spese correnti;4;Trasferimenti correnti;2;Trasferimenti correnti a Famiglie;5;Altri trasferimenti a famiglie;999;Altri trasferimenti a famiglie n.a.c.;17/04/2023
1309;1;9999999;100;100;OMESSO NOMINATIVO NEL RISPETTO DELLA NORMATIVA SULLA PROTEZIONE DATI PERSONALI; ;BORSE DI STUDIO A STUDENTI DELLA SCUOLA SUPERIORE DI I E II GRADO E CFP - ANNO SCOLASTICO 2021/2022.;13/04/2023;1355;0;245;1;Spese correnti;4;Trasferimenti correnti;2;Trasferimenti correnti a Famiglie;5;Altri trasferimenti a famiglie;999;Altri trasferimenti a famiglie n.a.c.;17/04/2023
1310;1;9999999;100;100;OMESSO NOMINATIVO NEL RISPETTO DELLA NORMATIVA SULLA PROTEZIONE DATI PERSONALI; ;BORSE DI STUDIO A STUDENTI DELLA SCUOLA SUPERIORE DI I E II GRADO E CFP - ANNO SCOLASTICO 2021/2022.;13/04/2023;1355;0;246;1;Spese correnti;4;Trasferimenti correnti;2;Trasferimenti correnti a Famiglie;5;Altri trasferimenti a famiglie;999;Altri trasferimenti a famiglie n.a.c.;17/04/2023
1311;1;9999999;100;100;OMESSO NOMINATIVO NEL RISPETTO DELLA NORMATIVA SULLA PROTEZIONE DATI PERSONALI; ;BORSE DI STUDIO A STUDENTI DELLA SCUOLA SUPERIORE DI I E II GRADO E CFP - ANNO SCOLASTICO 2021/2022.;13/04/2023;1355;0;247;1;Spese correnti;4;Trasferimenti correnti;2;Trasferimenti correnti a Famiglie;5;Altri trasferimenti a famiglie;999;Altri trasferimenti a famiglie n.a.c.;17/04/2023
1312;1;9999999;100;100;OMESSO NOMINATIVO NEL RISPETTO DELLA NORMATIVA SULLA PROTEZIONE DATI PERSONALI; ;BORSE DI STUDIO A STUDENTI DELLA SCUOLA SUPERIORE DI I E II GRADO E CFP - ANNO SCOLASTICO 2021/2022.;13/04/2023;1355;0;248;1;Spese correnti;4;Trasferimenti correnti;2;Trasferimenti correnti a Famiglie;5;Altri trasferimenti a famiglie;999;Altri trasferimenti a famiglie n.a.c.;17/04/2023
1313;1;9999999;100;100;OMESSO NOMINATIVO NEL RISPETTO DELLA NORMATIVA SULLA PROTEZIONE DATI PERSONALI; ;BORSE DI STUDIO A STUDENTI DELLA SCUOLA SUPERIORE DI I E II GRADO E CFP - ANNO SCOLASTICO 2021/2022.;13/04/2023;1355;0;249;1;Spese correnti;4;Trasferimenti correnti;2;Trasferimenti correnti a Famiglie;5;Altri trasferimenti a famiglie;999;Altri trasferimenti a famiglie n.a.c.;17/04/2023
1314;1;9999999;100;100;OMESSO NOMINATIVO NEL RISPETTO DELLA NORMATIVA SULLA PROTEZIONE DATI PERSONALI; ;BORSE DI STUDIO A STUDENTI DELLA SCUOLA SUPERIORE DI I E II GRADO E CFP - ANNO SCOLASTICO 2021/2022.;13/04/2023;1355;0;250;1;Spese correnti;4;Trasferimenti correnti;2;Trasferimenti correnti a Famiglie;5;Altri trasferimenti a famiglie;999;Altri trasferimenti a famiglie n.a.c.;17/04/2023
1315;1;9999999;100;100;OMESSO NOMINATIVO NEL RISPETTO DELLA NORMATIVA SULLA PROTEZIONE DATI PERSONALI; ;BORSE DI STUDIO A STUDENTI DELLA SCUOLA SUPERIORE DI I E II GRADO E CFP - ANNO SCOLASTICO 2021/2022.;13/04/2023;1355;0;251;1;Spese correnti;4;Trasferimenti correnti;2;Trasferimenti correnti a Famiglie;5;Altri trasferimenti a famiglie;999;Altri trasferimenti a famiglie n.a.c.;17/04/2023
1316;1;9999999;100;100;OMESSO NOMINATIVO NEL RISPETTO DELLA NORMATIVA SULLA PROTEZIONE DATI PERSONALI; ;BORSE DI STUDIO A STUDENTI DELLA SCUOLA SUPERIORE DI I E II GRADO E CFP - ANNO SCOLASTICO 2021/2022.;13/04/2023;1355;0;252;1;Spese correnti;4;Trasferimenti correnti;2;Trasferimenti correnti a Famiglie;5;Altri trasferimenti a famiglie;999;Altri trasferimenti a famiglie n.a.c.;17/04/2023
1317;1;9999999;100;100;OMESSO NOMINATIVO NEL RISPETTO DELLA NORMATIVA SULLA PROTEZIONE DATI PERSONALI; ;BORSE DI STUDIO A STUDENTI DELLA SCUOLA SUPERIORE DI I E II GRADO E CFP - ANNO SCOLASTICO 2021/2022.;13/04/2023;1355;0;253;1;Spese correnti;4;Trasferimenti correnti;2;Trasferimenti correnti a Famiglie;5;Altri trasferimenti a famiglie;999;Altri trasferimenti a famiglie n.a.c.;17/04/2023
1318;1;9999999;100;100;OMESSO NOMINATIVO NEL RISPETTO DELLA NORMATIVA SULLA PROTEZIONE DATI PERSONALI; ;BORSE DI STUDIO A STUDENTI DELLA SCUOLA SUPERIORE DI I E II GRADO E CFP - ANNO SCOLASTICO 2021/2022.;13/04/2023;1355;0;255;1;Spese correnti;4;Trasferimenti correnti;2;Trasferimenti correnti a Famiglie;5;Altri trasferimenti a famiglie;999;Altri trasferimenti a famiglie n.a.c.;17/04/2023
1319;1;9999999;100;100;OMESSO NOMINATIVO NEL RISPETTO DELLA NORMATIVA SULLA PROTEZIONE DATI PERSONALI; ;BORSE DI STUDIO A STUDENTI DELLA SCUOLA SUPERIORE DI I E II GRADO E CFP - ANNO SCOLASTICO 2021/2022;13/04/2023;1355;0;256;1;Spese correnti;4;Trasferimenti correnti;2;Trasferimenti correnti a Famiglie;5;Altri trasferimenti a famiglie;999;Altri trasferimenti a famiglie n.a.c.;17/04/2023
1320;1;9999999;100;100;OMESSO NOMINATIVO NEL RISPETTO DELLA NORMATIVA SULLA PROTEZIONE DATI PERSONALI; ;BORSE DI STUDIO A STUDENTI DELLA SCUOLA SUPERIORE DI I E II GRADO E CFP - ANNO SCOLASTICO 2021/2022.;13/04/2023;1355;0;257;1;Spese correnti;4;Trasferimenti correnti;2;Trasferimenti correnti a Famiglie;5;Altri trasferimenti a famiglie;999;Altri trasferimenti a famiglie n.a.c.;17/04/2023
1321;1;9999999;100;100;OMESSO NOMINATIVO NEL RISPETTO DELLA NORMATIVA SULLA PROTEZIONE DATI PERSONALI; ;BORSE DI STUDIO A STUDENTI DELLA SCUOLA SUPERIORE DI I E II GRADO E CFP - ANNO SCOLASTICO 2020/2021.;13/04/2023;1355;0;258;1;Spese correnti;4;Trasferimenti correnti;2;Trasferimenti correnti a Famiglie;5;Altri trasferimenti a famiglie;999;Altri trasferimenti a famiglie n.a.c.;17/04/2023
1322;1;9999999;200;200;OMESSO NOMINATIVO NEL RISPETTO DELLA NORMATIVA SULLA PROTEZIONE DATI PERSONALI;Z8E394718A;BORSE DI STUDIO A STUDENTI DELLA SCUOLA SUPERIORE DI I E II GRADO E CFP - ANNO SCOLASTICO 2021/2022.;13/04/2023;1355;0;260;1;Spese correnti;4;Trasferimenti correnti;2;Trasferimenti correnti a Famiglie;5;Altri trasferimenti a famiglie;999;Altri trasferimenti a famiglie n.a.c.;17/04/2023
1323;1;9999999;200;200;OMESSO NOMINATIVO NEL RISPETTO DELLA NORMATIVA SULLA PROTEZIONE DATI PERSONALI; ;BORSE DI STUDIO A STUDENTI DELLA SCUOLA SUPERIORE DI I E II GRADO E CFP - ANNO SCOLASTICO 2021/2022.;13/04/2023;1355;0;261;1;Spese correnti;4;Trasferimenti correnti;2;Trasferimenti correnti a Famiglie;5;Altri trasferimenti a famiglie;999;Altri trasferimenti a famiglie n.a.c.;17/04/2023
1324;1;9999999;200;200;OMESSO NOMINATIVO NEL RISPETTO DELLA NORMATIVA SULLA PROTEZIONE DATI PERSONALI; ;BORSE DI STUDIO A STUDENTI DELLA SCUOLA SUPERIORE DI I E II GRADO E CFP - ANNO SCOLASTICO 2021/2022.;13/04/2023;1355;0;262;1;Spese correnti;4;Trasferimenti correnti;2;Trasferimenti correnti a Famiglie;5;Altri trasferimenti a famiglie;999;Altri trasferimenti a famiglie n.a.c.;17/04/2023
1325;1;9999999;200;200;OMESSO NOMINATIVO NEL RISPETTO DELLA NORMATIVA SULLA PROTEZIONE DATI PERSONALI; ;BORSE DI STUDIO A STUDENTI DELLA SCUOLA SUPERIORE DI I E II GRADO E CFP - ANNO SCOLASTICO 2021/2022.;13/04/2023;1355;0;263;1;Spese correnti;4;Trasferimenti correnti;2;Trasferimenti correnti a Famiglie;5;Altri trasferimenti a famiglie;999;Altri trasferimenti a famiglie n.a.c.;17/04/2023
1326;1;9999999;200;200;OMESSO NOMINATIVO NEL RISPETTO DELLA NORMATIVA SULLA PROTEZIONE DATI PERSONALI; ;BORSE DI STUDIO A STUDENTI DELLA SCUOLA SUPERIORE DI I E II GRADO E CFP - ANNO SCOLASTICO 2021/2022;13/04/2023;1355;0;264;1;Spese correnti;4;Trasferimenti correnti;2;Trasferimenti correnti a Famiglie;5;Altri trasferimenti a famiglie;999;Altri trasferimenti a famiglie n.a.c.;17/04/2023
1327;1;9999999;200;200;OMESSO NOMINATIVO NEL RISPETTO DELLA NORMATIVA SULLA PROTEZIONE DATI PERSONALI; ;BORSE DI STUDIO A STUDENTI DELLA SCUOLA SUPERIORE DI I E II GRADO E CFP - ANNO SCOLASTICO 2021/2022;13/04/2023;1355;0;265;1;Spese correnti;4;Trasferimenti correnti;2;Trasferimenti correnti a Famiglie;5;Altri trasferimenti a famiglie;999;Altri trasferimenti a famiglie n.a.c.;17/04/2023
1328;1;9999999;100;100;OMESSO NOMINATIVO NEL RISPETTO DELLA NORMATIVA SULLA PROTEZIONE DATI PERSONALI; ;BORSE DI STUDIO A STUDENTI DELLA SCUOLA SUPERIORE DI I E II GRADO E CFP - ANNO SCOLASTICO 2020/2021.;13/04/2023;1355;0;259;1;Spese correnti;4;Trasferimenti correnti;2;Trasferimenti correnti a Famiglie;5;Altri trasferimenti a famiglie;999;Altri trasferimenti a famiglie n.a.c.;17/04/2023
1329;1;9999999;100;100;OMESSO NOMINATIVO NEL RISPETTO DELLA NORMATIVA SULLA PROTEZIONE DATI PERSONALI; ;BORSE DI STUDIO A STUDENTI DELLA SCUOLA SUPERIORE DI I E II GRADO E CFP - ANNO SCOLASTICO 2021/2022.;13/04/2023;1355;0;254;1;Spese correnti;4;Trasferimenti correnti;2;Trasferimenti correnti a Famiglie;5;Altri trasferimenti a famiglie;999;Altri trasferimenti a famiglie n.a.c.;17/04/2023
1331;1;9999999;450;450;AIDAI VENETO; ;CONTRIBUTI ECONOMICI PER LO SVOLGIMENTO DI ATTIVIT CULTURALI RIVOLTE ALLA CITTADINANZA;17/04/2023;1859;0;127;1;Spese correnti;4;Trasferimenti correnti;4;Trasferimenti correnti a Istituzioni Sociali Private;1;Trasferimenti correnti a Istituzioni Sociali Private;1;Trasferimenti correnti a Istituzioni Sociali Private;19/04/2023
1332;1;9999999;1.000,00;1.000,00;ECHIDNA ASSOCIAZIONE CULTURALE; ;CONTRIBUTO PER LA REALIZZAZIONE DELLE ATTIVITA  PREVISTE DAL PROGETTO MUSON ANNO 2023;17/04/2023;1859;0;352;1;Spese correnti;4;Trasferimenti correnti;4;Trasferimenti correnti a Istituzioni Sociali Private;1;Trasferimenti correnti a Istituzioni Sociali Private;1;Trasferimenti correnti a Istituzioni Sociali Private;19/04/2023
1333;1;9999999;120;120;INTERAZIONE SRL;Z2D398CDA4;SALDO Fatt.n. 110/00  del 03/04/2023 ABBONAMENTO A BOLLETTINO VIA MAIL ANNO 2023;18/04/2023;121;6;73;1;Spese correnti;3;Acquisto di beni e servizi;1;Acquisto di beni;2;Altri beni di consumo;14;Stampati specialistici;20/04/2023
1334;1;9999999;122;122;I.A.C.E. SRL;Z2C39B6912;SALDO Fatt.n. 591/2023  del 30/03/2023 VERIFICA PERIODICA ASCENSORE SCUOLA MEDIA SMS;18/04/2023;548;0;82;1;Spese correnti;3;Acquisto di beni e servizi;2;Acquisto di servizi;9;Manutenzione ordinaria e riparazioni;4;Manutenzione ordinaria e riparazioni di impianti e macchinari;20/04/2023
1335;1;9999999;590;590;DPO ITALIA SRL;Z53385B962;ACCONTO Fatt.n. 20230018  del 23/03/2023 AFFIDAMENTO SERVIZIO RDP ANNO 2023;18/04/2023;833;0;924;1;Spese correnti;3;Acquisto di beni e servizi;2;Acquisto di servizi;4;Acquisto di servizi per formazione e addestramento del personale dell'ente;4;Acquisto di servizi per formazione obbligatoria;20/04/2023
1336;1;9999999;597,8;597,8;CI.TI.ESSE S.R.L.;ZBF389C379;ACCONTO Fatt.n. 354/PA  del 21/03/2023 ACQUISTO ETILOMETRO DRAGER MOD. 9510-IT MATR. ARMM-0032-BORSA IN CORDURA DI CONTENIMENTO E VISITA PERIODICA PRIMITIVA COMPRESA CON PERMUTA/ROTTAMAZIONE VECCHIO ETILOMETRO PROBATORIO DRAGER 7110 MK III;18/04/2023;1138;0;952;1;Spese correnti;3;Acquisto di beni e servizi;2;Acquisto di servizi;9;Manutenzione ordinaria e riparazioni;5;Manutenzione ordinaria e riparazioni di attrezzature;20/04/2023
1337;1;9999999;183;183;VENICE AMBITEC SCARL;Z383A482F5;SALDO Fatt.n. 15/001  del 06/04/2023 VERIFICA STATICAVISIVA SU PLATANO IN VIA COGNARO;18/04/2023;2549;0;239;1;Spese correnti;3;Acquisto di beni e servizi;2;Acquisto di servizi;99;Altri servizi;9;Acquisto di sevizi per verde e arredo urbano;20/04/2023
1338;1;9999999;6.588,00;6.588,00;NOISICURI PROJECT S.R.L.;Z8238FAD8B;SALDO Fatt.n. 1/106  del 24/03/2023 SISTEMA DI VIDEOSORVEGLIANZA  - BOXTY -;18/04/2023;8800;1;1064;2;Spese in conto capitale;2;Investimenti fissi lordi e acquisto di terreni;1;Beni materiali;4;Impianti e macchinari;2;Impianti;20/04/2023
1339;1;9999999;4.880,00;4.880,00;CI.TI.ESSE S.R.L.;ZBF389C379;SALDO Fatt.n. 354/PA  del 21/03/2023 ACQUISTO ETILOMETRO DRAGER MOD. 9510-IT MATR. ARMM-0032-BORSA IN CORDURA DI CONTENIMENTO E VISITA PERIODICA PRIMITIVA COMPRESA CON PERMUTA/ROTTAMAZIONE VECCHIO ETILOMETRO PROBATORIO DRAGER 7110 MK III;18/04/2023;1121;6;953;1;Spese correnti;3;Acquisto di beni e servizi;1;Acquisto di beni;2;Altri beni di consumo;8;Strumenti tecnico-specialistici non sanitari;20/04/2023
1340;1;9999999;3.416,00;3.416,00;DPO ITALIA SRL;ZB2385B97F;SALDO Fatt.n. 20230018  del 23/03/2023 AFFIDAMENTO SERVIZIO RDP ANNO 2023;18/04/2023;740;0;923;1;Spese correnti;3;Acquisto di beni e servizi;2;Acquisto di servizi;11;Prestazioni professionali e specialistiche;999;Altre prestazioni professionali e specialistiche n.a.c.;20/04/2023
1341;1;9999999;1.449,20;1.449,20;CENTRO BIBLIOTECHE LOVAT SRL;Z61399458C;SALDO Fatt.n. 231-23  del 28/03/2023 VOLUMI PER BIBLIOTECA COMUNALE;18/04/2023;1820;0;56;1;Spese correnti;3;Acquisto di beni e servizi;1;Acquisto di beni;1;Giornali, riviste e pubblicazioni;2;Pubblicazioni;20/04/2023
1342;1;9999999;2.944,07;2.944,07;ARTEA  SNC DI LION & SALVIATO;90182921FD;SALDO Fatt.n. 07-2023/PA  del 25/03/2023 OPERAZIONI EFFETTUATE NEI CIMITERI DEL COMUNE DI SANTA MARIA DI SALA NEL MESE DI FEBBRAIO 2023;18/04/2023;4438;0;1152;1;Spese correnti;3;Acquisto di beni e servizi;2;Acquisto di servizi;9;Manutenzione ordinaria e riparazioni;8;Manutenzione ordinaria e riparazioni di beni immobili;20/04/2023
1343;1;9999999;9.638,00;9.638,00;E.C.I. ELETTRONICA SRL;ZED38FACF8;SALDO Fatt.n. 000713/23  del 27/03/2023 LAVORI DI INSTALLAZIONE KIT MOBILE CON TELECAMERA A CONTRASTO DIFFUSIONE SOSTANZE STUPEFACENTI NELLE SCUOLE;18/04/2023;8800;1;1063;2;Spese in conto capitale;2;Investimenti fissi lordi e acquisto di terreni;1;Beni materiali;4;Impianti e macchinari;2;Impianti;20/04/2023
1344;1;0;200;200;OMESSO NOMINATIVO NEL RISPETTO DELLA NORMATIVA SULLA PROTEZIONE DATI PERSONALI; ;APRILE 2023 MINIMO VITALE;18/04/2023;4157;0;276;1;Spese correnti;4;Trasferimenti correnti;2;Trasferimenti correnti a Famiglie;2;Interventi assistenziali;999;Altri assegni e sussidi assistenziali;18/04/2023
1345;1;9999999;100;100;OMESSO NOMINATIVO NEL RISPETTO DELLA NORMATIVA SULLA PROTEZIONE DATI PERSONALI; ;APRILE 2023 MINIMO VITALE;18/04/2023;4157;0;375;1;Spese correnti;4;Trasferimenti correnti;2;Trasferimenti correnti a Famiglie;2;Interventi assistenziali;999;Altri assegni e sussidi assistenziali;05/05/2023
1346;1;9999999;300;300;OMESSO NOMINATIVO NEL RISPETTO DELLA NORMATIVA SULLA PROTEZIONE DATI PERSONALI; ;APRILE 2023 MINIMO VITALE E ARRETRATI MARZO 2023;18/04/2023;4157;0;372;1;Spese correnti;4;Trasferimenti correnti;2;Trasferimenti correnti a Famiglie;2;Interventi assistenziali;999;Altri assegni e sussidi assistenziali;26/04/2023
1347;1;9999999;150;150;OMESSO NOMINATIVO NEL RISPETTO DELLA NORMATIVA SULLA PROTEZIONE DATI PERSONALI; ;APRILE 2023 MINIMO VITALE;18/04/2023;4157;0;104;1;Spese correnti;4;Trasferimenti correnti;2;Trasferimenti correnti a Famiglie;2;Interventi assistenziali;999;Altri assegni e sussidi assistenziali;10/05/2023
1348;1;9999999;300;300;OMESSO NOMINATIVO NEL RISPETTO DELLA NORMATIVA SULLA PROTEZIONE DATI PERSONALI; ;APRILE 2023 MINIMO VITALE;18/04/2023;4157;0;376;1;Spese correnti;4;Trasferimenti correnti;2;Trasferimenti correnti a Famiglie;2;Interventi assistenziali;999;Altri assegni e sussidi assistenziali;24/04/2023
1349;1;9999999;150;150;OMESSO NOMINATIVO NEL RISPETTO DELLA NORMATIVA SULLA PROTEZIONE DATI PERSONALI; ;APRILE 2023 MINIMO VITALE;18/04/2023;4157;0;105;1;Spese correnti;4;Trasferimenti correnti;2;Trasferimenti correnti a Famiglie;2;Interventi assistenziali;999;Altri assegni e sussidi assistenziali;15/05/2023
1350;1;9999999;400;400;OMESSO NOMINATIVO NEL RISPETTO DELLA NORMATIVA SULLA PROTEZIONE DATI PERSONALI; ;APRILE 2023 MINIMO VITALE;18/04/2023;4157;0;377;1;Spese correnti;4;Trasferimenti correnti;2;Trasferimenti correnti a Famiglie;2;Interventi assistenziali;999;Altri assegni e sussidi assistenziali;17/05/2023
1351;1;9999999;500;500;OMESSO NOMINATIVO NEL RISPETTO DELLA NORMATIVA SULLA PROTEZIONE DATI PERSONALI; ;APRILE 2023 MINIMO VITALE;18/04/2023;4157;0;373;1;Spese correnti;4;Trasferimenti correnti;2;Trasferimenti correnti a Famiglie;2;Interventi assistenziali;999;Altri assegni e sussidi assistenziali;12/05/2023
1352;1;9999999;150;150;OMESSO NOMINATIVO NEL RISPETTO DELLA NORMATIVA SULLA PROTEZIONE DATI PERSONALI; ;APRILE 2023 MINIMO VITALE;18/04/2023;4157;0;280;1;Spese correnti;4;Trasferimenti correnti;2;Trasferimenti correnti a Famiglie;2;Interventi assistenziali;999;Altri assegni e sussidi assistenziali;10/05/2023
1353;1;9999999;700;700;OMESSO NOMINATIVO NEL RISPETTO DELLA NORMATIVA SULLA PROTEZIONE DATI PERSONALI; ;APRILE 2023 PROGETTO A RILEVANZA SOCIALE -;18/04/2023;4157;0;65;1;Spese correnti;4;Trasferimenti correnti;2;Trasferimenti correnti a Famiglie;2;Interventi assistenziali;999;Altri assegni e sussidi assistenziali;20/04/2023
1354;1;9999999;160;160;OMESSO NOMINATIVO NEL RISPETTO DELLA NORMATIVA SULLA PROTEZIONE DATI PERSONALI; ;APRILE 2023 MINIMO VITALE E ARRETRATI MARZO;18/04/2023;3757;0;382;1;Spese correnti;4;Trasferimenti correnti;2;Trasferimenti correnti a Famiglie;5;Altri trasferimenti a famiglie;999;Altri trasferimenti a famiglie n.a.c.;09/05/2023
1355;1;9999999;700;700;OMESSO NOMINATIVO NEL RISPETTO DELLA NORMATIVA SULLA PROTEZIONE DATI PERSONALI; ;APRILE 2023 MINIMO VITALE;18/04/2023;4157;0;378;1;Spese correnti;4;Trasferimenti correnti;2;Trasferimenti correnti a Famiglie;2;Interventi assistenziali;999;Altri assegni e sussidi assistenziali;21/04/2023
1356;1;9999999;200;200;OMESSO NOMINATIVO NEL RISPETTO DELLA NORMATIVA SULLA PROTEZIONE DATI PERSONALI; ;APRILE 2023 MINIMO VITALE E ARRETRATI MARZO;18/04/2023;4157;0;374;1;Spese correnti;4;Trasferimenti correnti;2;Trasferimenti correnti a Famiglie;2;Interventi assistenziali;999;Altri assegni e sussidi assistenziali;18/05/2023
1357;1;9999999;200;200;OMESSO NOMINATIVO NEL RISPETTO DELLA NORMATIVA SULLA PROTEZIONE DATI PERSONALI; ;APRILE 2023 MINIMO VITALE;18/04/2023;4157;0;379;1;Spese correnti;4;Trasferimenti correnti;2;Trasferimenti correnti a Famiglie;2;Interventi assistenziali;999;Altri assegni e sussidi assistenziali;12/05/2023
1358;1;9999999;150;150;OMESSO NOMINATIVO NEL RISPETTO DELLA NORMATIVA SULLA PROTEZIONE DATI PERSONALI; ;APRILE 2023 MINIMO VITALE;18/04/2023;4157;0;380;1;Spese correnti;4;Trasferimenti correnti;2;Trasferimenti correnti a Famiglie;2;Interventi assistenziali;999;Altri assegni e sussidi assistenziali;04/05/2023
1359;1;9999999;150;150;OMESSO NOMINATIVO NEL RISPETTO DELLA NORMATIVA SULLA PROTEZIONE DATI PERSONALI; ;APRILE 2023 MINIMO VITALE;18/04/2023;4157;0;284;1;Spese correnti;4;Trasferimenti correnti;2;Trasferimenti correnti a Famiglie;2;Interventi assistenziali;999;Altri assegni e sussidi assistenziali;20/04/2023
1360;1;9999999;10.566,78;10.566,78;DIVERSI-AMMINISTRATORI COM.LI; ;STIPENDI MESE DI APRILE 23;20/04/2023;30;99;0;1;Spese correnti;3;Acquisto di beni e servizi;2;Acquisto di servizi;1;Organi e incarichi istituzionali dell'amministrazione;1;Organi istituzionali dell'amministrazione - Indennità;26/04/2023
1432;1;9999999;359,9;359,9;DOLOMITI ENERGIA SPA;9127403B39;SALDO Fatt.n. 42301512105  del 30/03/2023 FEBBRAIO 2023 CONSUMI ALLOGGIO DON GALLERANI CALTANA;20/04/2023;134;30;231;1;Spese correnti;3;Acquisto di beni e servizi;2;Acquisto di servizi;5;Utenze e canoni;6;Gas;24/04/2023
1433;1;9999999;2,92;2,92;DOLOMITI ENERGIA SPA;9127403B39;SALDO Fatt.n. 42301512104  del 30/03/2023 FEBBRAIO 2023 CONSUMI IMMOBILE VIA OLIMPIA SMS;20/04/2023;134;30;231;1;Spese correnti;3;Acquisto di beni e servizi;2;Acquisto di servizi;5;Utenze e canoni;6;Gas;24/04/2023
1434;1;9999999;1.796,63;1.796,63;DOLOMITI ENERGIA SPA;9127403B39;ACCONTO Fatt.n. 42301512099  del 30/03/2023 FEBBRAIO 2023 CONSUMI VILLA FARSETTI;20/04/2023;134;30;231;1;Spese correnti;3;Acquisto di beni e servizi;2;Acquisto di servizi;5;Utenze e canoni;6;Gas;24/04/2023
1435;1;9999999;3.655,17;3.655,17;DOLOMITI ENERGIA SPA;9127403B39;SALDO Fatt.n. 42301512102  del 30/03/2023 FEBBRAIO 2023 CONSUMI SEDE MUNICIPALE;20/04/2023;134;31;232;1;Spese correnti;3;Acquisto di beni e servizi;2;Acquisto di servizi;5;Utenze e canoni;6;Gas;24/04/2023
1436;1;9999999;1.923,71;1.923,71;DOLOMITI ENERGIA SPA;9127403B39;ACCONTO Fatt.n. 42301512098  del 30/03/2023 FEBBRAIO 2023 CONSUMI SC. ELEM. - PALESTRA VETERNIGO;20/04/2023;134;31;232;1;Spese correnti;3;Acquisto di beni e servizi;2;Acquisto di servizi;5;Utenze e canoni;6;Gas;24/04/2023
1437;1;9999999;10.271,45;10.271,45;DOLOMITI ENERGIA SPA;9127403B39;SALDO Fatt.n. 42301512106  del 30/03/2023 FEBBRAIO 2023 CONSUMI SC. ELEM - SC. MEDIA SMS;20/04/2023;1334;30;233;1;Spese correnti;3;Acquisto di beni e servizi;2;Acquisto di servizi;5;Utenze e canoni;6;Gas;24/04/2023
1438;1;9999999;4.728,55;4.728,55;DOLOMITI ENERGIA SPA;9127403B39;ACCONTO Fatt.n. 42301512100  del 30/03/2023 FEBBRAIO 2023 CONSUMI SC. ELEM. CALTANA;20/04/2023;1334;30;233;1;Spese correnti;3;Acquisto di beni e servizi;2;Acquisto di servizi;5;Utenze e canoni;6;Gas;24/04/2023
1439;1;9999999;464,19;464,19;DOLOMITI ENERGIA SPA;9127403B39;SALDO Fatt.n. 42301512100  del 30/03/2023 FEBBRAIO 2023 CONSUMI SC. ELEM. CALTANA;20/04/2023;1334;30;387;1;Spese correnti;3;Acquisto di beni e servizi;2;Acquisto di servizi;5;Utenze e canoni;6;Gas;24/04/2023
1440;1;9999999;1.734,38;1.734,38;DOLOMITI ENERGIA SPA;9127403B39;ACCONTO Fatt.n. 42301508962  del 30/03/2023 FEBBRAIO 2023 CONSUMI PALESTRA CALTANA;20/04/2023;1334;30;387;1;Spese correnti;3;Acquisto di beni e servizi;2;Acquisto di servizi;5;Utenze e canoni;6;Gas;24/04/2023
1441;1;9999999;1.310,95;1.310,95;DOLOMITI ENERGIA SPA;9127403B39;ACCONTO Fatt.n. 42301512107  del 30/03/2023 FEBBRAIO 2023 CONSUMI PALESTRA SMS;20/04/2023;1334;30;387;1;Spese correnti;3;Acquisto di beni e servizi;2;Acquisto di servizi;5;Utenze e canoni;6;Gas;24/04/2023
1442;1;9999999;1.392,00;1.392,00;DOLOMITI ENERGIA SPA;9127403B39;ACCONTO Fatt.n. 42301512097  del 30/03/2023 FEBBRAIO 2023 CONSUMI SC. ELEM - PALESTRA STIGLIANO;20/04/2023;1334;30;387;1;Spese correnti;3;Acquisto di beni e servizi;2;Acquisto di servizi;5;Utenze e canoni;6;Gas;24/04/2023
1443;1;9999999;1.490,55;1.490,55;DOLOMITI ENERGIA SPA;9127403B39;ACCONTO Fatt.n. 42301512097  del 30/03/2023 FEBBRAIO 2023 CONSUMI SC. ELEM - PALESTRA STIGLIANO;20/04/2023;1334;30;387;1;Spese correnti;3;Acquisto di beni e servizi;2;Acquisto di servizi;5;Utenze e canoni;6;Gas;24/04/2023
1444;1;9999999;1.185,00;1.185,00;DOLOMITI ENERGIA SPA;9127403B39;ACCONTO Fatt.n. 42301512103  del 30/03/2023 FEBBRAIO 2023 CONSUMI SC. ELEM - PALESTRA - ASILO S.ANGELO;20/04/2023;1334;30;387;1;Spese correnti;3;Acquisto di beni e servizi;2;Acquisto di servizi;5;Utenze e canoni;6;Gas;24/04/2023
1445;1;9999999;3.555,40;3.555,40;DOLOMITI ENERGIA SPA;9127403B39;ACCONTO Fatt.n. 42301512103  del 30/03/2023 FEBBRAIO 2023 CONSUMI SC. ELEM - PALESTRA - ASILO S.ANGELO;20/04/2023;1334;30;387;1;Spese correnti;3;Acquisto di beni e servizi;2;Acquisto di servizi;5;Utenze e canoni;6;Gas;24/04/2023
1446;1;9999999;1.421,00;1.421,00;DOLOMITI ENERGIA SPA;9127403B39;ACCONTO Fatt.n. 42301512101  del 30/03/2023 FEBBRAIO 2023 CONSUMI SC. ELEM - PALESTRA CASELLE;20/04/2023;1334;30;387;1;Spese correnti;3;Acquisto di beni e servizi;2;Acquisto di servizi;5;Utenze e canoni;6;Gas;24/04/2023
1447;1;9999999;4.000,00;4.000,00;DOLOMITI ENERGIA SPA;9127403B39;ACCONTO Fatt.n. 42301512099  del 30/03/2023 FEBBRAIO 2023 CONSUMI VILLA FARSETTI;20/04/2023;1834;0;234;1;Spese correnti;3;Acquisto di beni e servizi;2;Acquisto di servizi;5;Utenze e canoni;6;Gas;24/04/2023
1448;1;9999999;856,65;856,65;DOLOMITI ENERGIA SPA;9127403B39;SALDO Fatt.n. 42301508963  del 30/03/2023 FEBBRAIO 2023 CONSUMI IMP. SPORT. PARROCCHIA CASELLE;20/04/2023;1934;0;235;1;Spese correnti;3;Acquisto di beni e servizi;2;Acquisto di servizi;5;Utenze e canoni;6;Gas;24/04/2023
1449;1;9999999;1.734,38;1.734,38;DOLOMITI ENERGIA SPA;9127403B39;SALDO Fatt.n. 42301508962  del 30/03/2023 FEBBRAIO 2023 CONSUMI PALESTRA CALTANA;20/04/2023;1934;0;235;1;Spese correnti;3;Acquisto di beni e servizi;2;Acquisto di servizi;5;Utenze e canoni;6;Gas;24/04/2023
1450;1;9999999;1.310,95;1.310,95;DOLOMITI ENERGIA SPA;9127403B39;SALDO Fatt.n. 42301512107  del 30/03/2023 FEBBRAIO 2023 CONSUMI PALESTRA SMS;20/04/2023;1934;0;235;1;Spese correnti;3;Acquisto di beni e servizi;2;Acquisto di servizi;5;Utenze e canoni;6;Gas;24/04/2023
1451;1;9999999;2.088,00;2.088,00;DOLOMITI ENERGIA SPA;9127403B39;SALDO Fatt.n. 42301512097  del 30/03/2023 FEBBRAIO 2023 CONSUMI SC. ELEM - PALESTRA STIGLIANO;20/04/2023;1934;0;235;1;Spese correnti;3;Acquisto di beni e servizi;2;Acquisto di servizi;5;Utenze e canoni;6;Gas;24/04/2023
1452;1;9999999;1.185,00;1.185,00;DOLOMITI ENERGIA SPA;9127403B39;SALDO Fatt.n. 42301512103  del 30/03/2023 FEBBRAIO 2023 CONSUMI SC. ELEM - PALESTRA - ASILO S.ANGELO;20/04/2023;1934;0;235;1;Spese correnti;3;Acquisto di beni e servizi;2;Acquisto di servizi;5;Utenze e canoni;6;Gas;24/04/2023
1453;1;9999999;1.421,00;1.421,00;DOLOMITI ENERGIA SPA;9127403B39;ACCONTO Fatt.n. 42301512101  del 30/03/2023 FEBBRAIO 2023 CONSUMI SC. ELEM - PALESTRA CASELLE;20/04/2023;1934;0;235;1;Spese correnti;3;Acquisto di beni e servizi;2;Acquisto di servizi;5;Utenze e canoni;6;Gas;24/04/2023
1454;1;9999999;1.175,00;1.175,00;DOLOMITI ENERGIA SPA;9127403B39;ACCONTO Fatt.n. 42301512098  del 30/03/2023 FEBBRAIO 2023 CONSUMI SC. ELEM. - PALESTRA VETERNIGO;20/04/2023;1934;0;235;1;Spese correnti;3;Acquisto di beni e servizi;2;Acquisto di servizi;5;Utenze e canoni;6;Gas;24/04/2023
1455;1;9999999;1.175,00;1.175,00;DOLOMITI ENERGIA SPA;9127403B39;SALDO Fatt.n. 42301512098  del 30/03/2023 FEBBRAIO 2023 CONSUMI SC. ELEM. - PALESTRA VETERNIGO;20/04/2023;1934;0;235;1;Spese correnti;3;Acquisto di beni e servizi;2;Acquisto di servizi;5;Utenze e canoni;6;Gas;24/04/2023
1456;1;9999999;4.263,42;4.263,42;DOLOMITI ENERGIA SPA;9127403B39;SALDO Fatt.n. 42301512101  del 30/03/2023 FEBBRAIO 2023 CONSUMI SC. ELEM - PALESTRA CASELLE;20/04/2023;1934;0;389;1;Spese correnti;3;Acquisto di beni e servizi;2;Acquisto di servizi;5;Utenze e canoni;6;Gas;24/04/2023
1457;1;9999999;841,91;841,91;DOLOMITI ENERGIA SPA;9127403B39;SALDO Fatt.n. 42301508961  del 30/03/2023 FEBBRAIO 2023 CONSUMI MAGAZZINO COMUNALE;20/04/2023;3534;0;236;1;Spese correnti;3;Acquisto di beni e servizi;2;Acquisto di servizi;5;Utenze e canoni;6;Gas;24/04/2023
1458;1;9999999;2.000,00;2.000,00;DOLOMITI ENERGIA SPA;9127403B39;SALDO Fatt.n. 42301512099  del 30/03/2023 FEBBRAIO 2023 CONSUMI VILLA FARSETTI;20/04/2023;4234;0;237;1;Spese correnti;3;Acquisto di beni e servizi;2;Acquisto di servizi;5;Utenze e canoni;6;Gas;24/04/2023
1459;1;9999999;306,24;306,24;C.E.I.F. DI BESSEGA DANIELE;Z2A39B329B;SALDO Fatt.n. 1-3  del 31/03/2023 MATERIALE VARIO DI FERRAMENTA PER MANUTENZIONI;20/04/2023;522;0;81;1;Spese correnti;3;Acquisto di beni e servizi;1;Acquisto di beni;2;Altri beni di consumo;999;Altri beni e materiali di consumo n.a.c.;24/04/2023
1460;1;9999999;972,34;972,34;DISMA SAS DI ANGELO RIGO & C.;Z3439735B1;SALDO Fatt.n. 025/2023  del 31/03/2023 SERVIZIO INFORMA GIOVANI MARZO 2023;20/04/2023;2049;0;47;1;Spese correnti;3;Acquisto di beni e servizi;2;Acquisto di servizi;99;Altri servizi;999;Altri servizi diversi n.a.c.;24/04/2023
1461;1;9999999;750;750;OMESSO NOMINATIVO NEL RISPETTO DELLA NORMATIVA SULLA PROTEZIONE DATI PERSONALI; ;GENNAIO -FEBBRAIO - MARZO 2023 RATA RIA;20/04/2023;3957;54;124;1;Spese correnti;4;Trasferimenti correnti;2;Trasferimenti correnti a Famiglie;5;Altri trasferimenti a famiglie;999;Altri trasferimenti a famiglie n.a.c.;24/04/2023
1462;1;9999999;250;250;OMESSO NOMINATIVO NEL RISPETTO DELLA NORMATIVA SULLA PROTEZIONE DATI PERSONALI; ;RATA MARZO 2023 PROGETTO RIA;20/04/2023;3957;54;124;1;Spese correnti;4;Trasferimenti correnti;2;Trasferimenti correnti a Famiglie;5;Altri trasferimenti a famiglie;999;Altri trasferimenti a famiglie n.a.c.;24/04/2023
1463;1;9999999;250;250;OMESSO NOMINATIVO NEL RISPETTO DELLA NORMATIVA SULLA PROTEZIONE DATI PERSONALI; ;RATA MARZO 2023 PROGETTO RIA;20/04/2023;3957;54;124;1;Spese correnti;4;Trasferimenti correnti;2;Trasferimenti correnti a Famiglie;5;Altri trasferimenti a famiglie;999;Altri trasferimenti a famiglie n.a.c.;27/04/2023
1464;1;9999999;250;250;OMESSO NOMINATIVO NEL RISPETTO DELLA NORMATIVA SULLA PROTEZIONE DATI PERSONALI; ;RATA MARZO 2023 PROGETTO RIA;20/04/2023;3957;54;124;1;Spese correnti;4;Trasferimenti correnti;2;Trasferimenti correnti a Famiglie;5;Altri trasferimenti a famiglie;999;Altri trasferimenti a famiglie n.a.c.;27/04/2023
1465;1;9999999;250;250;OMESSO NOMINATIVO NEL RISPETTO DELLA NORMATIVA SULLA PROTEZIONE DATI PERSONALI; ;RATA MARZO 2023 PROGETTO RIA;20/04/2023;3957;54;124;1;Spese correnti;4;Trasferimenti correnti;2;Trasferimenti correnti a Famiglie;5;Altri trasferimenti a famiglie;999;Altri trasferimenti a famiglie n.a.c.;04/05/2023
1466;1;9999999;340;340;OMESSO NOMINATIVO NEL RISPETTO DELLA NORMATIVA SULLA PROTEZIONE DATI PERSONALI; ;RETTA GENNAIO FEBBRAIO 2023 MINORE M.D.J.;20/04/2023;3757;0;288;1;Spese correnti;4;Trasferimenti correnti;2;Trasferimenti correnti a Famiglie;5;Altri trasferimenti a famiglie;999;Altri trasferimenti a famiglie n.a.c.;24/04/2023
1467;1;9999999;340;340;OMESSO NOMINATIVO NEL RISPETTO DELLA NORMATIVA SULLA PROTEZIONE DATI PERSONALI; ;RETTA GENNAIO FEBBRAIO 2023 MINORE S.L.;20/04/2023;3757;0;111;1;Spese correnti;4;Trasferimenti correnti;2;Trasferimenti correnti a Famiglie;5;Altri trasferimenti a famiglie;999;Altri trasferimenti a famiglie n.a.c.;24/04/2023
1468;1;9999999;340;340;OMESSO NOMINATIVO NEL RISPETTO DELLA NORMATIVA SULLA PROTEZIONE DATI PERSONALI; ;RETTA GENNAIO FEBBRAIO 2023 MINORE B.S.C.;20/04/2023;3757;0;287;1;Spese correnti;4;Trasferimenti correnti;2;Trasferimenti correnti a Famiglie;5;Altri trasferimenti a famiglie;999;Altri trasferimenti a famiglie n.a.c.;24/04/2023
1469;1;9999999;340;340;OMESSO NOMINATIVO NEL RISPETTO DELLA NORMATIVA SULLA PROTEZIONE DATI PERSONALI; ;RETTA GENNAIO FEBBRAIO 2023  MINORE A.S.;20/04/2023;3757;0;112;1;Spese correnti;4;Trasferimenti correnti;2;Trasferimenti correnti a Famiglie;5;Altri trasferimenti a famiglie;999;Altri trasferimenti a famiglie n.a.c.;24/04/2023
1470;1;9999999;340;340;OMESSO NOMINATIVO NEL RISPETTO DELLA NORMATIVA SULLA PROTEZIONE DATI PERSONALI; ;RETTA GENNAIO FEBBRAIO MINORE 2023 H.R.;20/04/2023;3757;0;110;1;Spese correnti;4;Trasferimenti correnti;2;Trasferimenti correnti a Famiglie;5;Altri trasferimenti a famiglie;999;Altri trasferimenti a famiglie n.a.c.;24/04/2023
1471;1;9999999;120;120;OMESSO NOMINATIVO NEL RISPETTO DELLA NORMATIVA SULLA PROTEZIONE DATI PERSONALI; ;RETTA GENNAIO 2023 MINORE T.E.;20/04/2023;3757;0;931;1;Spese correnti;4;Trasferimenti correnti;2;Trasferimenti correnti a Famiglie;5;Altri trasferimenti a famiglie;999;Altri trasferimenti a famiglie n.a.c.;24/04/2023
1472;1;9999999;100;100;OMESSO NOMINATIVO NEL RISPETTO DELLA NORMATIVA SULLA PROTEZIONE DATI PERSONALI; ;RETTA FEBBRAIO 2023 MINORE B.N.;20/04/2023;3757;0;285;1;Spese correnti;4;Trasferimenti correnti;2;Trasferimenti correnti a Famiglie;5;Altri trasferimenti a famiglie;999;Altri trasferimenti a famiglie n.a.c.;24/04/2023
1473;1;9999999;100;100;OMESSO NOMINATIVO NEL RISPETTO DELLA NORMATIVA SULLA PROTEZIONE DATI PERSONALI; ;RETTA FEBBRAIO 2023 MINORE B.A.;20/04/2023;3757;0;286;1;Spese correnti;4;Trasferimenti correnti;2;Trasferimenti correnti a Famiglie;5;Altri trasferimenti a famiglie;999;Altri trasferimenti a famiglie n.a.c.;24/04/2023
1474;1;9999999;200;200;OMESSO NOMINATIVO NEL RISPETTO DELLA NORMATIVA SULLA PROTEZIONE DATI PERSONALI; ;RETTA GENNAIO FEBBRAIO 2023 MINORE E B.Y.;20/04/2023;3757;0;108;1;Spese correnti;4;Trasferimenti correnti;2;Trasferimenti correnti a Famiglie;5;Altri trasferimenti a famiglie;999;Altri trasferimenti a famiglie n.a.c.;24/04/2023
1475;1;9999999;340;340;OMESSO NOMINATIVO NEL RISPETTO DELLA NORMATIVA SULLA PROTEZIONE DATI PERSONALI; ;RETTA GENNAIO FEBBRAIO 2023 MINORE S.Z.;20/04/2023;3757;0;109;1;Spese correnti;4;Trasferimenti correnti;2;Trasferimenti correnti a Famiglie;5;Altri trasferimenti a famiglie;999;Altri trasferimenti a famiglie n.a.c.;24/04/2023
1476;1;9999999;200;200;OMESSO NOMINATIVO NEL RISPETTO DELLA NORMATIVA SULLA PROTEZIONE DATI PERSONALI; ;TERZA RATA RETTA  SERVIZIO DOPOSCUOLA GENNAIO 2023 MINORE G.F.;20/04/2023;3757;0;291;1;Spese correnti;4;Trasferimenti correnti;2;Trasferimenti correnti a Famiglie;5;Altri trasferimenti a famiglie;999;Altri trasferimenti a famiglie n.a.c.;24/04/2023
1477;1;9999999;320;320;OMESSO NOMINATIVO NEL RISPETTO DELLA NORMATIVA SULLA PROTEZIONE DATI PERSONALI; ;TERZA RATA RETTA DOPOSCUOLA MINORE M.K.;20/04/2023;3757;0;289;1;Spese correnti;4;Trasferimenti correnti;2;Trasferimenti correnti a Famiglie;5;Altri trasferimenti a famiglie;999;Altri trasferimenti a famiglie n.a.c.;24/04/2023
1478;1;9999999;430;430;OMESSO NOMINATIVO NEL RISPETTO DELLA NORMATIVA SULLA PROTEZIONE DATI PERSONALI; ;RETTA DOPOSCUOLA GENNAIO FEBBRAIO 2023 MINORE M.E.M.;20/04/2023;3757;0;290;1;Spese correnti;4;Trasferimenti correnti;2;Trasferimenti correnti a Famiglie;5;Altri trasferimenti a famiglie;999;Altri trasferimenti a famiglie n.a.c.;24/04/2023
1479;1;9999999;200;200;OMESSO NOMINATIVO NEL RISPETTO DELLA NORMATIVA SULLA PROTEZIONE DATI PERSONALI; ;RETTA DOPOSCUOLA GENNAIO FEBBRAIO 2023 MINORE M.L.F.;20/04/2023;3757;0;113;1;Spese correnti;4;Trasferimenti correnti;2;Trasferimenti correnti a Famiglie;5;Altri trasferimenti a famiglie;999;Altri trasferimenti a famiglie n.a.c.;24/04/2023
1480;1;9999999;200;200;OMESSO NOMINATIVO NEL RISPETTO DELLA NORMATIVA SULLA PROTEZIONE DATI PERSONALI; ;RETTA DOPOSCUOLA GENNAIO FEBBRAIO 2023 MINORE M.L.F.;20/04/2023;3757;0;113;1;Spese correnti;4;Trasferimenti correnti;2;Trasferimenti correnti a Famiglie;5;Altri trasferimenti a famiglie;999;Altri trasferimenti a famiglie n.a.c.;24/04/2023
1481;1;9999999;250;250;OMESSO NOMINATIVO NEL RISPETTO DELLA NORMATIVA SULLA PROTEZIONE DATI PERSONALI; ;ULTERIORE CONTRIBUTO ORDINARIO;20/04/2023;4157;0;393;1;Spese correnti;4;Trasferimenti correnti;2;Trasferimenti correnti a Famiglie;2;Interventi assistenziali;999;Altri assegni e sussidi assistenziali;04/05/2023
1484;1;9999999;29,27;29,27;C/C/P 15453301 SERVIZIO DI TESORERIA COM; ;SPESE GESTIONE CONTO CORRENTE  POSTALE 15453301 FEBBRAIO 2023;26/04/2023;146;0;52;1;Spese correnti;3;Acquisto di beni e servizi;2;Acquisto di servizi;17;Servizi finanziari;999;Spese per servizi finanziari n.a.c.;02/05/2023
1485;1;9999999;28,11;28,11;C/C/P 15453301 SERVIZIO DI TESORERIA COM; ;SPESE GESTIONE CONTO CORRENTE  POSTALE 15453301 MARZO 2023;26/04/2023;146;0;52;1;Spese correnti;3;Acquisto di beni e servizi;2;Acquisto di servizi;17;Servizi finanziari;999;Spese per servizi finanziari n.a.c.;02/05/2023
1486;1;9999999;100;100;ASILO INFANTILE F.T.CROVATO; ;CONTRIBUTI ECONOMICI PER LA PARTECIPAZIONE AL CONCORSO APERTO A TUTTI I BAMBINI E RAGAZZI,TITOLATO QUAL E IL DONO DI NATALE.. COSA PORTI NEL CUORE TUTTO LANNO ....;26/04/2023;1259;0;240;1;Spese correnti;4;Trasferimenti correnti;4;Trasferimenti correnti a Istituzioni Sociali Private;1;Trasferimenti correnti a Istituzioni Sociali Private;1;Trasferimenti correnti a Istituzioni Sociali Private;02/05/2023
1487;1;9999999;800;800;IST.COMPR.STAT.F.E P.CORDENONS; ;CONTRIBUTI ECONOMICI PER LA PARTECIPAZIONE AL CONCORSO APERTO A TUTTI I BAMBINI E RAGAZZI,TITOLATO QUAL E IL DONO DI NATALE COSA PORTI NEL CUORE TUTTO LANNO;26/04/2023;1350;0;241;1;Spese correnti;4;Trasferimenti correnti;1;Trasferimenti correnti a Amministrazioni Pubbliche;1;Trasferimenti correnti a Amministrazioni Centrali;2;Trasferimenti correnti a Ministero dell'Istruzione - Istituzioni scolastiche;02/05/2023
1488;1;9999999;1.400,00;1.400,00;OMESSO NOMINATIVO NEL RISPETTO DELLA NORMATIVA SULLA PROTEZIONE DATI PERSONALI; ;MARZO APRILE 2023 INTEGRAZIONE RETTA CASA DI RIPOSO RELAXXI DI NOALE;26/04/2023;3844;0;363;1;Spese correnti;3;Acquisto di beni e servizi;2;Acquisto di servizi;15;Contratti di servizio pubblico;8;Contratti di servizio di assistenza sociale residenziale e semiresidenziale;02/05/2023
1489;1;9999999;511,7;1.428,20;OMESSO NOMINATIVO NEL RISPETTO DELLA NORMATIVA SULLA PROTEZIONE DATI PERSONALI; ;MARZO 2023  INTEGRAZIONE RETTA CASA DI RIPOSO IPAB L.MARIUTTO DI MIRANO -;26/04/2023;3844;0;364;1;Spese correnti;3;Acquisto di beni e servizi;2;Acquisto di servizi;15;Contratti di servizio pubblico;8;Contratti di servizio di assistenza sociale residenziale e semiresidenziale;02/05/2023
1489;2;9999999;916,5;1.428,20;OMESSO NOMINATIVO NEL RISPETTO DELLA NORMATIVA SULLA PROTEZIONE DATI PERSONALI; ;APRILE 2023  INTEGRAZIONE RETTA CASA DI RIPOSO IPAB L.MARIUTTO DI MIRANO -;26/04/2023;3844;0;364;1;Spese correnti;3;Acquisto di beni e servizi;2;Acquisto di servizi;15;Contratti di servizio pubblico;8;Contratti di servizio di assistenza sociale residenziale e semiresidenziale;02/05/2023
1490;1;9999999;550,5;550,5;OMESSO NOMINATIVO NEL RISPETTO DELLA NORMATIVA SULLA PROTEZIONE DATI PERSONALI; ;APRILE 2023 INTEGRAZIONE RETTA CASA DI RIPOSO E SOGGIORNO DON VITTORIO ALLEGRI DI SALZANO -;26/04/2023;3844;0;294;1;Spese correnti;3;Acquisto di beni e servizi;2;Acquisto di servizi;15;Contratti di servizio pubblico;8;Contratti di servizio di assistenza sociale residenziale e semiresidenziale;02/05/2023
1491;1;9999999;490;490;OMESSO NOMINATIVO NEL RISPETTO DELLA NORMATIVA SULLA PROTEZIONE DATI PERSONALI; ;APRILE 2023  RETTA CASA DI RIPOSO RESIDENZA RIVIERA DEL BRENTA - CENTRO DI SOGGIORNO PER ANZIANI DI DOLO.;26/04/2023;3844;0;125;1;Spese correnti;3;Acquisto di beni e servizi;2;Acquisto di servizi;15;Contratti di servizio pubblico;8;Contratti di servizio di assistenza sociale residenziale e semiresidenziale;02/05/2023
1492;1;9999999;770;770;OMESSO NOMINATIVO NEL RISPETTO DELLA NORMATIVA SULLA PROTEZIONE DATI PERSONALI; ;APRILE 2023  INTEGRAZIONE RETTA CASA DI RIPOSO RELAXXI DI NOALE -;26/04/2023;3844;0;296;1;Spese correnti;3;Acquisto di beni e servizi;2;Acquisto di servizi;15;Contratti di servizio pubblico;8;Contratti di servizio di assistenza sociale residenziale e semiresidenziale;02/05/2023
1493;1;9999999;1.100,00;1.100,00;OMESSO NOMINATIVO NEL RISPETTO DELLA NORMATIVA SULLA PROTEZIONE DATI PERSONALI; ;APRILE 2023  INTEGRAZIONE RETTA CASA DI RIPOSO LA SALUTE DI FIESSO DARTICO -;26/04/2023;3844;0;295;1;Spese correnti;3;Acquisto di beni e servizi;2;Acquisto di servizi;15;Contratti di servizio pubblico;8;Contratti di servizio di assistenza sociale residenziale e semiresidenziale;02/05/2023
1495;1;9999999;606,05;606,05;KUWAIT PETROLEUM ITALIA SPA;Z543524413;SALDO Fatt.n. PJ06674354  del 31/03/2023 MARZO 2023 - FORNITURA METANO;26/04/2023;121;7;185;1;Spese correnti;3;Acquisto di beni e servizi;1;Acquisto di beni;2;Altri beni di consumo;2;Carburanti, combustibili e lubrificanti;02/05/2023
1496;1;9999999;187,5;187,5;ABACO S.P.A.;766214493F;SALDO Fatt.n. 2023120001557  del 07/04/2023 AGGIO CUP - ESPOSIZIONI PUBBLI CITARIE - SU INCASSI ENTE RENDICONTO DELLA GESTIONE AL 31/03/2023 Codice Identificativo Gara (CIG): 766214493F;26/04/2023;332;0;1228;1;Spese correnti;3;Acquisto di beni e servizi;2;Acquisto di servizi;3;Aggi di riscossione;999;Altri aggi di riscossione n.a.c.;02/05/2023
1497;1;9999999;88,72;88,72;ABACO S.P.A.;766214493F;SALDO Fatt.n. 2023140001352  del 07/04/2023 AGGIO RISCOSSIONE COATTIVA - ICI IMU T ASI LOTTO  10-11-12-13-14-15-16-17-18 RENDICONTO DELLA GESTIONE AL 3 1/03/2023 Codice Identificativo Gara (CIG): 766214493F;26/04/2023;332;0;122;1;Spese correnti;3;Acquisto di beni e servizi;2;Acquisto di servizi;3;Aggi di riscossione;999;Altri aggi di riscossione n.a.c.;02/05/2023
1498;1;9999999;540,95;540,95;KIT UFFICIO SNC DI CODATO MICHELE & C.;Z6F3A47945;SALDO Fatt.n. 2023SP000490  del 31/03/2023 FORNITURA CARTUCCE PER  PLOTTER U.T.;26/04/2023;521;0;238;1;Spese correnti;3;Acquisto di beni e servizi;1;Acquisto di beni;2;Altri beni di consumo;999;Altri beni e materiali di consumo n.a.c.;02/05/2023
1499;1;9999999;427;427;F.G. INSEGNE SRL;Z8C38C8564;SALDO Fatt.n. 00054  del 31/03/2023 PIEDISTALLO PORTA TARGHE  SAGOMATO IN LAMIERA  CON RIFORZO POSTERIORE VERNICIATO NEL COLORE GRIGIO ANTRACITE;26/04/2023;521;0;992;1;Spese correnti;3;Acquisto di beni e servizi;1;Acquisto di beni;2;Altri beni di consumo;999;Altri beni e materiali di consumo n.a.c.;02/05/2023
1500;1;9999999;1.573,80;1.573,80;FORNITECNICA S.R.L.;ZA934CBAAD;SALDO Fatt.n. 000110PA23  del 03/04/2023 COSTO COPIA PERIODO APRILE - GIUGNO 2023;26/04/2023;748;0;62;1;Spese correnti;3;Acquisto di beni e servizi;2;Acquisto di servizi;19;Servizi informatici e di telecomunicazioni;9;Servizi per le postazioni di lavoro e relativa manutenzione;02/05/2023
1501;1;9999999;101,16;101,16;IDRONORD SRL;ZB839B31A9;SALDO Fatt.n. 601  del 28/03/2023 MATERIALE EDILE PER MANUTENZIONI;26/04/2023;3538;0;79;1;Spese correnti;3;Acquisto di beni e servizi;2;Acquisto di servizi;9;Manutenzione ordinaria e riparazioni;8;Manutenzione ordinaria e riparazioni di beni immobili;02/05/2023
1502;1;9999999;7.593,77;7.593,77;BACCAN VINCENZO;Z563478F39;SALDO Fatt.n. 44  del 03/04/2023 STESURA DEL PIANO DI CALSSIFICAZIONE ACUSTICA DEL TERRITORIO COMUNALE;26/04/2023;540;0;1119;1;Spese correnti;3;Acquisto di beni e servizi;2;Acquisto di servizi;11;Prestazioni professionali e specialistiche;999;Altre prestazioni professionali e specialistiche n.a.c.;02/05/2023
1503;1;9999999;3,53;8,91;BANCA MPS SPA; ;16520 COMUNE DI SANTA MARIA DI SALA CC 16520-COMMISSIONI DAL 03/03/23 AL 05/03/23 (P. 6 -R. del 06/03/2023);27/04/2023;146;0;100;1;Spese correnti;3;Acquisto di beni e servizi;2;Acquisto di servizi;17;Servizi finanziari;999;Spese per servizi finanziari n.a.c.;28/04/2023
1503;2;9999999;5,38;8,91;BANCA MPS SPA; ;16520 COMUNE DI SANTA MARIA DI SALA CC 16520-COMMISSIONI DEL 05/04/23 (P. 8 -R. del 06/04/2023);27/04/2023;146;0;100;1;Spese correnti;3;Acquisto di beni e servizi;2;Acquisto di servizi;17;Servizi finanziari;999;Spese per servizi finanziari n.a.c.;28/04/2023
1504;1;9999999;140,3;140,3;VEDETTA 2 MONDIALPOL SPA;ZD032B120B;SALDO Fatt.n. V9-1273  del 11/04/2023 MARZO 2023 SERVIZIO DI VIGILANZA MAGAZZINO -PROTEZIONE CIVILE V.LE FERRARIS - VILLA FARSETTI;27/04/2023;548;0;688;1;Spese correnti;3;Acquisto di beni e servizi;2;Acquisto di servizi;9;Manutenzione ordinaria e riparazioni;8;Manutenzione ordinaria e riparazioni di beni immobili;02/05/2023
1505;1;9999999;381,47;381,47;CANON ITALIA S.P.A.;Z03356BDFB;SALDO Fatt.n. 2307900030086  del 05/04/2023 ADESIONE CONVENZIONE CONSIP MULTIFUNZIONE A NOLEGGIO - PERIODO DAL 1 GENNAIO  AL 31MARZO 2023;27/04/2023;748;0;227;1;Spese correnti;3;Acquisto di beni e servizi;2;Acquisto di servizi;19;Servizi informatici e di telecomunicazioni;9;Servizi per le postazioni di lavoro e relativa manutenzione;02/05/2023
1506;1;9999999;3.460,64;27.000,62;DUSSMANN SERVICE SRL;90957312AC;SALDO Fatt.n. 32315517  del 31/03/2023 MARZO 2023 - PASTI SCUOLA MATERNA S. ANGELO BAMBINI E INSEGNANTI;27/04/2023;1344;0;149;1;Spese correnti;3;Acquisto di beni e servizi;2;Acquisto di servizi;15;Contratti di servizio pubblico;6;Contratti di servizio per le mense scolastiche;02/05/2023
1506;2;9999999;23.539,98;27.000,62;DUSSMANN SERVICE SRL;90957312AC;SALDO Fatt.n. 32315518  del 31/03/2023 MARZO 2023 - PASTI SCUOLE ELEMENTARI BAMBINI E INSEGNANTI;27/04/2023;1344;0;149;1;Spese correnti;3;Acquisto di beni e servizi;2;Acquisto di servizi;15;Contratti di servizio pubblico;6;Contratti di servizio per le mense scolastiche;02/05/2023
1507;1;9999999;20.074,56;20.074,56;BONAVENTURA EXPRESS SRL;8704892021;SALDO Fatt.n. 131PA  del 31/03/2023 TRASPORTO SCOLASTICO MARZO 2023;27/04/2023;1344;0;388;1;Spese correnti;3;Acquisto di beni e servizi;2;Acquisto di servizi;15;Contratti di servizio pubblico;2;Contratti di servizio di trasporto scolastico;02/05/2023
1508;1;9999999;184,37;184,37;NUOVA AUTOCAR 94 SRL;Z543A5A4E1;SALDO Fatt.n. 2023-PA-000005  del 31/03/2023 REVISIONENISSAN - BV 340 BV;27/04/2023;3538;0;271;1;Spese correnti;3;Acquisto di beni e servizi;2;Acquisto di servizi;9;Manutenzione ordinaria e riparazioni;1;Manutenzione ordinaria e riparazioni di mezzi di trasporto ad uso civile, di sicurezza e ordine pubblico;02/05/2023
1509;1;9999999;4.003,71;4.003,71;OMESSO NOMINATIVO NEL RISPETTO DELLA NORMATIVA SULLA PROTEZIONE DATI PERSONALI; ;ANNO 2018 -LIQUIDAZIONE CONTRIBUTO ELIMINAZIONE BARRIERE ARCHITTETONICHE EDIFICI PRIVATI;27/04/2023;3957;52;850;1;Spese correnti;4;Trasferimenti correnti;2;Trasferimenti correnti a Famiglie;5;Altri trasferimenti a famiglie;999;Altri trasferimenti a famiglie n.a.c.;02/05/2023
1510;1;9999999;39.650,00;39.650,00;BASSO III SRL;Z1838891A8;SALDO Fatt.n. 39  del 21/03/2023 MANUTENZIONE DELLA PAVIMENTAZIONE DELL'AREA PARCHEGGIO ANTESTANTE CIMITERO DI CALTANA;28/04/2023;8558;0;1010;2;Spese in conto capitale;2;Investimenti fissi lordi e acquisto di terreni;1;Beni materiali;9;Beni immobili;12;Infrastrutture stradali;04/05/2023
1511;1;9999999;887,79;887,79;ENEL ENERGIA SPA;9118031536;ACCONTO Fatt.n. 004321397135  del 10/04/2023 MARZO 2023 - CONSUMI SEDE MUNICIPALE;28/04/2023;134;30;329;1;Spese correnti;3;Acquisto di beni e servizi;2;Acquisto di servizi;5;Utenze e canoni;4;Energia elettrica;04/05/2023
1512;1;9999999;38,34;38,34;ENEL ENERGIA SPA;9118031536;SALDO Fatt.n. 004317650592  del 07/04/2023 MARZO 2023 - CONSUMI CIMITERO STIGLIANO - LAMPADE VOTIVE;28/04/2023;134;30;329;1;Spese correnti;3;Acquisto di beni e servizi;2;Acquisto di servizi;5;Utenze e canoni;4;Energia elettrica;04/05/2023
1513;1;9999999;35;35;ENEL ENERGIA SPA;9118031536;ACCONTO Fatt.n. 004324710771  del 13/04/2023 MARZO 2023 - CONSUMI CIMITERO S.ANGELO - LAMPADE VOTIVE;28/04/2023;134;30;329;1;Spese correnti;3;Acquisto di beni e servizi;2;Acquisto di servizi;5;Utenze e canoni;4;Energia elettrica;04/05/2023
1514;1;9999999;5,61;5,61;ENEL ENERGIA SPA;9118031536;SALDO Fatt.n. 004324710771  del 13/04/2023 MARZO 2023 - CONSUMI CIMITERO S.ANGELO - LAMPADE VOTIVE;28/04/2023;134;30;329;1;Spese correnti;3;Acquisto di beni e servizi;2;Acquisto di servizi;5;Utenze e canoni;4;Energia elettrica;04/05/2023
1515;1;9999999;57;57;ENEL ENERGIA SPA;9118031536;ACCONTO Fatt.n. 004322587095  del 11/04/2023 MARZO 2023 - CONSUMI CIMITERO SMS - LAMPADE VOTIVE;28/04/2023;134;30;329;1;Spese correnti;3;Acquisto di beni e servizi;2;Acquisto di servizi;5;Utenze e canoni;4;Energia elettrica;04/05/2023
1516;1;9999999;5,62;5,62;ENEL ENERGIA SPA;9118031536;SALDO Fatt.n. 004322587095  del 11/04/2023 MARZO 2023 - CONSUMI CIMITERO SMS - LAMPADE VOTIVE;28/04/2023;134;30;329;1;Spese correnti;3;Acquisto di beni e servizi;2;Acquisto di servizi;5;Utenze e canoni;4;Energia elettrica;04/05/2023
1517;1;9999999;142;142;ENEL ENERGIA SPA;9118031536;ACCONTO Fatt.n. 004317650604  del 07/04/2023 MARZO 2023 - CONSUMI CIMITERO CALTANA - LAMPADE VOTIVE;28/04/2023;134;30;329;1;Spese correnti;3;Acquisto di beni e servizi;2;Acquisto di servizi;5;Utenze e canoni;4;Energia elettrica;04/05/2023
1518;1;9999999;12,07;12,07;ENEL ENERGIA SPA;9118031536;SALDO Fatt.n. 004317650604  del 07/04/2023 MARZO 2023 - CONSUMI CIMITERO CALTANA - LAMPADE VOTIVE;28/04/2023;134;30;329;1;Spese correnti;3;Acquisto di beni e servizi;2;Acquisto di servizi;5;Utenze e canoni;4;Energia elettrica;04/05/2023
1519;1;9999999;66;66;ENEL ENERGIA SPA;9118031536;ACCONTO Fatt.n. 004317650602  del 07/04/2023 MARZO 2023 - CONSUMI CIMITERO CASELLE - LAMPADE VOTIVE;28/04/2023;134;30;329;1;Spese correnti;3;Acquisto di beni e servizi;2;Acquisto di servizi;5;Utenze e canoni;4;Energia elettrica;04/05/2023
1520;1;9999999;9,62;9,62;ENEL ENERGIA SPA;9118031536;SALDO Fatt.n. 004317650602  del 07/04/2023 MARZO 2023 - CONSUMI CIMITERO CASELLE - LAMPADE VOTIVE;28/04/2023;134;30;329;1;Spese correnti;3;Acquisto di beni e servizi;2;Acquisto di servizi;5;Utenze e canoni;4;Energia elettrica;04/05/2023
1521;1;9999999;740,95;740,95;ENEL ENERGIA SPA;9118031536;ACCONTO Fatt.n. 004317650600  del 07/04/2023 MARZO 2023 - CONSUMI SC. ELEM - PALESTRA - ASILO S.ANGELO;28/04/2023;134;30;329;1;Spese correnti;3;Acquisto di beni e servizi;2;Acquisto di servizi;5;Utenze e canoni;4;Energia elettrica;04/05/2023
1522;1;9999999;39;39;ENEL ENERGIA SPA;9118031536;ACCONTO Fatt.n. 004317650596  del 07/04/2023 MARZO 2023 - CONSUMI CIMITERO VETERNIGO - LAMPADE VOTIVE;28/04/2023;134;31;213;1;Spese correnti;3;Acquisto di beni e servizi;2;Acquisto di servizi;5;Utenze e canoni;4;Energia elettrica;04/05/2023
1523;1;9999999;5,13;5,13;ENEL ENERGIA SPA;9118031536;SALDO Fatt.n. 004317650596  del 07/04/2023 MARZO 2023 - CONSUMI CIMITERO VETERNIGO - LAMPADE VOTIVE;28/04/2023;134;31;213;1;Spese correnti;3;Acquisto di beni e servizi;2;Acquisto di servizi;5;Utenze e canoni;4;Energia elettrica;04/05/2023
1524;1;9999999;45,85;436,41;ENEL ENERGIA SPA;9118031536;SALDO Fatt.n. 004317650607  del 07/04/2023 MARZO 2023 - CONSUMI ALLOGGIO VIA DON GALLERANI CALTANA;28/04/2023;134;31;213;1;Spese correnti;3;Acquisto di beni e servizi;2;Acquisto di servizi;5;Utenze e canoni;4;Energia elettrica;04/05/2023
1524;2;9999999;48,76;436,41;ENEL ENERGIA SPA;9118031536;SALDO Fatt.n. 004317650593  del 07/04/2023 MARZO 2023 - CONSUMI FONTANA VETERNIGO;28/04/2023;134;31;213;1;Spese correnti;3;Acquisto di beni e servizi;2;Acquisto di servizi;5;Utenze e canoni;4;Energia elettrica;04/05/2023
1524;3;9999999;54,19;436,41;ENEL ENERGIA SPA;9118031536;SALDO Fatt.n. 004317650588  del 07/04/2023 MARZO 2023 - CONSUMI MERCATO CALTANA;28/04/2023;134;31;213;1;Spese correnti;3;Acquisto di beni e servizi;2;Acquisto di servizi;5;Utenze e canoni;4;Energia elettrica;04/05/2023
1524;4;9999999;109,64;436,41;ENEL ENERGIA SPA;9118031536;SALDO Fatt.n. 004317650603  del 07/04/2023 MARZO 2023 - CONSUMI MERCATO CASELLE;28/04/2023;134;31;213;1;Spese correnti;3;Acquisto di beni e servizi;2;Acquisto di servizi;5;Utenze e canoni;4;Energia elettrica;04/05/2023
1524;5;9999999;177,97;436,41;ENEL ENERGIA SPA;9118031536;SALDO Fatt.n. 004317650595  del 07/04/2023 MARZO 2023 - CONSUMI P.ZZA S.D.A. CALTANA;28/04/2023;134;31;213;1;Spese correnti;3;Acquisto di beni e servizi;2;Acquisto di servizi;5;Utenze e canoni;4;Energia elettrica;04/05/2023
1525;1;9999999;10,86;280,91;ENEL ENERGIA SPA;9118031536;SALDO Fatt.n. 004317650611  del 07/04/2023 MARZO 2023 - CONSUMI IMMOBILE VIA OLIMPIA  SMS;28/04/2023;134;31;213;1;Spese correnti;3;Acquisto di beni e servizi;2;Acquisto di servizi;5;Utenze e canoni;4;Energia elettrica;04/05/2023
1525;2;9999999;33,38;280,91;ENEL ENERGIA SPA;9118031536;SALDO Fatt.n. 004318294161  del 08/04/2023 MARZO 2023 - CONSUMI PARCHEGGIO SMS;28/04/2023;134;31;213;1;Spese correnti;3;Acquisto di beni e servizi;2;Acquisto di servizi;5;Utenze e canoni;4;Energia elettrica;04/05/2023
1525;3;9999999;66,64;280,91;ENEL ENERGIA SPA;9118031536;SALDO Fatt.n. 004317650608  del 07/04/2023 MARZO 2023 - CONSUMI MERCATO SMS;28/04/2023;134;31;213;1;Spese correnti;3;Acquisto di beni e servizi;2;Acquisto di servizi;5;Utenze e canoni;4;Energia elettrica;04/05/2023
1525;4;9999999;72,55;280,91;ENEL ENERGIA SPA;9118031536;SALDO Fatt.n. 004322587096  del 11/04/2023 MARZO 2023 - CONSUMI PARCHEGGIO C.C. PRISMA CASELLE;28/04/2023;134;31;213;1;Spese correnti;3;Acquisto di beni e servizi;2;Acquisto di servizi;5;Utenze e canoni;4;Energia elettrica;04/05/2023
1525;5;9999999;97,48;280,91;ENEL ENERGIA SPA;9118031536;SALDO Fatt.n. 004320324804  del 09/04/2023 MARZO 2023 - CONSUMI PARCHEGGIO OVALE SMS;28/04/2023;134;31;213;1;Spese correnti;3;Acquisto di beni e servizi;2;Acquisto di servizi;5;Utenze e canoni;4;Energia elettrica;04/05/2023
1526;1;9999999;169,04;169,04;ENEL ENERGIA SPA;9118031536;ACCONTO Fatt.n. 004317650590  del 07/04/2023 MARZO 2023 - CONSUMI VILLA FARSETTI;28/04/2023;134;31;213;1;Spese correnti;3;Acquisto di beni e servizi;2;Acquisto di servizi;5;Utenze e canoni;4;Energia elettrica;04/05/2023
1527;1;9999999;111,66;111,66;ENEL ENERGIA SPA;9118031536;ACCONTO Fatt.n. 004321397135  del 10/04/2023 MARZO 2023 - CONSUMI SEDE MUNICIPALE;28/04/2023;134;31;213;1;Spese correnti;3;Acquisto di beni e servizi;2;Acquisto di servizi;5;Utenze e canoni;4;Energia elettrica;04/05/2023
1528;1;9999999;675,2;4.845,19;ENEL ENERGIA SPA;9118031536;SALDO Fatt.n. 004322587094  del 11/04/2023 MARZO 2023 - CONSUMI SC. ELEMENTARE CALTANA;28/04/2023;134;31;330;1;Spese correnti;3;Acquisto di beni e servizi;2;Acquisto di servizi;5;Utenze e canoni;4;Energia elettrica;04/05/2023
1528;2;9999999;699,99;4.845,19;ENEL ENERGIA SPA;9118031536;SALDO Fatt.n. 004317650605  del 07/04/2023 MARZO 2023 - CONSUMI S. ELEMENTARE CASELLE;28/04/2023;134;31;330;1;Spese correnti;3;Acquisto di beni e servizi;2;Acquisto di servizi;5;Utenze e canoni;4;Energia elettrica;04/05/2023
1528;3;9999999;3.470,00;4.845,19;ENEL ENERGIA SPA;9118031536;SALDO Fatt.n. 004317650591  del 07/04/2023 MARZO 2023 - CONSUMI SC. ELEM - SC. MEDIA SMS;28/04/2023;134;31;330;1;Spese correnti;3;Acquisto di beni e servizi;2;Acquisto di servizi;5;Utenze e canoni;4;Energia elettrica;04/05/2023
1529;1;9999999;154,81;154,81;ENEL ENERGIA SPA;9118031536;ACCONTO Fatt.n. 004321397135  del 10/04/2023 MARZO 2023 - CONSUMI SEDE MUNICIPALE;28/04/2023;134;31;330;1;Spese correnti;3;Acquisto di beni e servizi;2;Acquisto di servizi;5;Utenze e canoni;4;Energia elettrica;04/05/2023
1530;1;9999999;227,92;227,92;ENEL ENERGIA SPA;9118031536;ACCONTO Fatt.n. 004317650600  del 07/04/2023 MARZO 2023 - CONSUMI SC. ELEM - PALESTRA - ASILO S.ANGELO;28/04/2023;1334;30;214;1;Spese correnti;3;Acquisto di beni e servizi;2;Acquisto di servizi;5;Utenze e canoni;4;Energia elettrica;04/05/2023
1531;1;9999999;314;314;ENEL ENERGIA SPA;9118031536;ACCONTO Fatt.n. 004317650594  del 07/04/2023 MARZO 2023 - CONSUMI SC. ELEM - PALESTRA STIGLIANO;28/04/2023;1334;30;331;1;Spese correnti;3;Acquisto di beni e servizi;2;Acquisto di servizi;5;Utenze e canoni;4;Energia elettrica;04/05/2023
1532;1;9999999;335,69;335,69;ENEL ENERGIA SPA;9118031536;ACCONTO Fatt.n. 004317650594  del 07/04/2023 MARZO 2023 - CONSUMI SC. ELEM - PALESTRA STIGLIANO;28/04/2023;1334;30;331;1;Spese correnti;3;Acquisto di beni e servizi;2;Acquisto di servizi;5;Utenze e canoni;4;Energia elettrica;04/05/2023
1533;1;9999999;525;525;ENEL ENERGIA SPA;9118031536;ACCONTO Fatt.n. 004317650609  del 07/04/2023 MARZO 2023 - CONSUMI SC. ELEM - PALESTRA VETERNIGO;28/04/2023;1334;30;331;1;Spese correnti;3;Acquisto di beni e servizi;2;Acquisto di servizi;5;Utenze e canoni;4;Energia elettrica;04/05/2023
1534;1;9999999;859,26;859,26;ENEL ENERGIA SPA;9118031536;ACCONTO Fatt.n. 004317650609  del 07/04/2023 MARZO 2023 - CONSUMI SC. ELEM - PALESTRA VETERNIGO;28/04/2023;1334;30;331;1;Spese correnti;3;Acquisto di beni e servizi;2;Acquisto di servizi;5;Utenze e canoni;4;Energia elettrica;04/05/2023
1535;1;9999999;533;533;ENEL ENERGIA SPA;9118031536;ACCONTO Fatt.n. 004317650600  del 07/04/2023 MARZO 2023 - CONSUMI SC. ELEM - PALESTRA - ASILO S.ANGELO;28/04/2023;1334;30;331;1;Spese correnti;3;Acquisto di beni e servizi;2;Acquisto di servizi;5;Utenze e canoni;4;Energia elettrica;04/05/2023
1536;1;9999999;632,18;632,18;ENEL ENERGIA SPA;9118031536;ACCONTO Fatt.n. 004317650600  del 07/04/2023 MARZO 2023 - CONSUMI SC. ELEM - PALESTRA - ASILO S.ANGELO;28/04/2023;1334;30;331;1;Spese correnti;3;Acquisto di beni e servizi;2;Acquisto di servizi;5;Utenze e canoni;4;Energia elettrica;04/05/2023
1537;1;9999999;155,49;155,49;ENEL ENERGIA SPA;9118031536;ACCONTO Fatt.n. 004318294160  del 08/04/2023 MARZO 2023 - CONSUMI PALESTRA CASELLE;28/04/2023;1334;30;331;1;Spese correnti;3;Acquisto di beni e servizi;2;Acquisto di servizi;5;Utenze e canoni;4;Energia elettrica;04/05/2023
1538;1;9999999;307,09;307,09;ENEL ENERGIA SPA;9118031536;ACCONTO Fatt.n. 004317650597  del 07/04/2023 MARZO 2023 - CONSUMI PALESTRA SMS;28/04/2023;1334;30;331;1;Spese correnti;3;Acquisto di beni e servizi;2;Acquisto di servizi;5;Utenze e canoni;4;Energia elettrica;04/05/2023
1539;1;9999999;523,01;523,01;ENEL ENERGIA SPA;9118031536;ACCONTO Fatt.n. 004324250560  del 12/04/2023 MARZO 2023 - CONSUMI PALESTRA CALTANA;28/04/2023;1334;30;331;1;Spese correnti;3;Acquisto di beni e servizi;2;Acquisto di servizi;5;Utenze e canoni;4;Energia elettrica;04/05/2023
1540;1;9999999;173,28;173,28;ENEL ENERGIA SPA;9118031536;ACCONTO Fatt.n. 004324250560  del 12/04/2023 MARZO 2023 - CONSUMI PALESTRA CALTANA;28/04/2023;1334;30;840;1;Spese correnti;3;Acquisto di beni e servizi;2;Acquisto di servizi;5;Utenze e canoni;4;Energia elettrica;04/05/2023
1541;1;9999999;1.000,00;1.000,00;ENEL ENERGIA SPA;9118031536;ACCONTO Fatt.n. 004324250561  del 12/04/2023 MARZO 2023 - CONSUMI VILLA FARSETTI;28/04/2023;1834;0;332;1;Spese correnti;3;Acquisto di beni e servizi;2;Acquisto di servizi;5;Utenze e canoni;4;Energia elettrica;04/05/2023
1542;1;9999999;120,94;120,94;ENEL ENERGIA SPA;97224145D7;SALDO Fatt.n. 004325432314  del 17/04/2023 MARZO 2023 - CONSUMI IMP. SPORT. VETERNIGO;28/04/2023;1934;0;316;1;Spese correnti;3;Acquisto di beni e servizi;2;Acquisto di servizi;5;Utenze e canoni;4;Energia elettrica;04/05/2023
1543;1;9999999;141,63;141,63;ENEL ENERGIA SPA;9118031536;SALDO Fatt.n. 004324710770  del 13/04/2023 MARZO 2023 - CONSUMI CAMPO DA CALCIO SMS;28/04/2023;1934;0;333;1;Spese correnti;3;Acquisto di beni e servizi;2;Acquisto di servizi;5;Utenze e canoni;4;Energia elettrica;04/05/2023
1544;1;9999999;93,96;93,96;ENEL ENERGIA SPA;9118031536;SALDO Fatt.n. 004317650610  del 07/04/2023 MARZO 2023 - CONSUMI IMP. SPORT. CASELLE;28/04/2023;1934;0;333;1;Spese correnti;3;Acquisto di beni e servizi;2;Acquisto di servizi;5;Utenze e canoni;4;Energia elettrica;04/05/2023
1545;1;9999999;152,49;152,49;ENEL ENERGIA SPA;9118031536;SALDO Fatt.n. 004317650598  del 07/04/2023 MARZO 2023 - CONSUMI IMP. SPORT. PARROCCHIA CASELLE;28/04/2023;1934;0;333;1;Spese correnti;3;Acquisto di beni e servizi;2;Acquisto di servizi;5;Utenze e canoni;4;Energia elettrica;04/05/2023
1546;1;9999999;470;470;ENEL ENERGIA SPA;9118031536;SALDO Fatt.n. 004317650594  del 07/04/2023 MARZO 2023 - CONSUMI SC. ELEM - PALESTRA STIGLIANO;28/04/2023;1934;0;333;1;Spese correnti;3;Acquisto di beni e servizi;2;Acquisto di servizi;5;Utenze e canoni;4;Energia elettrica;04/05/2023
1547;1;9999999;356,94;356,94;ENEL ENERGIA SPA;9118031536;ACCONTO Fatt.n. 004317650609  del 07/04/2023 MARZO 2023 - CONSUMI SC. ELEM - PALESTRA VETERNIGO;28/04/2023;1934;0;333;1;Spese correnti;3;Acquisto di beni e servizi;2;Acquisto di servizi;5;Utenze e canoni;4;Energia elettrica;04/05/2023
1548;1;9999999;168,06;168,06;ENEL ENERGIA SPA;9118031536;SALDO Fatt.n. 004317650609  del 07/04/2023 MARZO 2023 - CONSUMI SC. ELEM - PALESTRA VETERNIGO;28/04/2023;1934;0;1005;1;Spese correnti;3;Acquisto di beni e servizi;2;Acquisto di servizi;5;Utenze e canoni;4;Energia elettrica;04/05/2023
1549;1;9999999;533;533;ENEL ENERGIA SPA;9118031536;SALDO Fatt.n. 004317650600  del 07/04/2023 MARZO 2023 - CONSUMI SC. ELEM - PALESTRA - ASILO S.ANGELO;28/04/2023;1934;0;1005;1;Spese correnti;3;Acquisto di beni e servizi;2;Acquisto di servizi;5;Utenze e canoni;4;Energia elettrica;04/05/2023
1550;1;9999999;155,48;155,48;ENEL ENERGIA SPA;9118031536;SALDO Fatt.n. 004318294160  del 08/04/2023 MARZO 2023 - CONSUMI PALESTRA CASELLE;28/04/2023;1934;0;1005;1;Spese correnti;3;Acquisto di beni e servizi;2;Acquisto di servizi;5;Utenze e canoni;4;Energia elettrica;04/05/2023
1551;1;9999999;307,08;307,08;ENEL ENERGIA SPA;9118031536;SALDO Fatt.n. 004317650597  del 07/04/2023 MARZO 2023 - CONSUMI PALESTRA SMS;28/04/2023;1934;0;1005;1;Spese correnti;3;Acquisto di beni e servizi;2;Acquisto di servizi;5;Utenze e canoni;4;Energia elettrica;04/05/2023
1552;1;9999999;696,28;696,28;ENEL ENERGIA SPA;9118031536;SALDO Fatt.n. 004324250560  del 12/04/2023 MARZO 2023 - CONSUMI PALESTRA CALTANA;28/04/2023;1934;0;1005;1;Spese correnti;3;Acquisto di beni e servizi;2;Acquisto di servizi;5;Utenze e canoni;4;Energia elettrica;04/05/2023
1553;1;9999999;25,48;25,48;ENEL ENERGIA SPA;9118031536;ACCONTO Fatt.n. 004321397135  del 10/04/2023 MARZO 2023 - CONSUMI SEDE MUNICIPALE;28/04/2023;2734;0;217;1;Spese correnti;3;Acquisto di beni e servizi;2;Acquisto di servizi;5;Utenze e canoni;4;Energia elettrica;04/05/2023
1554;1;9999999;144,3;144,3;ENEL ENERGIA SPA;9118031536;ACCONTO Fatt.n. 004324710769  del 13/04/2023 MARZO 2023 - CONSUMI MAGAZZINO COMUNALE;28/04/2023;3534;0;218;1;Spese correnti;3;Acquisto di beni e servizi;2;Acquisto di servizi;5;Utenze e canoni;4;Energia elettrica;04/05/2023
1555;1;9999999;266,3;266,3;ENEL ENERGIA SPA;9118031536;SALDO Fatt.n. 004324710769  del 13/04/2023 MARZO 2023 - CONSUMI MAGAZZINO COMUNALE;28/04/2023;3534;0;334;1;Spese correnti;3;Acquisto di beni e servizi;2;Acquisto di servizi;5;Utenze e canoni;4;Energia elettrica;04/05/2023
1556;1;9999999;718,19;718,19;ENEL ENERGIA SPA;9118031536;SALDO Fatt.n. 004321397135  del 10/04/2023 MARZO 2023 - CONSUMI SEDE MUNICIPALE;28/04/2023;3534;0;334;1;Spese correnti;3;Acquisto di beni e servizi;2;Acquisto di servizi;5;Utenze e canoni;4;Energia elettrica;04/05/2023
1557;1;9999999;15,51;15,51;ENEL ENERGIA SPA;9118031536;SALDO Fatt.n. 004317650601  del 07/04/2023 MARZO 2023 - CONSUMI ECOCENTRO COMUNALE;28/04/2023;3534;0;334;1;Spese correnti;3;Acquisto di beni e servizi;2;Acquisto di servizi;5;Utenze e canoni;4;Energia elettrica;04/05/2023
1558;1;9999999;40,36;30.827,89;ENEL ENERGIA SPA;9118031536;SALDO Fatt.n. 004317650612  del 07/04/2023 MARZO 2023 - CONSUMI ILLUMINAZIONE PUBBLICA;28/04/2023;3544;0;336;1;Spese correnti;3;Acquisto di beni e servizi;2;Acquisto di servizi;15;Contratti di servizio pubblico;15;Contratti di servizio per l'illuminazione pubblica;04/05/2023
1558;2;9999999;12.668,72;30.827,89;ENEL ENERGIA SPA;9118031536;SALDO Fatt.n. 004325331393  del 13/04/2023 MARZO 2023 - CONSUMI ILLUMINAZIONE PUBBLICA;28/04/2023;3544;0;336;1;Spese correnti;3;Acquisto di beni e servizi;2;Acquisto di servizi;15;Contratti di servizio pubblico;15;Contratti di servizio per l'illuminazione pubblica;04/05/2023
1558;3;9999999;18.118,81;30.827,89;ENEL ENERGIA SPA;9118031536;SALDO Fatt.n. 004325331392  del 13/04/2023 MARZO 2023 - CONSUMI ILLUMINAZIONE PUBBLICA;28/04/2023;3544;0;336;1;Spese correnti;3;Acquisto di beni e servizi;2;Acquisto di servizi;15;Contratti di servizio pubblico;15;Contratti di servizio per l'illuminazione pubblica;04/05/2023
1559;1;9999999;9,55;412,43;ENEL ENERGIA SPA;9118031536;SALDO Fatt.n. 004320324802  del 09/04/2023 MARZO 2023 - CONSUMI ILLUMINAZIONE PUBBLICA;28/04/2023;3544;0;336;1;Spese correnti;3;Acquisto di beni e servizi;2;Acquisto di servizi;15;Contratti di servizio pubblico;15;Contratti di servizio per l'illuminazione pubblica;04/05/2023
1559;2;9999999;10,86;412,43;ENEL ENERGIA SPA;9118031536;SALDO Fatt.n. 004324710772  del 13/04/2023 MARZO 2023 - CONSUMI ILLUMINAZIONE PUBBLICA;28/04/2023;3544;0;336;1;Spese correnti;3;Acquisto di beni e servizi;2;Acquisto di servizi;15;Contratti di servizio pubblico;15;Contratti di servizio per l'illuminazione pubblica;04/05/2023
1559;3;9999999;14,16;412,43;ENEL ENERGIA SPA;9118031536;SALDO Fatt.n. 004317650589  del 07/04/2023 MARZO 2023 - CONSUMI ILLUMINAZIONE PUBBLICA;28/04/2023;3544;0;336;1;Spese correnti;3;Acquisto di beni e servizi;2;Acquisto di servizi;15;Contratti di servizio pubblico;15;Contratti di servizio per l'illuminazione pubblica;04/05/2023
1559;4;9999999;54,28;412,43;ENEL ENERGIA SPA;9118031536;SALDO Fatt.n. 004317650606  del 07/04/2023 MARZO 2023 - CONSUMI ILLUMINAZIONE PUBBLICA;28/04/2023;3544;0;336;1;Spese correnti;3;Acquisto di beni e servizi;2;Acquisto di servizi;15;Contratti di servizio pubblico;15;Contratti di servizio per l'illuminazione pubblica;04/05/2023
1559;5;9999999;78,03;412,43;ENEL ENERGIA SPA;9118031536;SALDO Fatt.n. 004317650599  del 07/04/2023 MARZO 2023 - CONSUMI ILLUMINAZIONE PUBBLICA;28/04/2023;3544;0;336;1;Spese correnti;3;Acquisto di beni e servizi;2;Acquisto di servizi;15;Contratti di servizio pubblico;15;Contratti di servizio per l'illuminazione pubblica;04/05/2023
1559;6;9999999;114,06;412,43;ENEL ENERGIA SPA;9118031536;SALDO Fatt.n. 004320324803  del 09/04/2023 MARZO 2023 - CONSUMI ILLUMINAZIONE PUBBLICA;28/04/2023;3544;0;336;1;Spese correnti;3;Acquisto di beni e servizi;2;Acquisto di servizi;15;Contratti di servizio pubblico;15;Contratti di servizio per l'illuminazione pubblica;04/05/2023
1559;7;9999999;131,49;412,43;ENEL ENERGIA SPA;9118031536;SALDO Fatt.n. 004320324805  del 09/04/2023 MARZO 2023 - CONSUMI ILLUMINAZIONE PUBBLICA;28/04/2023;3544;0;336;1;Spese correnti;3;Acquisto di beni e servizi;2;Acquisto di servizi;15;Contratti di servizio pubblico;15;Contratti di servizio per l'illuminazione pubblica;04/05/2023
1560;1;9999999;542,42;542,42;ENEL ENERGIA SPA;9118031536;SALDO Fatt.n. 004324250561  del 12/04/2023 MARZO 2023 - CONSUMI VILLA FARSETTI;28/04/2023;4234;0;335;1;Spese correnti;3;Acquisto di beni e servizi;2;Acquisto di servizi;5;Utenze e canoni;4;Energia elettrica;04/05/2023
1561;1;9999999;457,58;457,58;ENEL ENERGIA SPA;9118031536;SALDO Fatt.n. 004317650590  del 07/04/2023 MARZO 2023 - CONSUMI VILLA FARSETTI;28/04/2023;4234;0;335;1;Spese correnti;3;Acquisto di beni e servizi;2;Acquisto di servizi;5;Utenze e canoni;4;Energia elettrica;04/05/2023
1562;1;9999999;958,59;958,59;ANCI VENETO;ZDB3AEB5C2;QUOTA ASSOCIATIVA ALL A.N.C.I. VENETO  ANNO 2023;02/05/2023;49;0;404;1;Spese correnti;3;Acquisto di beni e servizi;2;Acquisto di servizi;99;Altri servizi;999;Altri servizi diversi n.a.c.;05/05/2023
1563;1;9999999;631,27;631,27;ANCI VENETO;ZDB3AEB5C2;QUOTA ASSOCIATIVA ALL A.N.C.I. VENETO  ANNO 2023;02/05/2023;833;0;403;1;Spese correnti;3;Acquisto di beni e servizi;2;Acquisto di servizi;4;Acquisto di servizi per formazione e addestramento del personale dell'ente;4;Acquisto di servizi per formazione obbligatoria;05/05/2023
1564;1;9999999;150;150;OMESSO NOMINATIVO NEL RISPETTO DELLA NORMATIVA SULLA PROTEZIONE DATI PERSONALI; ;MAGGIO 2023 AFFIDAMENTO FAMILIARE;02/05/2023;3757;50;619;1;Spese correnti;4;Trasferimenti correnti;2;Trasferimenti correnti a Famiglie;2;Interventi assistenziali;999;Altri assegni e sussidi assistenziali;05/05/2023
1565;1;9999999;2.000,00;2.000,00;LABS LABORATORIO SOLIDALE ONLUS; ;ATTIVITA TERZA ETA - CENTRO ANZIANI PERIODO GENNAIO - APRILE 2023;02/05/2023;4059;0;45;1;Spese correnti;4;Trasferimenti correnti;4;Trasferimenti correnti a Istituzioni Sociali Private;1;Trasferimenti correnti a Istituzioni Sociali Private;1;Trasferimenti correnti a Istituzioni Sociali Private;05/05/2023
1566;1;9999999;2.000,00;2.000,00;MANO AMICA - GRUPPO SALESE DI IMPEGNO SOCIALE O.D.V.; ;TRASPORTO E/O ACCOMPAGNAMENTO E SOSTEGNO SOCIALE - GENNAIO APRILE 2023;02/05/2023;4059;0;44;1;Spese correnti;4;Trasferimenti correnti;4;Trasferimenti correnti a Istituzioni Sociali Private;1;Trasferimenti correnti a Istituzioni Sociali Private;1;Trasferimenti correnti a Istituzioni Sociali Private;05/05/2023
1567;1;9999999;900;900;MANO AMICA - GRUPPO SALESE DI IMPEGNO SOCIALE O.D.V.; ;PROGETTO ORTO SOLIDALE PERIODO GENNAIO-APRILE 2023;02/05/2023;4059;0;44;1;Spese correnti;4;Trasferimenti correnti;4;Trasferimenti correnti a Istituzioni Sociali Private;1;Trasferimenti correnti a Istituzioni Sociali Private;1;Trasferimenti correnti a Istituzioni Sociali Private;05/05/2023
1568;1;9999999;1.000,00;1.000,00;MANO AMICA - GRUPPO SALESE DI IMPEGNO SOCIALE O.D.V.; ;ATTIVITA INCL.SOCIALE  PER DONNE STRANIERE - PERIODO GENNAIO APRILE 2023;02/05/2023;4059;0;44;1;Spese correnti;4;Trasferimenti correnti;4;Trasferimenti correnti a Istituzioni Sociali Private;1;Trasferimenti correnti a Istituzioni Sociali Private;1;Trasferimenti correnti a Istituzioni Sociali Private;05/05/2023
1569;1;9999999;450;450;MANO AMICA - GRUPPO SALESE DI IMPEGNO SOCIALE O.D.V.; ;GESTIONE CURA E SVILUPPO RELAZIONALE ALLINTERNO SPAZI PUBBLICI PERIODO GENNAIO APRILE 2023;02/05/2023;4059;0;44;1;Spese correnti;4;Trasferimenti correnti;4;Trasferimenti correnti a Istituzioni Sociali Private;1;Trasferimenti correnti a Istituzioni Sociali Private;1;Trasferimenti correnti a Istituzioni Sociali Private;05/05/2023
1570;1;9999999;130;130;OMESSO NOMINATIVO NEL RISPETTO DELLA NORMATIVA SULLA PROTEZIONE DATI PERSONALI; ;RATA MAGGIO 2023 CONTRIBUTO ASSEGNI DI SOLLIEVO I TRANCHE;02/05/2023;3957;50;301;1;Spese correnti;4;Trasferimenti correnti;2;Trasferimenti correnti a Famiglie;2;Interventi assistenziali;999;Altri assegni e sussidi assistenziali;11/05/2023
1571;1;9999999;220;220;OMESSO NOMINATIVO NEL RISPETTO DELLA NORMATIVA SULLA PROTEZIONE DATI PERSONALI; ;RATA MAGGIO 2023 CONTRIBUTO ASSEGNI DI SOLLIEVO I TRANCHE;02/05/2023;3957;50;304;1;Spese correnti;4;Trasferimenti correnti;2;Trasferimenti correnti a Famiglie;2;Interventi assistenziali;999;Altri assegni e sussidi assistenziali;05/05/2023
1572;1;9999999;220;220;OMESSO NOMINATIVO NEL RISPETTO DELLA NORMATIVA SULLA PROTEZIONE DATI PERSONALI; ;RATA MAGGIO 2023 CONTRIBUTO ASSEGNI DI SOLLIEVO I TRANCHE;02/05/2023;3957;50;305;1;Spese correnti;4;Trasferimenti correnti;2;Trasferimenti correnti a Famiglie;2;Interventi assistenziali;999;Altri assegni e sussidi assistenziali;05/05/2023
1573;1;9999999;130;130;OMESSO NOMINATIVO NEL RISPETTO DELLA NORMATIVA SULLA PROTEZIONE DATI PERSONALI; ;RATA MAGGIO 2023 CONTRIBUTO ASSEGNI DI SOLLIEVO I TRANCHE;02/05/2023;3957;50;306;1;Spese correnti;4;Trasferimenti correnti;2;Trasferimenti correnti a Famiglie;2;Interventi assistenziali;999;Altri assegni e sussidi assistenziali;05/05/2023
1574;1;9999999;3.172,00;3.172,00;MDA STUDIO LEGALE;ZBE3870EFE;SALDO Fatt.n. FPA 22/23  del 07/04/2023 RICORSO PER MOTIVI AGGIUNTIVI AVANTI AL TAR VENETO PRESENTATO DAI SIGG. M.H., A.H. E C.S.;02/05/2023;40;0;922;1;Spese correnti;3;Acquisto di beni e servizi;2;Acquisto di servizi;11;Prestazioni professionali e specialistiche;6;Patrocinio legale;05/05/2023
1575;1;9999999;136,76;1.234,74;TIM SPA - TELECOM ITALIA SPA;ZE027DF92B;SALDO Fatt.n. 4220423800024007  del 12/04/2023 PERIODO 3 FEB-MAR 2023 - CONNETTIVITA E BACKUP SEDE MUNICIPALE;02/05/2023;134;0;179;1;Spese correnti;3;Acquisto di beni e servizi;2;Acquisto di servizi;5;Utenze e canoni;999;Utenze e canoni per altri servizi n.a.c.;05/05/2023
1575;2;9999999;1.097,98;1.234,74;TIM SPA - TELECOM ITALIA SPA;ZE027DF92B;SALDO Fatt.n. 4220423800023994  del 12/04/2023 PERIODO 3 FEB-MAR 2023 - CONNETTIVITA FIBRA GBE;02/05/2023;134;0;179;1;Spese correnti;3;Acquisto di beni e servizi;2;Acquisto di servizi;5;Utenze e canoni;999;Utenze e canoni per altri servizi n.a.c.;05/05/2023
1576;1;9999999;73,2;1.206,44;TIM SPA - TELECOM ITALIA SPA;Z502F0ADA2;SALDO Fatt.n. 8E00340253  del 12/04/2023 PERIODO 3 FEB-MAR 2023 - UTENZA CENTRO PRELIEVI;02/05/2023;134;0;944;1;Spese correnti;3;Acquisto di beni e servizi;2;Acquisto di servizi;5;Utenze e canoni;1;Telefonia fissa;05/05/2023
1576;2;9999999;73,2;1.206,44;TIM SPA - TELECOM ITALIA SPA;Z502F0ADA2;SALDO Fatt.n. 8E00341855  del 12/04/2023 PERIODO 3 FEB-MAR 2023 - FAX SEDE MUNICIPALE;02/05/2023;134;0;944;1;Spese correnti;3;Acquisto di beni e servizi;2;Acquisto di servizi;5;Utenze e canoni;1;Telefonia fissa;05/05/2023
1576;3;9999999;73,2;1.206,44;TIM SPA - TELECOM ITALIA SPA;Z502F0ADA2;SALDO Fatt.n. 8E00342168  del 12/04/2023 PERIODO 3 FEB-MAR 2023 - FAX BIBLIOTECA;02/05/2023;134;0;944;1;Spese correnti;3;Acquisto di beni e servizi;2;Acquisto di servizi;5;Utenze e canoni;1;Telefonia fissa;05/05/2023
1576;4;9999999;97,6;1.206,44;TIM SPA - TELECOM ITALIA SPA;Z502F0ADA2;SALDO Fatt.n. 8E00339142  del 12/04/2023 PERIODO 3 FEB-MAR 2023 - FAX POLIZIA LOCALE;02/05/2023;134;0;944;1;Spese correnti;3;Acquisto di beni e servizi;2;Acquisto di servizi;5;Utenze e canoni;1;Telefonia fissa;05/05/2023
1576;5;9999999;109,8;1.206,44;TIM SPA - TELECOM ITALIA SPA;Z502F0ADA2;SALDO Fatt.n. 8E00340637  del 12/04/2023 PERIODO 3 FEB-MAR 2023 - UTENZA SERVIZI SOCIALI;02/05/2023;134;0;944;1;Spese correnti;3;Acquisto di beni e servizi;2;Acquisto di servizi;5;Utenze e canoni;1;Telefonia fissa;05/05/2023
1576;6;9999999;116,92;1.206,44;TIM SPA - TELECOM ITALIA SPA;Z502F0ADA2;SALDO Fatt.n. 8E00345888  del 12/04/2023 PERIODO 3 FEB-MAR 2023 - UTENZA SEDE MUNICIPALE;02/05/2023;134;0;944;1;Spese correnti;3;Acquisto di beni e servizi;2;Acquisto di servizi;5;Utenze e canoni;1;Telefonia fissa;05/05/2023
1576;7;9999999;122;1.206,44;TIM SPA - TELECOM ITALIA SPA;Z502F0ADA2;SALDO Fatt.n. 8E00340948  del 12/04/2023 PERIODO 3 FEB-MAR 2023 - UTENZA BIBLIOTECA;02/05/2023;134;0;944;1;Spese correnti;3;Acquisto di beni e servizi;2;Acquisto di servizi;5;Utenze e canoni;1;Telefonia fissa;05/05/2023
1576;8;9999999;122;1.206,44;TIM SPA - TELECOM ITALIA SPA;Z502F0ADA2;SALDO Fatt.n. 8E00342242  del 12/04/2023 PERIODO 3 FEB-MAR 2023 - UTENZA SEDE MUNICIPALE;02/05/2023;134;0;944;1;Spese correnti;3;Acquisto di beni e servizi;2;Acquisto di servizi;5;Utenze e canoni;1;Telefonia fissa;05/05/2023
1576;9;9999999;122;1.206,44;TIM SPA - TELECOM ITALIA SPA;Z502F0ADA2;SALDO Fatt.n. 8E00343983  del 12/04/2023 PERIODO 3 FEB-MAR 2023 - UTENZA POLZIA LOCALE;02/05/2023;134;0;944;1;Spese correnti;3;Acquisto di beni e servizi;2;Acquisto di servizi;5;Utenze e canoni;1;Telefonia fissa;05/05/2023
1576;10;9999999;134,2;1.206,44;TIM SPA - TELECOM ITALIA SPA;Z502F0ADA2;SALDO Fatt.n. 8E00345862  del 12/04/2023 PERIODO 3 FEB-MAR 2023 - FAX CENTRO PRELIEVI;02/05/2023;134;0;944;1;Spese correnti;3;Acquisto di beni e servizi;2;Acquisto di servizi;5;Utenze e canoni;1;Telefonia fissa;05/05/2023
1576;11;9999999;162,32;1.206,44;TIM SPA - TELECOM ITALIA SPA;Z502F0ADA2;SALDO Fatt.n. 8E00342455  del 12/04/2023 PERIODO 3 FEB-MAR 2023 - UTENZA SEDE MUNICIPALE;02/05/2023;134;0;944;1;Spese correnti;3;Acquisto di beni e servizi;2;Acquisto di servizi;5;Utenze e canoni;1;Telefonia fissa;05/05/2023
1577;1;9999999;518,15;518,15;TIM SPA - TELECOM ITALIA SPA;ZC0320B772;SALDO Fatt.n. 7X01739293  del 12/04/2023 PERIODO 3 FEB-MAR 2023 - CONVENZIONE CONSIP TELEFONIA MOBILE 8;02/05/2023;134;32;178;1;Spese correnti;3;Acquisto di beni e servizi;2;Acquisto di servizi;5;Utenze e canoni;2;Telefonia mobile;05/05/2023
1578;1;9999999;60;60;INTERAZIONE SRL;Z983A5833E;SALDO Fatt.n. 47/03  del 14/04/2023  PARTECIPAZIONE AL WEBINAR PRIMA GIORNATA DI FORMAZIONE FISCALE DEL 23.03.2023 DIPENDENTE SETTORE ECONOMICO;02/05/2023;833;0;273;1;Spese correnti;3;Acquisto di beni e servizi;2;Acquisto di servizi;4;Acquisto di servizi per formazione e addestramento del personale dell'ente;999;Acquisto di servizi per altre spese per formazione e addestramento n.a.c.;05/05/2023
1579;1;9999999;166,61;166,61;MEB SRL;ZC839D1F3A;ACCONTO Fatt.n. 017143  del 31/03/2023 MATERIALE ELETTRICO PER MANUTENZIONI;02/05/2023;1338;0;97;1;Spese correnti;3;Acquisto di beni e servizi;2;Acquisto di servizi;9;Manutenzione ordinaria e riparazioni;4;Manutenzione ordinaria e riparazioni di impianti e macchinari;05/05/2023
1580;1;9999999;2.000,00;2.000,00;MEB SRL;ZC839D1F3A;SALDO Fatt.n. 017143  del 31/03/2023 MATERIALE ELETTRICO PER MANUTENZIONI;02/05/2023;3538;0;96;1;Spese correnti;3;Acquisto di beni e servizi;2;Acquisto di servizi;9;Manutenzione ordinaria e riparazioni;4;Manutenzione ordinaria e riparazioni di impianti e macchinari;05/05/2023
1583;1;9999999;500;500;ASS.STRADA DEL RADICCHIO; ;QUOTA ANNUALE 2023;03/05/2023;2158;0;408;1;Spese correnti;4;Trasferimenti correnti;3;Trasferimenti correnti a Imprese;99;Trasferimenti correnti a altre imprese;999;Trasferimenti correnti a altre imprese;05/05/2023
1584;1;9999999;224,98;224,98;ENI SUSTAINABLE MOBILITY SPA;Z063967AC5;ACCONTO Fatt.n. 29306419  del 31/03/2023 MARZO 2023 - FORNITURA METANO;04/05/2023;521;0;42;1;Spese correnti;3;Acquisto di beni e servizi;1;Acquisto di beni;2;Altri beni di consumo;999;Altri beni e materiali di consumo n.a.c.;08/05/2023
1585;1;9999999;46,2;46,2;ENI SUSTAINABLE MOBILITY SPA;Z063967AC5;SALDO Fatt.n. 29306419  del 31/03/2023 MARZO 2023 - FORNITURA METANO;04/05/2023;521;0;42;1;Spese correnti;3;Acquisto di beni e servizi;1;Acquisto di beni;2;Altri beni di consumo;999;Altri beni e materiali di consumo n.a.c.;09/05/2023
1586;1;9999999;220;220;OMESSO NOMINATIVO NEL RISPETTO DELLA NORMATIVA SULLA PROTEZIONE DATI PERSONALI; ;RATA MAGGIO 2023 CONTRIBUTO ASSEGNI DI SOLLIEVO I TRANCHE;04/05/2023;3957;50;310;1;Spese correnti;4;Trasferimenti correnti;2;Trasferimenti correnti a Famiglie;2;Interventi assistenziali;999;Altri assegni e sussidi assistenziali;28/06/2023
1587;1;9999999;220;220;OMESSO NOMINATIVO NEL RISPETTO DELLA NORMATIVA SULLA PROTEZIONE DATI PERSONALI; ;RATA MAGGIO 2023 CONTRIBUTO ASSEGNO DI SOLLIEVO I TRANCHE;04/05/2023;3957;50;311;1;Spese correnti;4;Trasferimenti correnti;2;Trasferimenti correnti a Famiglie;2;Interventi assistenziali;999;Altri assegni e sussidi assistenziali;09/05/2023
1588;1;9999999;3.750,00;3.750,00;CONFCOMMERCIO DEL MIRANESE; ;CONTRIBUTO PER LA REALIZZAZIONE DELLEVENTO FIORI, GUSTI E COLORI NELLAMBITO DELLE ATTIVITA DEL DISTRETTO DEL COMMERCIO.;04/05/2023;4759;0;406;1;Spese correnti;4;Trasferimenti correnti;4;Trasferimenti correnti a Istituzioni Sociali Private;1;Trasferimenti correnti a Istituzioni Sociali Private;1;Trasferimenti correnti a Istituzioni Sociali Private;09/05/2023
1589;1;9999999;2.300,00;2.300,00;LABS LABORATORIO SOLIDALE ONLUS; ;MARZO 2023 ATTIVITA E SERVIZI COLLEGATI ALLA SCUOLA;05/05/2023;1257;0;857;1;Spese correnti;4;Trasferimenti correnti;4;Trasferimenti correnti a Istituzioni Sociali Private;1;Trasferimenti correnti a Istituzioni Sociali Private;1;Trasferimenti correnti a Istituzioni Sociali Private;09/05/2023
1590;1;9999999;2.000,00;2.000,00;MANO AMICA - GRUPPO SALESE DI IMPEGNO SOCIALE O.D.V.; ;MARZO 2023 SERVIZI AUSILIARI COLLEGATI ALLA SCUOLA;05/05/2023;1257;0;858;1;Spese correnti;4;Trasferimenti correnti;4;Trasferimenti correnti a Istituzioni Sociali Private;1;Trasferimenti correnti a Istituzioni Sociali Private;1;Trasferimenti correnti a Istituzioni Sociali Private;09/05/2023
1591;1;9999999;350,01;350,01;EL BOTTEGON SNC;Z7B3AADCFC;SALDO Fatt.n. 9  del 12/04/2023 FORNITURA VESTIARIO ESTIVO MESSO COMUNALE;08/05/2023;521;0;367;1;Spese correnti;3;Acquisto di beni e servizi;1;Acquisto di beni;2;Altri beni di consumo;4;Vestiario;10/05/2023
1592;1;9999999;3.300,00;3.300,00;CONSORZIO ART.E.A. ALTO VICENTINO;ZF6382E697;ACCONTO Fatt.n. 119-2023  del 13/04/2023 INTERVENTI DI MANUTENZIONE ORDINARIA DEGLI IMPIANTI TECNOLOGICI NEI FABBRICATI COMUNALI;08/05/2023;548;0;117;1;Spese correnti;3;Acquisto di beni e servizi;2;Acquisto di servizi;9;Manutenzione ordinaria e riparazioni;11;Manutenzione ordinaria e riparazioni di altri beni materiali;10/05/2023
1593;1;9999999;222,41;222,41;RA.SE.T. SRL;Z663A5546E;SALDO Fatt.n. 0213/2023CR  del 31/03/2023 FORNITURA KIT TEST E REAGENTI ALLE SOSTANZE STUPEFACENTI PER LA POLIZIA LOCALE;08/05/2023;1121;6;275;1;Spese correnti;3;Acquisto di beni e servizi;1;Acquisto di beni;2;Altri beni di consumo;8;Strumenti tecnico-specialistici non sanitari;10/05/2023
1594;1;9999999;1.207,80;1.207,80;CI.TI.ESSE S.R.L.;ZD73A3B2D0;SALDO Fatt.n. 477/PA  del 17/04/2023 SERVIZIO TARATURA ANNUALE DEL TELELASER TRUCAM DELLA POLIZIA LOCALE;08/05/2023;1138;0;229;1;Spese correnti;3;Acquisto di beni e servizi;2;Acquisto di servizi;9;Manutenzione ordinaria e riparazioni;5;Manutenzione ordinaria e riparazioni di attrezzature;10/05/2023
1595;1;9999999;1.016,73;1.016,73;CONSORZIO ART.E.A. ALTO VICENTINO;ZF6382E697;SALDO Fatt.n. 119-2023  del 13/04/2023 INTERVENTI DI MANUTENZIONE ORDINARIA DEGLI IMPIANTI TECNOLOGICI NEI FABBRICATI COMUNALI;08/05/2023;1838;0;119;1;Spese correnti;3;Acquisto di beni e servizi;2;Acquisto di servizi;9;Manutenzione ordinaria e riparazioni;11;Manutenzione ordinaria e riparazioni di altri beni materiali;10/05/2023
1596;1;9999999;15.024,30;15.024,30;SOCIETA' AGRICOLA VIVAI GARDIN S.S.;Z643A5BDC8;SALDO Fatt.n. 46/M  del 14/04/2023 POTATURA ESSENZE ARBOREE IN VILLA FARSETTI;08/05/2023;2549;0;326;1;Spese correnti;3;Acquisto di beni e servizi;2;Acquisto di servizi;99;Altri servizi;9;Acquisto di sevizi per verde e arredo urbano;10/05/2023
1597;1;9999999;300;300;DISCARDI DANILO; ;CONTRIBUTO PER INTERVENTI DIFFUSIONE DELLA NUTRIA;08/05/2023;2651;0;495;1;Spese correnti;4;Trasferimenti correnti;1;Trasferimenti correnti a Amministrazioni Pubbliche;2;Trasferimenti correnti a Amministrazioni Locali;999;Trasferimenti correnti a altre Amministrazioni Locali n.a.c.;11/05/2023
1598;1;9999999;100;100;SIMIONATO IVANO; ;CONTRIBUTO  INTERVENTI DI CONTENIMENTO DELLA DIFFUSIONE DELLA NUTRIA NEL TERRITORIO COMUNALE;08/05/2023;2651;0;495;1;Spese correnti;4;Trasferimenti correnti;1;Trasferimenti correnti a Amministrazioni Pubbliche;2;Trasferimenti correnti a Amministrazioni Locali;999;Trasferimenti correnti a altre Amministrazioni Locali n.a.c.;11/05/2023
1599;1;9999999;400;400;SIMIONATO IVANO; ;CONTRIBUTO  INTERVENTI DI CONTENIMENTO DELLA DIFFUSIONE DELLA NUTRIA NEL TERRITORIO COMUNALE;08/05/2023;2651;0;495;1;Spese correnti;4;Trasferimenti correnti;1;Trasferimenti correnti a Amministrazioni Pubbliche;2;Trasferimenti correnti a Amministrazioni Locali;999;Trasferimenti correnti a altre Amministrazioni Locali n.a.c.;11/05/2023
1605;1;9999999;574;574;OMESSO NOMINATIVO NEL RISPETTO DELLA NORMATIVA SULLA PROTEZIONE DATI PERSONALI; ;MAGGIO 2023 MINIMO VITALE;09/05/2023;4157;0;412;1;Spese correnti;4;Trasferimenti correnti;2;Trasferimenti correnti a Famiglie;2;Interventi assistenziali;999;Altri assegni e sussidi assistenziali;24/05/2023
1606;1;9999999;100;100;OMESSO NOMINATIVO NEL RISPETTO DELLA NORMATIVA SULLA PROTEZIONE DATI PERSONALI; ;MAGGIO 2023 MINIMO VITALE;09/05/2023;4157;0;375;1;Spese correnti;4;Trasferimenti correnti;2;Trasferimenti correnti a Famiglie;2;Interventi assistenziali;999;Altri assegni e sussidi assistenziali;23/05/2023
1607;1;9999999;200;200;OMESSO NOMINATIVO NEL RISPETTO DELLA NORMATIVA SULLA PROTEZIONE DATI PERSONALI; ;MAGGIO 2023 E ARRETRATI APRILE  MINIMO VITALE;09/05/2023;4157;0;416;1;Spese correnti;4;Trasferimenti correnti;2;Trasferimenti correnti a Famiglie;2;Interventi assistenziali;999;Altri assegni e sussidi assistenziali;15/05/2023
1608;1;9999999;150;150;OMESSO NOMINATIVO NEL RISPETTO DELLA NORMATIVA SULLA PROTEZIONE DATI PERSONALI; ;MAGGIO 2023 MINIMO VITALE;09/05/2023;4157;0;372;1;Spese correnti;4;Trasferimenti correnti;2;Trasferimenti correnti a Famiglie;2;Interventi assistenziali;999;Altri assegni e sussidi assistenziali;12/05/2023
1609;1;9999999;150;150;OMESSO NOMINATIVO NEL RISPETTO DELLA NORMATIVA SULLA PROTEZIONE DATI PERSONALI; ;MAGGIO 2023 MINIMO VITALE;09/05/2023;4157;0;413;1;Spese correnti;4;Trasferimenti correnti;2;Trasferimenti correnti a Famiglie;2;Interventi assistenziali;999;Altri assegni e sussidi assistenziali;23/05/2023
1610;1;9999999;300;300;OMESSO NOMINATIVO NEL RISPETTO DELLA NORMATIVA SULLA PROTEZIONE DATI PERSONALI; ;MAGGIO 2023 E ARRETRATI APRILE MINIMO VITALE;09/05/2023;4157;0;414;1;Spese correnti;4;Trasferimenti correnti;2;Trasferimenti correnti a Famiglie;2;Interventi assistenziali;999;Altri assegni e sussidi assistenziali;17/05/2023
1611;1;9999999;150;150;OMESSO NOMINATIVO NEL RISPETTO DELLA NORMATIVA SULLA PROTEZIONE DATI PERSONALI; ;MAGGIO 2023 MINIMO VITALE;09/05/2023;4157;0;104;1;Spese correnti;4;Trasferimenti correnti;2;Trasferimenti correnti a Famiglie;2;Interventi assistenziali;999;Altri assegni e sussidi assistenziali;05/06/2023
1612;1;9999999;150;150;OMESSO NOMINATIVO NEL RISPETTO DELLA NORMATIVA SULLA PROTEZIONE DATI PERSONALI; ;MAGGIO 2023 MINIMO VITALE;09/05/2023;4157;0;105;1;Spese correnti;4;Trasferimenti correnti;2;Trasferimenti correnti a Famiglie;2;Interventi assistenziali;999;Altri assegni e sussidi assistenziali;22/05/2023
1613;1;9999999;150;150;OMESSO NOMINATIVO NEL RISPETTO DELLA NORMATIVA SULLA PROTEZIONE DATI PERSONALI; ;MAGGIO 2023 MINIMO VITALE;09/05/2023;4157;0;280;1;Spese correnti;4;Trasferimenti correnti;2;Trasferimenti correnti a Famiglie;2;Interventi assistenziali;999;Altri assegni e sussidi assistenziali;23/05/2023
1614;1;9999999;700;700;OMESSO NOMINATIVO NEL RISPETTO DELLA NORMATIVA SULLA PROTEZIONE DATI PERSONALI; ;MAGGIO 2023 PROGETTO RILEVANZA SOCIALE;09/05/2023;4157;0;65;1;Spese correnti;4;Trasferimenti correnti;2;Trasferimenti correnti a Famiglie;2;Interventi assistenziali;999;Altri assegni e sussidi assistenziali;15/05/2023
1615;1;9999999;300;300;OMESSO NOMINATIVO NEL RISPETTO DELLA NORMATIVA SULLA PROTEZIONE DATI PERSONALI; ;MAGGIO 2023 A ARRETRATI APRILE MINIMO VITALE;09/05/2023;4157;0;415;1;Spese correnti;4;Trasferimenti correnti;2;Trasferimenti correnti a Famiglie;2;Interventi assistenziali;999;Altri assegni e sussidi assistenziali;01/06/2023
1616;1;9999999;80;80;OMESSO NOMINATIVO NEL RISPETTO DELLA NORMATIVA SULLA PROTEZIONE DATI PERSONALI; ;MAGGIO 2023 MINIMO VITALE;09/05/2023;3757;0;382;1;Spese correnti;4;Trasferimenti correnti;2;Trasferimenti correnti a Famiglie;5;Altri trasferimenti a famiglie;999;Altri trasferimenti a famiglie n.a.c.;25/05/2023
1617;1;9999999;100;100;OMESSO NOMINATIVO NEL RISPETTO DELLA NORMATIVA SULLA PROTEZIONE DATI PERSONALI; ;MAGGIO 2023 MINIMO VITALE;09/05/2023;4157;0;374;1;Spese correnti;4;Trasferimenti correnti;2;Trasferimenti correnti a Famiglie;2;Interventi assistenziali;999;Altri assegni e sussidi assistenziali;13/06/2023
1618;1;9999999;150;150;OMESSO NOMINATIVO NEL RISPETTO DELLA NORMATIVA SULLA PROTEZIONE DATI PERSONALI; ;MAGGIO 2023 MINIMO VITALE;09/05/2023;4157;0;380;1;Spese correnti;4;Trasferimenti correnti;2;Trasferimenti correnti a Famiglie;2;Interventi assistenziali;999;Altri assegni e sussidi assistenziali;23/05/2023
1619;1;9999999;150;150;OMESSO NOMINATIVO NEL RISPETTO DELLA NORMATIVA SULLA PROTEZIONE DATI PERSONALI; ;MAGGIO 2023 MINIMO VITALE;09/05/2023;4157;0;284;1;Spese correnti;4;Trasferimenti correnti;2;Trasferimenti correnti a Famiglie;2;Interventi assistenziali;999;Altri assegni e sussidi assistenziali;15/05/2023
1620;1;9999999;3.116,99;3.116,99;AGENZIA DELLE ENTRATE - IVA; ;LIQUIDAZIONE IVA COMMERCIALE MESE DI APRILE 2023;09/05/2023;291;0;434;1;Spese correnti;10;Altre spese correnti;3;Versamenti IVA a debito;1;Versamenti IVA a debito per le gestioni commerciali;1;Versamenti IVA a debito per le gestioni commerciali;12/05/2023
1621;1;9999999;19,88;19,88;COMUNE DI S.MARIA DI SALA; ;CONTRIBUTO IFEL RISCOSSIONE IMU PRELEVAMENTO 09-05-2023;09/05/2023;332;0;0;1;Spese correnti;3;Acquisto di beni e servizi;2;Acquisto di servizi;3;Aggi di riscossione;999;Altri aggi di riscossione n.a.c.;15/05/2023
1622;1;9999999;23,83;23,83;C/C/P 1039683022 -RISCOSSIONE COATTIVA EX ICP DPA; ;SPESE GESTIONE CONTI CORRENTI POSTALI SERVIZIO RISCOSSIONE COATTIVA C/C 001039683022 APRILE 2023;12/05/2023;146;0;52;1;Spese correnti;3;Acquisto di beni e servizi;2;Acquisto di servizi;17;Servizi finanziari;999;Spese per servizi finanziari n.a.c.;16/05/2023
1623;1;9999999;2.300,00;2.300,00;LABS LABORATORIO SOLIDALE ONLUS; ;APRILE 2023 SERVIZI COLLEGATI ALLA SCUOLA;12/05/2023;1257;0;857;1;Spese correnti;4;Trasferimenti correnti;4;Trasferimenti correnti a Istituzioni Sociali Private;1;Trasferimenti correnti a Istituzioni Sociali Private;1;Trasferimenti correnti a Istituzioni Sociali Private;16/05/2023
1624;1;9999999;800,01;800,01;ONORANZE FUNEBRI FREZZATO ALESSIO;ZAC3ABF8CD;SALDO Fatt.n. 17/001  del 03/05/2023 FORNITURA E POSA  8 CORONE D ALLORO COMMEMORAZIONE CIVILE 25 APRILE 2023;12/05/2023;31;0;400;1;Spese correnti;3;Acquisto di beni e servizi;2;Acquisto di servizi;2;Organizzazione eventi, pubblicita` e servizi per trasferta;999;Altre spese per relazioni pubbliche, convegni e mostre, pubblicita` n.a.c;16/05/2023
1625;1;9999999;951,6;951,6;ROMEO MARIAGRAZIA;Z073AD9B1C;SALDO Fatt.n. 2023/VE1/10  del 03/05/2023 RICORSO TAR VENETO S.S. - ACCONTO COMPENSO;12/05/2023;40;0;394;1;Spese correnti;3;Acquisto di beni e servizi;2;Acquisto di servizi;11;Prestazioni professionali e specialistiche;6;Patrocinio legale;16/05/2023
1626;1;9999999;61,47;61,47;KUWAIT PETROLEUM ITALIA SPA;Z543524413;SALDO Fatt.n. PJ06799758  del 30/04/2023 APRILE 2023 - FORNITURA CARBURANTE;12/05/2023;121;7;185;1;Spese correnti;3;Acquisto di beni e servizi;1;Acquisto di beni;2;Altri beni di consumo;2;Carburanti, combustibili e lubrificanti;16/05/2023
1627;1;9999999;1.358,70;1.358,70;CENTRO BIBLIOTECHE LOVAT SRL;Z61399458C;SALDO Fatt.n. 309-23  del 03/05/2023 VOLUMI PER BIBLIOTECA COMUNALE;12/05/2023;1820;0;56;1;Spese correnti;3;Acquisto di beni e servizi;1;Acquisto di beni;1;Giornali, riviste e pubblicazioni;2;Pubblicazioni;16/05/2023
1628;1;9999999;7,44;7,44;A2A ENERGIA SPA;Z453A8F9C4;SALDO Fatt.n. 823000113467  del 27/04/2023 MARZO 2023 - CONSUMI ILLUMINAZIONE PUBBLICA;12/05/2023;3544;0;341;1;Spese correnti;3;Acquisto di beni e servizi;2;Acquisto di servizi;15;Contratti di servizio pubblico;15;Contratti di servizio per l'illuminazione pubblica;16/05/2023
1636;1;9999999;52,5;52,5;NEXI PAYMENTS SPA;Z122EED501;ACCONTO Fatt.n. 2693652  del 14/04/2023 CANONE POS GENN-FEBB-MARZO 2023 Linea Diretta - Servizio Assistenza Nexi Payments SpA 0234 Codice Personale didentificazione 046963476;12/05/2023;146;0;711;1;Spese correnti;3;Acquisto di beni e servizi;2;Acquisto di servizi;17;Servizi finanziari;999;Spese per servizi finanziari n.a.c.;15/05/2023
1637;1;9999999;11,55;11,55;NEXI PAYMENTS SPA;Z122EED501;SALDO Fatt.n. 2693652  del 14/04/2023 CANONE POS GENN-FEBB-MARZO 2023 Linea Diretta - Servizio Assistenza Nexi Payments SpA 0234 Codice Personale didentificazione 046963476;12/05/2023;146;0;711;1;Spese correnti;3;Acquisto di beni e servizi;2;Acquisto di servizi;17;Servizi finanziari;999;Spese per servizi finanziari n.a.c.;16/05/2023
1638;1;9999999;9,05;9,05;BANCA MPS SPA; ;16520 COMUNE DI SANTA MARIA DI SALA CC 16520-COMMISSIONI DEL 04/05/23 (P. 10 -R. del 05/05/2023);12/05/2023;146;0;100;1;Spese correnti;3;Acquisto di beni e servizi;2;Acquisto di servizi;17;Servizi finanziari;999;Spese per servizi finanziari n.a.c.;15/05/2023
1639;1;9999999;600;600;OMESSO NOMINATIVO NEL RISPETTO DELLA NORMATIVA SULLA PROTEZIONE DATI PERSONALI; ;CONTRIBUTO IMPEGNATIVA DI CURA DOMICILIARE ICD B - 2 SEMESTRE 2022 BEN.MARCHIORI CESARINA;15/05/2023;3957;50;180;1;Spese correnti;4;Trasferimenti correnti;2;Trasferimenti correnti a Famiglie;2;Interventi assistenziali;999;Altri assegni e sussidi assistenziali;17/05/2023
1640;1;9999999;340;340;OMESSO NOMINATIVO NEL RISPETTO DELLA NORMATIVA SULLA PROTEZIONE DATI PERSONALI; ;RETTA MARZO APRILE 2023 MINORE M.J.;15/05/2023;3757;0;288;1;Spese correnti;4;Trasferimenti correnti;2;Trasferimenti correnti a Famiglie;5;Altri trasferimenti a famiglie;999;Altri trasferimenti a famiglie n.a.c.;17/05/2023
1641;1;9999999;340;340;OMESSO NOMINATIVO NEL RISPETTO DELLA NORMATIVA SULLA PROTEZIONE DATI PERSONALI; ;RETTA MARZO APRILE 2023 MINORE S.L.;15/05/2023;3757;0;111;1;Spese correnti;4;Trasferimenti correnti;2;Trasferimenti correnti a Famiglie;5;Altri trasferimenti a famiglie;999;Altri trasferimenti a famiglie n.a.c.;17/05/2023
1642;1;9999999;340;340;OMESSO NOMINATIVO NEL RISPETTO DELLA NORMATIVA SULLA PROTEZIONE DATI PERSONALI; ;RETTA MARZO APRILE 2023 MINORE  D.E.G.;15/05/2023;3757;0;381;1;Spese correnti;4;Trasferimenti correnti;2;Trasferimenti correnti a Famiglie;5;Altri trasferimenti a famiglie;999;Altri trasferimenti a famiglie n.a.c.;17/05/2023
1643;1;9999999;340;340;OMESSO NOMINATIVO NEL RISPETTO DELLA NORMATIVA SULLA PROTEZIONE DATI PERSONALI; ;RETTA MARZO APRILE 2023 MINORE B.S.C.;15/05/2023;3757;0;287;1;Spese correnti;4;Trasferimenti correnti;2;Trasferimenti correnti a Famiglie;5;Altri trasferimenti a famiglie;999;Altri trasferimenti a famiglie n.a.c.;17/05/2023
1644;1;9999999;340;340;OMESSO NOMINATIVO NEL RISPETTO DELLA NORMATIVA SULLA PROTEZIONE DATI PERSONALI; ;RETTA MARZO APRILE 2023 MINORE A.S.;15/05/2023;3757;0;112;1;Spese correnti;4;Trasferimenti correnti;2;Trasferimenti correnti a Famiglie;5;Altri trasferimenti a famiglie;999;Altri trasferimenti a famiglie n.a.c.;17/05/2023
1645;1;9999999;340;340;OMESSO NOMINATIVO NEL RISPETTO DELLA NORMATIVA SULLA PROTEZIONE DATI PERSONALI; ;RETTE MARZO APRILE 2023 MINORE K.S.;15/05/2023;3757;0;110;1;Spese correnti;4;Trasferimenti correnti;2;Trasferimenti correnti a Famiglie;5;Altri trasferimenti a famiglie;999;Altri trasferimenti a famiglie n.a.c.;17/05/2023
1646;1;9999999;200;200;OMESSO NOMINATIVO NEL RISPETTO DELLA NORMATIVA SULLA PROTEZIONE DATI PERSONALI; ;RETTE MARZO APRILE 2023 MINORE B.N.;15/05/2023;3757;0;285;1;Spese correnti;4;Trasferimenti correnti;2;Trasferimenti correnti a Famiglie;5;Altri trasferimenti a famiglie;999;Altri trasferimenti a famiglie n.a.c.;17/05/2023
1647;1;9999999;200;200;OMESSO NOMINATIVO NEL RISPETTO DELLA NORMATIVA SULLA PROTEZIONE DATI PERSONALI; ;RETTE MARZO APRILE 2023 MINORE B.A.;15/05/2023;3757;0;286;1;Spese correnti;4;Trasferimenti correnti;2;Trasferimenti correnti a Famiglie;5;Altri trasferimenti a famiglie;999;Altri trasferimenti a famiglie n.a.c.;17/05/2023
1648;1;9999999;200;200;OMESSO NOMINATIVO NEL RISPETTO DELLA NORMATIVA SULLA PROTEZIONE DATI PERSONALI; ;RETTE MARZO APRILE 2023 MINORE EL.Y.;15/05/2023;3757;0;108;1;Spese correnti;4;Trasferimenti correnti;2;Trasferimenti correnti a Famiglie;5;Altri trasferimenti a famiglie;999;Altri trasferimenti a famiglie n.a.c.;17/05/2023
1649;1;9999999;340;340;OMESSO NOMINATIVO NEL RISPETTO DELLA NORMATIVA SULLA PROTEZIONE DATI PERSONALI; ;RETTE MARZO APRILE 2023 MINORE S.Z.;15/05/2023;3757;0;109;1;Spese correnti;4;Trasferimenti correnti;2;Trasferimenti correnti a Famiglie;5;Altri trasferimenti a famiglie;999;Altri trasferimenti a famiglie n.a.c.;17/05/2023
1650;1;9999999;200;200;OMESSO NOMINATIVO NEL RISPETTO DELLA NORMATIVA SULLA PROTEZIONE DATI PERSONALI; ;QUARTA RATA  DOPOSCUOLA MARZO 2023 MINORE G.F.;15/05/2023;3757;0;291;1;Spese correnti;4;Trasferimenti correnti;2;Trasferimenti correnti a Famiglie;5;Altri trasferimenti a famiglie;999;Altri trasferimenti a famiglie n.a.c.;17/05/2023
1652;1;9999999;430;430;OMESSO NOMINATIVO NEL RISPETTO DELLA NORMATIVA SULLA PROTEZIONE DATI PERSONALI; ;RATA MARZO APRILE 2023 SERVIZIO DOPOSCUOLA M.E.M.A.;15/05/2023;3757;0;290;1;Spese correnti;4;Trasferimenti correnti;2;Trasferimenti correnti a Famiglie;5;Altri trasferimenti a famiglie;999;Altri trasferimenti a famiglie n.a.c.;17/05/2023
1653;1;9999999;200;200;OMESSO NOMINATIVO NEL RISPETTO DELLA NORMATIVA SULLA PROTEZIONE DATI PERSONALI; ;RATA MARZO APRILE 2023 SERVIZIO DOPOSCUOLA M.S.;15/05/2023;3757;0;113;1;Spese correnti;4;Trasferimenti correnti;2;Trasferimenti correnti a Famiglie;5;Altri trasferimenti a famiglie;999;Altri trasferimenti a famiglie n.a.c.;17/05/2023
1654;1;9999999;200;200;OMESSO NOMINATIVO NEL RISPETTO DELLA NORMATIVA SULLA PROTEZIONE DATI PERSONALI; ;RATA MARZO APRILE 2023 SERVIZIO DOPOSCUOLA MINORE M.L.F.;15/05/2023;3757;0;113;1;Spese correnti;4;Trasferimenti correnti;2;Trasferimenti correnti a Famiglie;5;Altri trasferimenti a famiglie;999;Altri trasferimenti a famiglie n.a.c.;17/05/2023
1655;1;9999999;40,55;40,55;DOLOMITI ENERGIA SPA;9127403B39;ACCONTO Fatt.n. 42302063007  del 28/04/2023 MARZO 2023 CONSUMI VILLA FARSETTI;16/05/2023;134;30;231;1;Spese correnti;3;Acquisto di beni e servizi;2;Acquisto di servizi;5;Utenze e canoni;6;Gas;18/05/2023
1656;1;9999999;1.436,34;1.436,34;DOLOMITI ENERGIA SPA;9127403B39;ACCONTO Fatt.n. 42302063008  del 28/04/2023 MARZO 2023 CONSUMI SC. ELEM. CALTANA;16/05/2023;134;30;385;1;Spese correnti;3;Acquisto di beni e servizi;2;Acquisto di servizi;5;Utenze e canoni;6;Gas;18/05/2023
1657;1;9999999;763,66;763,66;DOLOMITI ENERGIA SPA;9127403B39;ACCONTO Fatt.n. 42302063014  del 28/04/2023 MARZO 2023 CONSUMI SC. ELEM - SC. MEDIA SMS;16/05/2023;134;30;385;1;Spese correnti;3;Acquisto di beni e servizi;2;Acquisto di servizi;5;Utenze e canoni;6;Gas;18/05/2023
1658;1;9999999;3.471,47;3.471,47;DOLOMITI ENERGIA SPA;9127403B39;SALDO Fatt.n. 42302063010  del 28/04/2023 MARZO 2023 CONSUMI SEDE MUNICIPALE;16/05/2023;134;31;232;1;Spese correnti;3;Acquisto di beni e servizi;2;Acquisto di servizi;5;Utenze e canoni;6;Gas;18/05/2023
1659;1;9999999;125,95;125,95;DOLOMITI ENERGIA SPA;9127403B39;ACCONTO Fatt.n. 42302063007  del 28/04/2023 MARZO 2023 CONSUMI VILLA FARSETTI;16/05/2023;134;31;232;1;Spese correnti;3;Acquisto di beni e servizi;2;Acquisto di servizi;5;Utenze e canoni;6;Gas;18/05/2023
1660;1;9999999;2,92;2,92;DOLOMITI ENERGIA SPA;9127403B39;SALDO Fatt.n. 42302063012  del 28/04/2023 MARZO 2023 CONSUMI IMMOBILE  COMUNALE VIA OLIMPIA SMS;16/05/2023;134;31;232;1;Spese correnti;3;Acquisto di beni e servizi;2;Acquisto di servizi;5;Utenze e canoni;6;Gas;18/05/2023
1661;1;9999999;4.320,78;4.320,78;DOLOMITI ENERGIA SPA;9127403B39;ACCONTO Fatt.n. 42302063014  del 28/04/2023 MARZO 2023 CONSUMI SC. ELEM - SC. MEDIA SMS;16/05/2023;134;31;232;1;Spese correnti;3;Acquisto di beni e servizi;2;Acquisto di servizi;5;Utenze e canoni;6;Gas;18/05/2023
1662;1;9999999;225,05;225,05;DOLOMITI ENERGIA SPA;9127403B39;ACCONTO Fatt.n. 42302063013  del 28/04/2023 MARZO 2023 CONSUMI ALLOGGIO VIA DON GALLERANI;16/05/2023;134;31;386;1;Spese correnti;3;Acquisto di beni e servizi;2;Acquisto di servizi;5;Utenze e canoni;6;Gas;18/05/2023
1663;1;9999999;1.135,16;1.135,16;DOLOMITI ENERGIA SPA;9127403B39;ACCONTO Fatt.n. 42302063015  del 28/04/2023 MARZO 2023 CONSUMI PALESTRA SMS;16/05/2023;134;31;386;1;Spese correnti;3;Acquisto di beni e servizi;2;Acquisto di servizi;5;Utenze e canoni;6;Gas;18/05/2023
1664;1;9999999;1.234,77;1.234,77;DOLOMITI ENERGIA SPA;9127403B39;ACCONTO Fatt.n. 42302063017  del 28/04/2023 MARZO 2023 CONSUMI PALESTRA CALTANA;16/05/2023;134;31;386;1;Spese correnti;3;Acquisto di beni e servizi;2;Acquisto di servizi;5;Utenze e canoni;6;Gas;18/05/2023
1665;1;9999999;805;805;DOLOMITI ENERGIA SPA;9127403B39;ACCONTO Fatt.n. 42302063009  del 28/04/2023 MARZO 2023 CONSUMI SC. ELEM - PALESTRA CASELLE;16/05/2023;134;31;386;1;Spese correnti;3;Acquisto di beni e servizi;2;Acquisto di servizi;5;Utenze e canoni;6;Gas;18/05/2023
1666;1;9999999;2.416,17;2.416,17;DOLOMITI ENERGIA SPA;9127403B39;ACCONTO Fatt.n. 42302063009  del 28/04/2023 MARZO 2023 CONSUMI SC. ELEM - PALESTRA CASELLE;16/05/2023;134;31;386;1;Spese correnti;3;Acquisto di beni e servizi;2;Acquisto di servizi;5;Utenze e canoni;6;Gas;18/05/2023
1667;1;9999999;966;966;DOLOMITI ENERGIA SPA;9127403B39;ACCONTO Fatt.n. 42302063005  del 28/04/2023 MARZO 2023 CONSUMI SC. ELEM - PALESTRA STIGLIANO;16/05/2023;134;31;386;1;Spese correnti;3;Acquisto di beni e servizi;2;Acquisto di servizi;5;Utenze e canoni;6;Gas;18/05/2023
1668;1;9999999;1.034,06;1.034,06;DOLOMITI ENERGIA SPA;9127403B39;ACCONTO Fatt.n. 42302063005  del 28/04/2023 MARZO 2023 CONSUMI SC. ELEM - PALESTRA STIGLIANO;16/05/2023;134;31;386;1;Spese correnti;3;Acquisto di beni e servizi;2;Acquisto di servizi;5;Utenze e canoni;6;Gas;18/05/2023
1669;1;9999999;817;817;DOLOMITI ENERGIA SPA;9127403B39;ACCONTO Fatt.n. 42302063011  del 28/04/2023 MARZO 2023 CONSUMI SC. ELEM - PALESTRA - ASILO S.ANGELO;16/05/2023;134;31;386;1;Spese correnti;3;Acquisto di beni e servizi;2;Acquisto di servizi;5;Utenze e canoni;6;Gas;18/05/2023
1670;1;9999999;2.866,79;2.866,79;DOLOMITI ENERGIA SPA;9127403B39;ACCONTO Fatt.n. 42302063011  del 28/04/2023 MARZO 2023 CONSUMI SC. ELEM - PALESTRA - ASILO S.ANGELO;16/05/2023;134;31;386;1;Spese correnti;3;Acquisto di beni e servizi;2;Acquisto di servizi;5;Utenze e canoni;6;Gas;18/05/2023
1671;1;9999999;83,67;83,67;DOLOMITI ENERGIA SPA;9127403B39;ACCONTO Fatt.n. 42302063011  del 28/04/2023 MARZO 2023 CONSUMI SC. ELEM - PALESTRA - ASILO S.ANGELO;16/05/2023;134;31;998;1;Spese correnti;3;Acquisto di beni e servizi;2;Acquisto di servizi;5;Utenze e canoni;6;Gas;18/05/2023
1672;1;9999999;616,97;616,97;DOLOMITI ENERGIA SPA;9127403B39;ACCONTO Fatt.n. 42302063006  del 28/04/2023 MARZO 2023 CONSUMI SC. ELEM. - PALESTRA VETERNIGO;16/05/2023;134;31;998;1;Spese correnti;3;Acquisto di beni e servizi;2;Acquisto di servizi;5;Utenze e canoni;6;Gas;18/05/2023
1673;1;9999999;1.446,53;1.446,53;DOLOMITI ENERGIA SPA;9127403B39;SALDO Fatt.n. 42302063008  del 28/04/2023 MARZO 2023 CONSUMI SC. ELEM. CALTANA;16/05/2023;1334;30;387;1;Spese correnti;3;Acquisto di beni e servizi;2;Acquisto di servizi;5;Utenze e canoni;6;Gas;18/05/2023
1674;1;9999999;4.000,00;4.000,00;DOLOMITI ENERGIA SPA;9127403B39;ACCONTO Fatt.n. 42302063007  del 28/04/2023 MARZO 2023 CONSUMI VILLA FARSETTI;16/05/2023;1834;0;388;1;Spese correnti;3;Acquisto di beni e servizi;2;Acquisto di servizi;5;Utenze e canoni;6;Gas;18/05/2023
1675;1;9999999;544,64;544,64;DOLOMITI ENERGIA SPA;9127403B39;SALDO Fatt.n. 42302063018  del 28/04/2023 MARZO 2023 CONSUMI IMP. SPORT. PARROCCHIA CASELLE;16/05/2023;1934;0;235;1;Spese correnti;3;Acquisto di beni e servizi;2;Acquisto di servizi;5;Utenze e canoni;6;Gas;18/05/2023
1676;1;9999999;509,38;509,38;DOLOMITI ENERGIA SPA;9127403B39;ACCONTO Fatt.n. 42302063015  del 28/04/2023 MARZO 2023 CONSUMI PALESTRA SMS;16/05/2023;1934;0;235;1;Spese correnti;3;Acquisto di beni e servizi;2;Acquisto di servizi;5;Utenze e canoni;6;Gas;18/05/2023
1677;1;9999999;625,78;625,78;DOLOMITI ENERGIA SPA;9127403B39;SALDO Fatt.n. 42302063015  del 28/04/2023 MARZO 2023 CONSUMI PALESTRA SMS;16/05/2023;1934;0;389;1;Spese correnti;3;Acquisto di beni e servizi;2;Acquisto di servizi;5;Utenze e canoni;6;Gas;18/05/2023
1678;1;9999999;1.234,77;1.234,77;DOLOMITI ENERGIA SPA;9127403B39;SALDO Fatt.n. 42302063017  del 28/04/2023 MARZO 2023 CONSUMI PALESTRA CALTANA;16/05/2023;1934;0;389;1;Spese correnti;3;Acquisto di beni e servizi;2;Acquisto di servizi;5;Utenze e canoni;6;Gas;18/05/2023
1679;1;9999999;805;805;DOLOMITI ENERGIA SPA;9127403B39;SALDO Fatt.n. 42302063009  del 28/04/2023 MARZO 2023 CONSUMI SC. ELEM - PALESTRA CASELLE;16/05/2023;1934;0;389;1;Spese correnti;3;Acquisto di beni e servizi;2;Acquisto di servizi;5;Utenze e canoni;6;Gas;18/05/2023
1680;1;9999999;1.450,00;1.450,00;DOLOMITI ENERGIA SPA;9127403B39;SALDO Fatt.n. 42302063005  del 28/04/2023 MARZO 2023 CONSUMI SC. ELEM - PALESTRA STIGLIANO;16/05/2023;1934;0;389;1;Spese correnti;3;Acquisto di beni e servizi;2;Acquisto di servizi;5;Utenze e canoni;6;Gas;18/05/2023
1681;1;9999999;817;817;DOLOMITI ENERGIA SPA;9127403B39;SALDO Fatt.n. 42302063011  del 28/04/2023 MARZO 2023 CONSUMI SC. ELEM - PALESTRA - ASILO S.ANGELO;16/05/2023;1934;0;389;1;Spese correnti;3;Acquisto di beni e servizi;2;Acquisto di servizi;5;Utenze e canoni;6;Gas;18/05/2023
1682;1;9999999;804,03;804,03;DOLOMITI ENERGIA SPA;9127403B39;ACCONTO Fatt.n. 42302063006  del 28/04/2023 MARZO 2023 CONSUMI SC. ELEM. - PALESTRA VETERNIGO;16/05/2023;1934;0;389;1;Spese correnti;3;Acquisto di beni e servizi;2;Acquisto di servizi;5;Utenze e canoni;6;Gas;18/05/2023
1683;1;9999999;423,72;423,72;DOLOMITI ENERGIA SPA;9127403B39;ACCONTO Fatt.n. 42302063006  del 28/04/2023 MARZO 2023 CONSUMI SC. ELEM. - PALESTRA VETERNIGO;16/05/2023;1934;0;1004;1;Spese correnti;3;Acquisto di beni e servizi;2;Acquisto di servizi;5;Utenze e canoni;6;Gas;18/05/2023
1684;1;9999999;458,09;458,09;DOLOMITI ENERGIA SPA;9127403B39;ACCONTO Fatt.n. 42302063016  del 28/04/2023 MARZO 2023 CONSUMI MAGAZZINO COMUNALE;16/05/2023;3534;0;236;1;Spese correnti;3;Acquisto di beni e servizi;2;Acquisto di servizi;5;Utenze e canoni;6;Gas;18/05/2023
1685;1;9999999;186,72;186,72;DOLOMITI ENERGIA SPA;9127403B39;SALDO Fatt.n. 42302063016  del 28/04/2023 MARZO 2023 CONSUMI MAGAZZINO COMUNALE;16/05/2023;3534;0;390;1;Spese correnti;3;Acquisto di beni e servizi;2;Acquisto di servizi;5;Utenze e canoni;6;Gas;18/05/2023
1686;1;9999999;1.024,05;1.024,05;DOLOMITI ENERGIA SPA;9127403B39;SALDO Fatt.n. 42302063014  del 28/04/2023 MARZO 2023 CONSUMI SC. ELEM - SC. MEDIA SMS;16/05/2023;3534;0;390;1;Spese correnti;3;Acquisto di beni e servizi;2;Acquisto di servizi;5;Utenze e canoni;6;Gas;18/05/2023
1687;1;9999999;89,23;89,23;DOLOMITI ENERGIA SPA;9127403B39;SALDO Fatt.n. 42302063013  del 28/04/2023 MARZO 2023 CONSUMI ALLOGGIO VIA DON GALLERANI;16/05/2023;3534;0;390;1;Spese correnti;3;Acquisto di beni e servizi;2;Acquisto di servizi;5;Utenze e canoni;6;Gas;18/05/2023
1688;1;9999999;2.051,47;2.051,47;DOLOMITI ENERGIA SPA;9127403B39;ACCONTO Fatt.n. 42302063006  del 28/04/2023 MARZO 2023 CONSUMI SC. ELEM. - PALESTRA VETERNIGO;16/05/2023;3534;0;1006;1;Spese correnti;3;Acquisto di beni e servizi;2;Acquisto di servizi;5;Utenze e canoni;6;Gas;18/05/2023
1689;1;9999999;2.000,00;2.000,00;DOLOMITI ENERGIA SPA;9127403B39;SALDO Fatt.n. 42302063007  del 28/04/2023 MARZO 2023 CONSUMI VILLA FARSETTI;16/05/2023;4234;0;391;1;Spese correnti;3;Acquisto di beni e servizi;2;Acquisto di servizi;5;Utenze e canoni;6;Gas;18/05/2023
1690;1;9999999;187,06;187,06;DOLOMITI ENERGIA SPA;9127403B39;SALDO Fatt.n. 42302063006  del 28/04/2023 MARZO 2023 CONSUMI SC. ELEM. - PALESTRA VETERNIGO;16/05/2023;4234;0;1007;1;Spese correnti;3;Acquisto di beni e servizi;2;Acquisto di servizi;5;Utenze e canoni;6;Gas;18/05/2023
1691;1;9999999;15.267,26;15.267,26;COMUNE DI S.MARIA DI SALA; ;AGGIO RISCOSSIONE CDS PERIODO LUGLIO -DICEMBRE 2022:;16/05/2023;1132;0;970;1;Spese correnti;3;Acquisto di beni e servizi;2;Acquisto di servizi;3;Aggi di riscossione;999;Altri aggi di riscossione n.a.c.;18/05/2023
1692;1;9999999;2.000,00;2.000,00;QUADIENT ITALY SRL;ZEB3965868;II TRANCHE 2023 FONDO SPESE PER UTILIZZO MACCHINA AFFRANCATRICE IN USO ALLUFFICIO PROTOCOLLO -;16/05/2023;145;0;41;1;Spese correnti;3;Acquisto di beni e servizi;2;Acquisto di servizi;16;Servizi amministrativi;999;Altre spese per servizi amministrativi;18/05/2023
1693;1;9999999;740,64;740,64;OMESSO NOMINATIVO NEL RISPETTO DELLA NORMATIVA SULLA PROTEZIONE DATI PERSONALI; ;ANNO 2022 CONTRIBUTO FONDO SOSTEGNO ALLE ABITAZIONI IN LOCAZIONE L.R.431/98;17/05/2023;4157;51;21;1;Spese correnti;4;Trasferimenti correnti;2;Trasferimenti correnti a Famiglie;2;Interventi assistenziali;999;Altri assegni e sussidi assistenziali;22/05/2023
1694;1;9999999;831,31;831,31;OMESSO NOMINATIVO NEL RISPETTO DELLA NORMATIVA SULLA PROTEZIONE DATI PERSONALI; ;ANNO 2022 CONTRIBUTO FONDO SOSTEGNO ALLE ABITAZIONI IN LOCAZIONE L.R.431/98;17/05/2023;4157;51;21;1;Spese correnti;4;Trasferimenti correnti;2;Trasferimenti correnti a Famiglie;2;Interventi assistenziali;999;Altri assegni e sussidi assistenziali;22/05/2023
1695;1;9999999;1.136,15;1.136,15;OMESSO NOMINATIVO NEL RISPETTO DELLA NORMATIVA SULLA PROTEZIONE DATI PERSONALI; ;ANNO 2022 CONTRIBUTO FONDO SOSTEGNO ALLE ABITAZIONI IN LOCAZIONE L.R.431/98;17/05/2023;4157;51;21;1;Spese correnti;4;Trasferimenti correnti;2;Trasferimenti correnti a Famiglie;2;Interventi assistenziali;999;Altri assegni e sussidi assistenziali;22/05/2023
1696;1;9999999;1.315,62;1.315,62;OMESSO NOMINATIVO NEL RISPETTO DELLA NORMATIVA SULLA PROTEZIONE DATI PERSONALI; ;ANNO 2022 CONTRIBUTO FONDO SOSTEGNO ALLE ABITAZIONI IN LOCAZIONE L.R.431/98;17/05/2023;4157;51;21;1;Spese correnti;4;Trasferimenti correnti;2;Trasferimenti correnti a Famiglie;2;Interventi assistenziali;999;Altri assegni e sussidi assistenziali;22/05/2023
1697;1;9999999;1.216,93;1.216,93;OMESSO NOMINATIVO NEL RISPETTO DELLA NORMATIVA SULLA PROTEZIONE DATI PERSONALI; ;ANNO 2022 CONTRIBUTO FONDO SOSTEGNO ALLE ABITAZIONI IN LOCAZIONE L.R.431/98;17/05/2023;4157;51;21;1;Spese correnti;4;Trasferimenti correnti;2;Trasferimenti correnti a Famiglie;2;Interventi assistenziali;999;Altri assegni e sussidi assistenziali;22/05/2023
1698;1;9999999;800;800;OMESSO NOMINATIVO NEL RISPETTO DELLA NORMATIVA SULLA PROTEZIONE DATI PERSONALI; ;ANNO 2022 CONTRIBUTO FONDO SOSTEGNO ALLE ABITAZIONI IN LOCAZIONE L.R.431/98;17/05/2023;4157;51;21;1;Spese correnti;4;Trasferimenti correnti;2;Trasferimenti correnti a Famiglie;2;Interventi assistenziali;999;Altri assegni e sussidi assistenziali;22/05/2023
1699;1;9999999;406,96;406,96;OMESSO NOMINATIVO NEL RISPETTO DELLA NORMATIVA SULLA PROTEZIONE DATI PERSONALI; ;ANNO 2022 CONTRIBUTO FONDO SOSTEGNO ALLE ABITAZIONI IN LOCAZIONE L.R.431/98;17/05/2023;4157;51;21;1;Spese correnti;4;Trasferimenti correnti;2;Trasferimenti correnti a Famiglie;2;Interventi assistenziali;999;Altri assegni e sussidi assistenziali;22/05/2023
1700;1;9999999;597,78;597,78;OMESSO NOMINATIVO NEL RISPETTO DELLA NORMATIVA SULLA PROTEZIONE DATI PERSONALI; ;ANNO 2022 CONTRIBUTO FONDO SOSTEGNO ALLE ABITAZIONI IN LOCAZIONE L.R.431/98;17/05/2023;4157;51;21;1;Spese correnti;4;Trasferimenti correnti;2;Trasferimenti correnti a Famiglie;2;Interventi assistenziali;999;Altri assegni e sussidi assistenziali;22/05/2023
1701;1;9999999;2.085,36;2.085,36;OMESSO NOMINATIVO NEL RISPETTO DELLA NORMATIVA SULLA PROTEZIONE DATI PERSONALI; ;ANNO 2022 CONTRIBUTO FONDO SOSTEGNO ALLE ABITAZIONI IN LOCAZIONE L.R.431/98;17/05/2023;4157;51;21;1;Spese correnti;4;Trasferimenti correnti;2;Trasferimenti correnti a Famiglie;2;Interventi assistenziali;999;Altri assegni e sussidi assistenziali;22/05/2023
1702;1;9999999;569,55;569,55;OMESSO NOMINATIVO NEL RISPETTO DELLA NORMATIVA SULLA PROTEZIONE DATI PERSONALI; ;ANNO 2022 CONTRIBUTO FONDO SOSTEGNO ALLE ABITAZIONI IN LOCAZIONE L.R.431/98;17/05/2023;4157;51;21;1;Spese correnti;4;Trasferimenti correnti;2;Trasferimenti correnti a Famiglie;2;Interventi assistenziali;999;Altri assegni e sussidi assistenziali;22/05/2023
1703;1;9999999;1.124,38;1.124,38;OMESSO NOMINATIVO NEL RISPETTO DELLA NORMATIVA SULLA PROTEZIONE DATI PERSONALI; ;ANNO 2022 CONTRIBUTO FONDO SOSTEGNO ALLE ABITAZIONI IN LOCAZIONE L.R.431/98;17/05/2023;4157;51;21;1;Spese correnti;4;Trasferimenti correnti;2;Trasferimenti correnti a Famiglie;2;Interventi assistenziali;999;Altri assegni e sussidi assistenziali;22/05/2023
1704;1;9999999;943,46;943,46;OMESSO NOMINATIVO NEL RISPETTO DELLA NORMATIVA SULLA PROTEZIONE DATI PERSONALI; ;ANNO 2022 CONTRIBUTO FONDO SOSTEGNO ALLE ABITAZIONI IN LOCAZIONE L.R.431/98;17/05/2023;4157;51;21;1;Spese correnti;4;Trasferimenti correnti;2;Trasferimenti correnti a Famiglie;2;Interventi assistenziali;999;Altri assegni e sussidi assistenziali;25/05/2023
1705;1;9999999;714,41;714,41;OMESSO NOMINATIVO NEL RISPETTO DELLA NORMATIVA SULLA PROTEZIONE DATI PERSONALI; ;ANNO 2022 CONTRIBUTO FONDO SOSTEGNO ALLE ABITAZIONI IN LOCAZIONE L.R.431/98;17/05/2023;4157;51;21;1;Spese correnti;4;Trasferimenti correnti;2;Trasferimenti correnti a Famiglie;2;Interventi assistenziali;999;Altri assegni e sussidi assistenziali;22/05/2023
1706;1;9999999;1.435,36;1.435,36;OMESSO NOMINATIVO NEL RISPETTO DELLA NORMATIVA SULLA PROTEZIONE DATI PERSONALI; ;ANNO 2022 CONTRIBUTO FONDO SOSTEGNO ALLE ABITAZIONI IN LOCAZIONE L.R.431/98;17/05/2023;4157;51;21;1;Spese correnti;4;Trasferimenti correnti;2;Trasferimenti correnti a Famiglie;2;Interventi assistenziali;999;Altri assegni e sussidi assistenziali;22/05/2023
1707;1;9999999;599,07;599,07;OMESSO NOMINATIVO NEL RISPETTO DELLA NORMATIVA SULLA PROTEZIONE DATI PERSONALI; ;ANNO 2022 CONTRIBUTO FONDO SOSTEGNO ALLE ABITAZIONI IN LOCAZIONE L.R.431/98;17/05/2023;4157;51;21;1;Spese correnti;4;Trasferimenti correnti;2;Trasferimenti correnti a Famiglie;2;Interventi assistenziali;999;Altri assegni e sussidi assistenziali;22/05/2023
1708;1;9999999;1.435,35;1.435,35;OMESSO NOMINATIVO NEL RISPETTO DELLA NORMATIVA SULLA PROTEZIONE DATI PERSONALI; ;ANNO 2022 CONTRIBUTO FONDO SOSTEGNO ALLE ABITAZIONI IN LOCAZIONE L.R.431/98;17/05/2023;4157;51;21;1;Spese correnti;4;Trasferimenti correnti;2;Trasferimenti correnti a Famiglie;2;Interventi assistenziali;999;Altri assegni e sussidi assistenziali;22/05/2023
1709;1;9999999;759,02;759,02;OMESSO NOMINATIVO NEL RISPETTO DELLA NORMATIVA SULLA PROTEZIONE DATI PERSONALI; ;ANNO 2022 CONTRIBUTO FONDO SOSTEGNO ALLE ABITAZIONI IN LOCAZIONE L.R.431/98;17/05/2023;4157;51;21;1;Spese correnti;4;Trasferimenti correnti;2;Trasferimenti correnti a Famiglie;2;Interventi assistenziali;999;Altri assegni e sussidi assistenziali;22/05/2023
1710;1;9999999;1.435,36;1.435,36;OMESSO NOMINATIVO NEL RISPETTO DELLA NORMATIVA SULLA PROTEZIONE DATI PERSONALI; ;ANNO 2022 CONTRIBUTO FONDO SOSTEGNO ALLE ABITAZIONI IN LOCAZIONE L.R.431/98;17/05/2023;4157;51;21;1;Spese correnti;4;Trasferimenti correnti;2;Trasferimenti correnti a Famiglie;2;Interventi assistenziali;999;Altri assegni e sussidi assistenziali;22/05/2023
1711;1;9999999;439,61;439,61;OMESSO NOMINATIVO NEL RISPETTO DELLA NORMATIVA SULLA PROTEZIONE DATI PERSONALI; ;ANNO 2022 CONTRIBUTO FONDO SOSTEGNO ALLE ABITAZIONI IN LOCAZIONE L.R.431/98;17/05/2023;4157;51;21;1;Spese correnti;4;Trasferimenti correnti;2;Trasferimenti correnti a Famiglie;2;Interventi assistenziali;999;Altri assegni e sussidi assistenziali;22/05/2023
1712;1;9999999;1.143,06;1.143,06;OMESSO NOMINATIVO NEL RISPETTO DELLA NORMATIVA SULLA PROTEZIONE DATI PERSONALI; ;ANNO 2022 CONTRIBUTO FONDO SOSTEGNO ALLE ABITAZIONI IN LOCAZIONE L.R.431/98;17/05/2023;4157;51;21;1;Spese correnti;4;Trasferimenti correnti;2;Trasferimenti correnti a Famiglie;2;Interventi assistenziali;999;Altri assegni e sussidi assistenziali;22/05/2023
1713;1;9999999;298,44;298,44;OMESSO NOMINATIVO NEL RISPETTO DELLA NORMATIVA SULLA PROTEZIONE DATI PERSONALI; ;ANNO 2022 CONTRIBUTO FONDO SOSTEGNO ALLE ABITAZIONI IN LOCAZIONE L.R.431/98;17/05/2023;4157;51;21;1;Spese correnti;4;Trasferimenti correnti;2;Trasferimenti correnti a Famiglie;2;Interventi assistenziali;999;Altri assegni e sussidi assistenziali;22/05/2023
1714;1;9999999;1.342,77;1.342,77;OMESSO NOMINATIVO NEL RISPETTO DELLA NORMATIVA SULLA PROTEZIONE DATI PERSONALI; ;ANNO 2022 CONTRIBUTO FONDO SOSTEGNO ALLE ABITAZIONI IN LOCAZIONE L.R.431/98;17/05/2023;4157;51;21;1;Spese correnti;4;Trasferimenti correnti;2;Trasferimenti correnti a Famiglie;2;Interventi assistenziali;999;Altri assegni e sussidi assistenziali;22/05/2023
1715;1;9999999;481,87;481,87;OMESSO NOMINATIVO NEL RISPETTO DELLA NORMATIVA SULLA PROTEZIONE DATI PERSONALI; ;ANNO 2022 CONTRIBUTO FONDO SOSTEGNO ALLE ABITAZIONI IN LOCAZIONE L.R.431/98;17/05/2023;4157;51;21;1;Spese correnti;4;Trasferimenti correnti;2;Trasferimenti correnti a Famiglie;2;Interventi assistenziali;999;Altri assegni e sussidi assistenziali;22/05/2023
1716;1;9999999;800;800;OMESSO NOMINATIVO NEL RISPETTO DELLA NORMATIVA SULLA PROTEZIONE DATI PERSONALI; ;ANNO 2022 CONTRIBUTO FONDO SOSTEGNO ALLE ABITAZIONI IN LOCAZIONE L.R.431/98;17/05/2023;4157;51;21;1;Spese correnti;4;Trasferimenti correnti;2;Trasferimenti correnti a Famiglie;2;Interventi assistenziali;999;Altri assegni e sussidi assistenziali;22/05/2023
1717;1;9999999;500;500;OMESSO NOMINATIVO NEL RISPETTO DELLA NORMATIVA SULLA PROTEZIONE DATI PERSONALI; ;ANNO 2022 CONTRIBUTO DI CUI AL FONDO PER IL SOSTEGNO ALLACCESSO ALLE ABITAZIONI IN LOCAZIONE (ART. 11 L. 431/1998);17/05/2023;4157;0;429;1;Spese correnti;4;Trasferimenti correnti;2;Trasferimenti correnti a Famiglie;2;Interventi assistenziali;999;Altri assegni e sussidi assistenziali;22/05/2023
1718;1;9999999;910,79;910,79;OMESSO NOMINATIVO NEL RISPETTO DELLA NORMATIVA SULLA PROTEZIONE DATI PERSONALI; ;ANNO 2022 CONTRIBUTO FONDO SOSTEGNO ALLE ABITAZIONI IN LOCAZIONE L.R.431/98;17/05/2023;4157;51;21;1;Spese correnti;4;Trasferimenti correnti;2;Trasferimenti correnti a Famiglie;2;Interventi assistenziali;999;Altri assegni e sussidi assistenziali;22/05/2023
1719;1;9999999;978,26;978,26;OMESSO NOMINATIVO NEL RISPETTO DELLA NORMATIVA SULLA PROTEZIONE DATI PERSONALI; ;ANNO 2022 CONTRIBUTO FONDO SOSTEGNO ALLE ABITAZIONI IN LOCAZIONE L.R.431/98;17/05/2023;4157;51;21;1;Spese correnti;4;Trasferimenti correnti;2;Trasferimenti correnti a Famiglie;2;Interventi assistenziali;999;Altri assegni e sussidi assistenziali;22/05/2023
1720;1;9999999;813,74;813,74;OMESSO NOMINATIVO NEL RISPETTO DELLA NORMATIVA SULLA PROTEZIONE DATI PERSONALI; ;ANNO 2022 CONTRIBUTO FONDO SOSTEGNO ALLE ABITAZIONI IN LOCAZIONE L.R.431/98;17/05/2023;4157;51;21;1;Spese correnti;4;Trasferimenti correnti;2;Trasferimenti correnti a Famiglie;2;Interventi assistenziali;999;Altri assegni e sussidi assistenziali;22/05/2023
1721;1;9999999;728,83;728,83;OMESSO NOMINATIVO NEL RISPETTO DELLA NORMATIVA SULLA PROTEZIONE DATI PERSONALI; ;ANNO 2022 CONTRIBUTO FONDO SOSTEGNO ALLE ABITAZIONI IN LOCAZIONE L.R.431/98;17/05/2023;4157;51;21;1;Spese correnti;4;Trasferimenti correnti;2;Trasferimenti correnti a Famiglie;2;Interventi assistenziali;999;Altri assegni e sussidi assistenziali;25/05/2023
1722;1;9999999;800;800;OMESSO NOMINATIVO NEL RISPETTO DELLA NORMATIVA SULLA PROTEZIONE DATI PERSONALI; ;ANNO 2022 CONTRIBUTO FONDO SOSTEGNO ALLE ABITAZIONI IN LOCAZIONE L.R.431/98;17/05/2023;4157;51;21;1;Spese correnti;4;Trasferimenti correnti;2;Trasferimenti correnti a Famiglie;2;Interventi assistenziali;999;Altri assegni e sussidi assistenziali;22/05/2023
1723;1;9999999;2.036,59;2.036,59;OMESSO NOMINATIVO NEL RISPETTO DELLA NORMATIVA SULLA PROTEZIONE DATI PERSONALI; ;ANNO 2022 CONTRIBUTO FONDO SOSTEGNO ALLE ABITAZIONI IN LOCAZIONE L.R.431/98;17/05/2023;4157;51;21;1;Spese correnti;4;Trasferimenti correnti;2;Trasferimenti correnti a Famiglie;2;Interventi assistenziali;999;Altri assegni e sussidi assistenziali;22/05/2023
1724;1;9999999;1.506,66;1.506,66;OMESSO NOMINATIVO NEL RISPETTO DELLA NORMATIVA SULLA PROTEZIONE DATI PERSONALI; ;ANNO 2022 CONTRIBUTO FONDO SOSTEGNO ALLE ABITAZIONI IN LOCAZIONE L.R.431/98;17/05/2023;4157;51;21;1;Spese correnti;4;Trasferimenti correnti;2;Trasferimenti correnti a Famiglie;2;Interventi assistenziali;999;Altri assegni e sussidi assistenziali;22/05/2023
1725;1;9999999;1.075,36;1.075,36;OMESSO NOMINATIVO NEL RISPETTO DELLA NORMATIVA SULLA PROTEZIONE DATI PERSONALI; ;ANNO 2022 CONTRIBUTO FONDO SOSTEGNO ALLE ABITAZIONI IN LOCAZIONE L.R.431/98;17/05/2023;4157;51;21;1;Spese correnti;4;Trasferimenti correnti;2;Trasferimenti correnti a Famiglie;2;Interventi assistenziali;999;Altri assegni e sussidi assistenziali;22/05/2023
1726;1;9999999;936,45;936,45;OMESSO NOMINATIVO NEL RISPETTO DELLA NORMATIVA SULLA PROTEZIONE DATI PERSONALI; ;ANNO 2022 CONTRIBUTO FONDO SOSTEGNO ALLE ABITAZIONI IN LOCAZIONE L.R.431/98;17/05/2023;4157;51;21;1;Spese correnti;4;Trasferimenti correnti;2;Trasferimenti correnti a Famiglie;2;Interventi assistenziali;999;Altri assegni e sussidi assistenziali;22/05/2023
1727;1;9999999;1.120,44;1.120,44;OMESSO NOMINATIVO NEL RISPETTO DELLA NORMATIVA SULLA PROTEZIONE DATI PERSONALI; ;ANNO 2022 CONTRIBUTO FONDO SOSTEGNO ALLE ABITAZIONI IN LOCAZIONE L.R.431/98;17/05/2023;4157;51;21;1;Spese correnti;4;Trasferimenti correnti;2;Trasferimenti correnti a Famiglie;2;Interventi assistenziali;999;Altri assegni e sussidi assistenziali;22/05/2023
1728;1;9999999;881,65;881,65;OMESSO NOMINATIVO NEL RISPETTO DELLA NORMATIVA SULLA PROTEZIONE DATI PERSONALI; ;ANNO 2022 CONTRIBUTO FONDO SOSTEGNO ALLE ABITAZIONI IN LOCAZIONE L.R.431/98;17/05/2023;4157;51;21;1;Spese correnti;4;Trasferimenti correnti;2;Trasferimenti correnti a Famiglie;2;Interventi assistenziali;999;Altri assegni e sussidi assistenziali;22/05/2023
1729;1;9999999;1.299,03;1.299,03;OMESSO NOMINATIVO NEL RISPETTO DELLA NORMATIVA SULLA PROTEZIONE DATI PERSONALI; ;ANNO 2022 CONTRIBUTO FONDO SOSTEGNO ALLE ABITAZIONI IN LOCAZIONE L.R.431/98;17/05/2023;4157;51;21;1;Spese correnti;4;Trasferimenti correnti;2;Trasferimenti correnti a Famiglie;2;Interventi assistenziali;999;Altri assegni e sussidi assistenziali;22/05/2023
1730;1;9999999;669,21;669,21;OMESSO NOMINATIVO NEL RISPETTO DELLA NORMATIVA SULLA PROTEZIONE DATI PERSONALI; ;ANNO 2022 CONTRIBUTO FONDO SOSTEGNO ALLE ABITAZIONI IN LOCAZIONE L.R.431/98;17/05/2023;4157;51;21;1;Spese correnti;4;Trasferimenti correnti;2;Trasferimenti correnti a Famiglie;2;Interventi assistenziali;999;Altri assegni e sussidi assistenziali;22/05/2023
1731;1;9999999;1.709,99;1.709,99;OMESSO NOMINATIVO NEL RISPETTO DELLA NORMATIVA SULLA PROTEZIONE DATI PERSONALI; ;ANNO 2022 CONTRIBUTO FONDO SOSTEGNO ALLE ABITAZIONI IN LOCAZIONE L.R.431/98;17/05/2023;4157;51;21;1;Spese correnti;4;Trasferimenti correnti;2;Trasferimenti correnti a Famiglie;2;Interventi assistenziali;999;Altri assegni e sussidi assistenziali;22/05/2023
1732;1;9999999;925,36;925,36;OMESSO NOMINATIVO NEL RISPETTO DELLA NORMATIVA SULLA PROTEZIONE DATI PERSONALI; ;ANNO 2022 CONTRIBUTO FONDO SOSTEGNO ALLE ABITAZIONI IN LOCAZIONE L.R.431/98;17/05/2023;4157;51;21;1;Spese correnti;4;Trasferimenti correnti;2;Trasferimenti correnti a Famiglie;2;Interventi assistenziali;999;Altri assegni e sussidi assistenziali;22/05/2023
1733;1;9999999;1.292,36;1.292,36;OMESSO NOMINATIVO NEL RISPETTO DELLA NORMATIVA SULLA PROTEZIONE DATI PERSONALI; ;ANNO 2022 CONTRIBUTO FONDO SOSTEGNO ALLE ABITAZIONI IN LOCAZIONE L.R.431/98;17/05/2023;4157;51;21;1;Spese correnti;4;Trasferimenti correnti;2;Trasferimenti correnti a Famiglie;2;Interventi assistenziali;999;Altri assegni e sussidi assistenziali;22/05/2023
1734;1;9999999;940,01;940,01;OMESSO NOMINATIVO NEL RISPETTO DELLA NORMATIVA SULLA PROTEZIONE DATI PERSONALI; ;ANNO 2022 CONTRIBUTO FONDO SOSTEGNO ALLE ABITAZIONI IN LOCAZIONE L.R.431/98;17/05/2023;4157;51;21;1;Spese correnti;4;Trasferimenti correnti;2;Trasferimenti correnti a Famiglie;2;Interventi assistenziali;999;Altri assegni e sussidi assistenziali;22/05/2023
1736;1;9999999;1.435,36;1.435,36;OMESSO NOMINATIVO NEL RISPETTO DELLA NORMATIVA SULLA PROTEZIONE DATI PERSONALI; ;ANNO 2022 CONTRIBUTO FONDO SOSTEGNO ALLE ABITAZIONI IN LOCAZIONE L.R.431/98;17/05/2023;4157;51;21;1;Spese correnti;4;Trasferimenti correnti;2;Trasferimenti correnti a Famiglie;2;Interventi assistenziali;999;Altri assegni e sussidi assistenziali;22/05/2023
1737;1;9999999;633,04;633,04;OMESSO NOMINATIVO NEL RISPETTO DELLA NORMATIVA SULLA PROTEZIONE DATI PERSONALI; ;ANNO 2022 CONTRIBUTO FONDO SOSTEGNO ALLE ABITAZIONI IN LOCAZIONE L.R.431/98;17/05/2023;4157;51;21;1;Spese correnti;4;Trasferimenti correnti;2;Trasferimenti correnti a Famiglie;2;Interventi assistenziali;999;Altri assegni e sussidi assistenziali;22/05/2023
1738;1;9999999;1.701,63;1.701,63;OMESSO NOMINATIVO NEL RISPETTO DELLA NORMATIVA SULLA PROTEZIONE DATI PERSONALI; ;ANNO 2022 CONTRIBUTO FONDO SOSTEGNO ALLE ABITAZIONI IN LOCAZIONE L.R.431/98;17/05/2023;4157;51;21;1;Spese correnti;4;Trasferimenti correnti;2;Trasferimenti correnti a Famiglie;2;Interventi assistenziali;999;Altri assegni e sussidi assistenziali;22/05/2023
1739;1;9999999;409,81;409,81;OMESSO NOMINATIVO NEL RISPETTO DELLA NORMATIVA SULLA PROTEZIONE DATI PERSONALI; ;ANNO 2022 CONTRIBUTO FONDO SOSTEGNO ALLE ABITAZIONI IN LOCAZIONE L.R.431/98;17/05/2023;4157;51;21;1;Spese correnti;4;Trasferimenti correnti;2;Trasferimenti correnti a Famiglie;2;Interventi assistenziali;999;Altri assegni e sussidi assistenziali;22/05/2023
1740;1;9999999;500;500;OMESSO NOMINATIVO NEL RISPETTO DELLA NORMATIVA SULLA PROTEZIONE DATI PERSONALI; ;ANNO 2022 CONTRIBUTO DI CUI AL FONDO PER IL SOSTEGNO ALLACCESSO ALLE ABITAZIONI IN LOCAZIONE (ART. 11 L. 431/1998);17/05/2023;4157;0;430;1;Spese correnti;4;Trasferimenti correnti;2;Trasferimenti correnti a Famiglie;2;Interventi assistenziali;999;Altri assegni e sussidi assistenziali;22/05/2023
1741;1;9999999;1.386,60;1.386,60;OMESSO NOMINATIVO NEL RISPETTO DELLA NORMATIVA SULLA PROTEZIONE DATI PERSONALI; ;ANNO 2022 CONTRIBUTO FONDO SOSTEGNO ALLE ABITAZIONI IN LOCAZIONE L.R.431/98;17/05/2023;4157;51;21;1;Spese correnti;4;Trasferimenti correnti;2;Trasferimenti correnti a Famiglie;2;Interventi assistenziali;999;Altri assegni e sussidi assistenziali;22/05/2023
1742;1;9999999;500;500;OMESSO NOMINATIVO NEL RISPETTO DELLA NORMATIVA SULLA PROTEZIONE DATI PERSONALI; ;ANNO 2022CONTRIBUTO DI CUI AL FONDO PER IL SOSTEGNO ALLACCESSO ALLE ABITAZIONI IN LOCAZIONE (ART. 11 L. 431/1998);17/05/2023;4157;0;431;1;Spese correnti;4;Trasferimenti correnti;2;Trasferimenti correnti a Famiglie;2;Interventi assistenziali;999;Altri assegni e sussidi assistenziali;22/05/2023
1743;1;9999999;500;500;OMESSO NOMINATIVO NEL RISPETTO DELLA NORMATIVA SULLA PROTEZIONE DATI PERSONALI; ;ANNO 2022 CONTRIBUTO DI CUI AL FONDO PER IL SOSTEGNO ALLACCESSO ALLE ABITAZIONI IN LOCAZIONE (ART. 11 L. 431/1998);17/05/2023;4157;0;432;1;Spese correnti;4;Trasferimenti correnti;2;Trasferimenti correnti a Famiglie;2;Interventi assistenziali;999;Altri assegni e sussidi assistenziali;06/06/2023
1744;1;9999999;500;500;OMESSO NOMINATIVO NEL RISPETTO DELLA NORMATIVA SULLA PROTEZIONE DATI PERSONALI; ;ANNO 2022 CONTRIBUTO DI CUI AL FONDO PER IL SOSTEGNO ALLACCESSO ALLE ABITAZIONI IN LOCAZIONE (ART. 11 L. 431/1998);17/05/2023;4157;0;433;1;Spese correnti;4;Trasferimenti correnti;2;Trasferimenti correnti a Famiglie;2;Interventi assistenziali;999;Altri assegni e sussidi assistenziali;22/05/2023
1745;1;9999999;958,55;958,55;OMESSO NOMINATIVO NEL RISPETTO DELLA NORMATIVA SULLA PROTEZIONE DATI PERSONALI; ;ANNO 2022 CONTRIBUTO FONDO SOSTEGNO ALLE ABITAZIONI IN LOCAZIONE L.R.431/98;17/05/2023;4157;51;21;1;Spese correnti;4;Trasferimenti correnti;2;Trasferimenti correnti a Famiglie;2;Interventi assistenziali;999;Altri assegni e sussidi assistenziali;22/05/2023
1746;1;9999999;1.103,43;1.103,43;OMESSO NOMINATIVO NEL RISPETTO DELLA NORMATIVA SULLA PROTEZIONE DATI PERSONALI; ;ANNO 2022 CONTRIBUTO FONDO SOSTEGNO ALLE ABITAZIONI IN LOCAZIONE L.R.431/98;17/05/2023;4157;51;21;1;Spese correnti;4;Trasferimenti correnti;2;Trasferimenti correnti a Famiglie;2;Interventi assistenziali;999;Altri assegni e sussidi assistenziali;22/05/2023
1747;1;9999999;800;800;OMESSO NOMINATIVO NEL RISPETTO DELLA NORMATIVA SULLA PROTEZIONE DATI PERSONALI; ;ANNO 2022 CONTRIBUTO FONDO SOSTEGNO ALLE ABITAZIONI IN LOCAZIONE L.R.431/98;17/05/2023;4157;51;21;1;Spese correnti;4;Trasferimenti correnti;2;Trasferimenti correnti a Famiglie;2;Interventi assistenziali;999;Altri assegni e sussidi assistenziali;22/05/2023
1748;1;9999999;603,1;603,1;OMESSO NOMINATIVO NEL RISPETTO DELLA NORMATIVA SULLA PROTEZIONE DATI PERSONALI; ;ANNO 2022 CONTRIBUTO FONDO SOSTEGNO ALLE ABITAZIONI IN LOCAZIONE L.R.431/98;17/05/2023;4157;51;21;1;Spese correnti;4;Trasferimenti correnti;2;Trasferimenti correnti a Famiglie;2;Interventi assistenziali;999;Altri assegni e sussidi assistenziali;22/05/2023
1749;1;9999999;1.435,36;1.435,36;OMESSO NOMINATIVO NEL RISPETTO DELLA NORMATIVA SULLA PROTEZIONE DATI PERSONALI; ;ANNO 2022 CONTRIBUTO FONDO SOSTEGNO ALLE ABITAZIONI IN LOCAZIONE L.R.431/98;17/05/2023;4157;51;21;1;Spese correnti;4;Trasferimenti correnti;2;Trasferimenti correnti a Famiglie;2;Interventi assistenziali;999;Altri assegni e sussidi assistenziali;22/05/2023
1750;1;9999999;1.161,38;1.161,38;OMESSO NOMINATIVO NEL RISPETTO DELLA NORMATIVA SULLA PROTEZIONE DATI PERSONALI; ;ANNO 2022 CONTRIBUTO FONDO SOSTEGNO ALLE ABITAZIONI IN LOCAZIONE L.R.431/98;17/05/2023;4157;51;21;1;Spese correnti;4;Trasferimenti correnti;2;Trasferimenti correnti a Famiglie;2;Interventi assistenziali;999;Altri assegni e sussidi assistenziali;22/05/2023
1751;1;9999999;365,17;365,17;OMESSO NOMINATIVO NEL RISPETTO DELLA NORMATIVA SULLA PROTEZIONE DATI PERSONALI; ;ANNO 2022 CONTRIBUTO FONDO SOSTEGNO ALLE ABITAZIONI IN LOCAZIONE L.R.431/98;17/05/2023;4157;51;854;1;Spese correnti;4;Trasferimenti correnti;2;Trasferimenti correnti a Famiglie;2;Interventi assistenziali;999;Altri assegni e sussidi assistenziali;22/05/2023
1752;1;9999999;1.593,56;1.593,56;OMESSO NOMINATIVO NEL RISPETTO DELLA NORMATIVA SULLA PROTEZIONE DATI PERSONALI; ;ANNO 2022 CONTRIBUTO FONDO SOSTEGNO ALLE ABITAZIONI IN LOCAZIONE L.R.431/98;17/05/2023;4157;51;854;1;Spese correnti;4;Trasferimenti correnti;2;Trasferimenti correnti a Famiglie;2;Interventi assistenziali;999;Altri assegni e sussidi assistenziali;22/05/2023
1753;1;9999999;741,53;741,53;OMESSO NOMINATIVO NEL RISPETTO DELLA NORMATIVA SULLA PROTEZIONE DATI PERSONALI; ;ANNO 2022 CONTRIBUTO FONDO SOSTEGNO ALLE ABITAZIONI IN LOCAZIONE L.R.431/98;17/05/2023;4157;51;854;1;Spese correnti;4;Trasferimenti correnti;2;Trasferimenti correnti a Famiglie;2;Interventi assistenziali;999;Altri assegni e sussidi assistenziali;22/05/2023
1754;1;9999999;161,48;161,48;OMESSO NOMINATIVO NEL RISPETTO DELLA NORMATIVA SULLA PROTEZIONE DATI PERSONALI; ;ANNO 2022 CONTRIBUTO FONDO SOSTEGNO ALLE ABITAZIONI IN LOCAZIONE L.R.431/98;17/05/2023;4157;51;854;1;Spese correnti;4;Trasferimenti correnti;2;Trasferimenti correnti a Famiglie;2;Interventi assistenziali;999;Altri assegni e sussidi assistenziali;22/05/2023
1755;1;9999999;572,14;572,14;OMESSO NOMINATIVO NEL RISPETTO DELLA NORMATIVA SULLA PROTEZIONE DATI PERSONALI; ;ANNO 2022 CONTRIBUTO FONDO SOSTEGNO ALLE ABITAZIONI IN LOCAZIONE L.R.431/98;17/05/2023;4157;51;854;1;Spese correnti;4;Trasferimenti correnti;2;Trasferimenti correnti a Famiglie;2;Interventi assistenziali;999;Altri assegni e sussidi assistenziali;22/05/2023
1756;1;9999999;1.052,53;1.052,53;OMESSO NOMINATIVO NEL RISPETTO DELLA NORMATIVA SULLA PROTEZIONE DATI PERSONALI; ;ANNO 2022 CONTRIBUTO FONDO SOSTEGNO ALLE ABITAZIONI IN LOCAZIONE L.R.431/98;17/05/2023;4157;51;854;1;Spese correnti;4;Trasferimenti correnti;2;Trasferimenti correnti a Famiglie;2;Interventi assistenziali;999;Altri assegni e sussidi assistenziali;22/05/2023
1757;1;9999999;1.089,88;1.089,88;OMESSO NOMINATIVO NEL RISPETTO DELLA NORMATIVA SULLA PROTEZIONE DATI PERSONALI; ;ANNO 2022 CONTRIBUTO FONDO SOSTEGNO ALLE ABITAZIONI IN LOCAZIONE L.R.431/98;17/05/2023;4157;51;854;1;Spese correnti;4;Trasferimenti correnti;2;Trasferimenti correnti a Famiglie;2;Interventi assistenziali;999;Altri assegni e sussidi assistenziali;22/05/2023
1758;1;9999999;1.353,62;1.353,62;OMESSO NOMINATIVO NEL RISPETTO DELLA NORMATIVA SULLA PROTEZIONE DATI PERSONALI; ;ANNO 2022 CONTRIBUTO FONDO SOSTEGNO ALLE ABITAZIONI IN LOCAZIONE L.R.431/98;17/05/2023;4157;51;854;1;Spese correnti;4;Trasferimenti correnti;2;Trasferimenti correnti a Famiglie;2;Interventi assistenziali;999;Altri assegni e sussidi assistenziali;22/05/2023
1759;1;9999999;1.161,63;1.161,63;OMESSO NOMINATIVO NEL RISPETTO DELLA NORMATIVA SULLA PROTEZIONE DATI PERSONALI; ;ANNO 2022 CONTRIBUTO FONDO SOSTEGNO ALLE ABITAZIONI IN LOCAZIONE L.R.431/98;17/05/2023;4157;51;21;1;Spese correnti;4;Trasferimenti correnti;2;Trasferimenti correnti a Famiglie;2;Interventi assistenziali;999;Altri assegni e sussidi assistenziali;22/05/2023
1760;1;9999999;3.000,00;3.000,00;PARROCCHIA DI S. MICHELE ARCANGELO S.ANGELO; ;ANNO 2023 L.R. 20.8.1987 N. 44  DISCIPLINA DEL FONDO PER LE OPERE DI URBANIZZAZIONE: PROGRAMMA DEGLI INTERVENTI PER LASSEGNAZIONE DI CONTRIBUTI PER LE OPERE DI CULTO -;18/05/2023;8705;0;422;2;Spese in conto capitale;3;Contributi agli investimenti;4;Contributi agli investimenti a Istituzioni Sociali Private;1;Contributi agli investimenti a Istituzioni Sociali Private;1;Contributi agli investimenti a Istituzioni Sociali Private;22/05/2023
1761;1;9999999;250;250;OMESSO NOMINATIVO NEL RISPETTO DELLA NORMATIVA SULLA PROTEZIONE DATI PERSONALI; ;APRILE 2023 - RATA RIA;18/05/2023;3957;54;124;1;Spese correnti;4;Trasferimenti correnti;2;Trasferimenti correnti a Famiglie;5;Altri trasferimenti a famiglie;999;Altri trasferimenti a famiglie n.a.c.;23/05/2023
1762;1;9999999;250;250;OMESSO NOMINATIVO NEL RISPETTO DELLA NORMATIVA SULLA PROTEZIONE DATI PERSONALI; ;APRILE 2023 - RATA  RIA;18/05/2023;3957;54;124;1;Spese correnti;4;Trasferimenti correnti;2;Trasferimenti correnti a Famiglie;5;Altri trasferimenti a famiglie;999;Altri trasferimenti a famiglie n.a.c.;22/05/2023
1763;1;9999999;250;250;OMESSO NOMINATIVO NEL RISPETTO DELLA NORMATIVA SULLA PROTEZIONE DATI PERSONALI; ;APRILE 2023 - PROGETTO RIA;18/05/2023;3957;54;124;1;Spese correnti;4;Trasferimenti correnti;2;Trasferimenti correnti a Famiglie;5;Altri trasferimenti a famiglie;999;Altri trasferimenti a famiglie n.a.c.;26/05/2023
1764;1;9999999;250;250;OMESSO NOMINATIVO NEL RISPETTO DELLA NORMATIVA SULLA PROTEZIONE DATI PERSONALI; ;APRILE 2023 - PROGETTO RIA;18/05/2023;3957;54;124;1;Spese correnti;4;Trasferimenti correnti;2;Trasferimenti correnti a Famiglie;5;Altri trasferimenti a famiglie;999;Altri trasferimenti a famiglie n.a.c.;30/05/2023
1765;1;9999999;250;250;OMESSO NOMINATIVO NEL RISPETTO DELLA NORMATIVA SULLA PROTEZIONE DATI PERSONALI; ;APRILE 2023 - PROGETTO RIA;18/05/2023;3957;54;124;1;Spese correnti;4;Trasferimenti correnti;2;Trasferimenti correnti a Famiglie;5;Altri trasferimenti a famiglie;999;Altri trasferimenti a famiglie n.a.c.;15/06/2023
1766;1;9999999;250;250;OMESSO NOMINATIVO NEL RISPETTO DELLA NORMATIVA SULLA PROTEZIONE DATI PERSONALI; ;APRILE 2023 - PROGETTO RIA;18/05/2023;3957;54;124;1;Spese correnti;4;Trasferimenti correnti;2;Trasferimenti correnti a Famiglie;5;Altri trasferimenti a famiglie;999;Altri trasferimenti a famiglie n.a.c.;22/05/2023
1767;1;9999999;250;250;OMESSO NOMINATIVO NEL RISPETTO DELLA NORMATIVA SULLA PROTEZIONE DATI PERSONALI; ;APRILE 2023 - PROGETTO RIA;18/05/2023;3957;54;124;1;Spese correnti;4;Trasferimenti correnti;2;Trasferimenti correnti a Famiglie;5;Altri trasferimenti a famiglie;999;Altri trasferimenti a famiglie n.a.c.;24/05/2023
1768;1;9999999;727,69;727,69;C.E.I.F. DI BESSEGA DANIELE;Z2A39B329B;SALDO Fatt.n. 1-4  del 29/04/2023 MATERIALE VARIO PER MANUTENZIONI;18/05/2023;522;0;81;1;Spese correnti;3;Acquisto di beni e servizi;1;Acquisto di beni;2;Altri beni di consumo;999;Altri beni e materiali di consumo n.a.c.;22/05/2023
1769;1;9999999;140,3;140,3;VEDETTA 2 MONDIALPOL SPA;ZD032B120B;SALDO Fatt.n. V9-1657  del 09/05/2023 APRILE 2023 SERVIZIO DI VIGILANZA MAGAZZINO - PROTEZIONE CIVILE V.LE FERRARIS - VILLA FARSETTI;18/05/2023;548;0;688;1;Spese correnti;3;Acquisto di beni e servizi;2;Acquisto di servizi;9;Manutenzione ordinaria e riparazioni;8;Manutenzione ordinaria e riparazioni di beni immobili;22/05/2023
1770;1;9999999;59,62;2.430,24;VODAFONE ITALIA SPA;Z6C2BED875;SALDO Fatt.n. AP07578103  del 04/05/2023 PERIODO 29 DICEMBRE 2022  27 APRILE 2023 TELEFONIA;18/05/2023;1334;0;24;1;Spese correnti;3;Acquisto di beni e servizi;2;Acquisto di servizi;5;Utenze e canoni;1;Telefonia fissa;22/05/2023
1770;2;9999999;269,25;2.430,24;VODAFONE ITALIA SPA;Z6C2BED875;SALDO Fatt.n. AP07577892  del 04/05/2023 PERIODO 29 DICEMBRE 2022  27 APRILE 2023 TELEFONIA;18/05/2023;1334;0;24;1;Spese correnti;3;Acquisto di beni e servizi;2;Acquisto di servizi;5;Utenze e canoni;1;Telefonia fissa;22/05/2023
1770;3;9999999;933,59;2.430,24;VODAFONE ITALIA SPA;Z6C2BED875;SALDO Fatt.n. AP07577470  del 04/05/2023 PERIODO 29 DICEMBRE 2022  27 APRILE 2023 TELEFONIA;18/05/2023;1334;0;24;1;Spese correnti;3;Acquisto di beni e servizi;2;Acquisto di servizi;5;Utenze e canoni;1;Telefonia fissa;22/05/2023
1770;4;9999999;1.167,78;2.430,24;VODAFONE ITALIA SPA;Z6C2BED875;SALDO Fatt.n. AP07577582  del 04/05/2023 PERIODO 29 DICEMBRE 2022  27 APRILE 2023 TELEFONIA;18/05/2023;1334;0;24;1;Spese correnti;3;Acquisto di beni e servizi;2;Acquisto di servizi;5;Utenze e canoni;1;Telefonia fissa;22/05/2023
1771;1;9999999;72,96;72,96;MEB SRL;ZC839D1F3A;SALDO Fatt.n. 022510  del 28/04/2023 METERIALE ELETTRICO PER MANUTENZIONI;18/05/2023;1338;0;97;1;Spese correnti;3;Acquisto di beni e servizi;2;Acquisto di servizi;9;Manutenzione ordinaria e riparazioni;4;Manutenzione ordinaria e riparazioni di impianti e macchinari;22/05/2023
1772;1;9999999;1.793,25;1.793,25;DISMA SAS DI ANGELO RIGO & C.;ZBB3AB6AC1;SALDO Fatt.n. 039/2023  del 29/04/2023 SERVIZIO DI SUPPORTO ALLE ATTIVITA DELLA BIBLIOTECA -  MESE DI APRILE 2023;18/05/2023;2049;0;383;1;Spese correnti;3;Acquisto di beni e servizi;2;Acquisto di servizi;99;Altri servizi;999;Altri servizi diversi n.a.c.;22/05/2023
1773;1;9999999;34,95;34,95;IDRONORD SRL;ZB839B31A9;SALDO Fatt.n. 964  del 30/04/2023 MATERIALE EDILE PER MANUTENZIONIuu;18/05/2023;3538;0;79;1;Spese correnti;3;Acquisto di beni e servizi;2;Acquisto di servizi;9;Manutenzione ordinaria e riparazioni;8;Manutenzione ordinaria e riparazioni di beni immobili;22/05/2023
1774;1;9999999;225,45;225,45;BUSITALIA VENETO SPA;ZB53A3D9B1;SALDO Fatt.n. 8101000225  del 30/04/2023  TRIM.23 - ABBONAMENTI INTEGRATI EXTRA - URB.PADOVA;18/05/2023;3844;0;272;1;Spese correnti;3;Acquisto di beni e servizi;2;Acquisto di servizi;15;Contratti di servizio pubblico;1;Contratti di servizio di trasporto pubblico;22/05/2023
1775;1;9999999;2.845,86;2.845,86;ARTEA  SNC DI LION & SALVIATO;90182921FD;SALDO Fatt.n. 10-2023/PA  del 26/04/2023 OPERAZIONI EFFETTUATE NEI CIMITERI DEL COMUNE DI SANTA MARIA DI SALA NEL MESE DI MARZO 2023;18/05/2023;4438;0;1152;1;Spese correnti;3;Acquisto di beni e servizi;2;Acquisto di servizi;9;Manutenzione ordinaria e riparazioni;8;Manutenzione ordinaria e riparazioni di beni immobili;22/05/2023
1776;1;9999999;10.566,78;10.566,78;DIVERSI-AMMINISTRATORI COM.LI; ;STIPENDI MESE DI MAGGIO 23;18/05/2023;30;99;0;1;Spese correnti;3;Acquisto di beni e servizi;2;Acquisto di servizi;1;Organi e incarichi istituzionali dell'amministrazione;1;Organi istituzionali dell'amministrazione - Indennità;25/05/2023
1858;1;9999999;32,33;32,33;C/C/P 15453301 SERVIZIO DI TESORERIA COM; ;SPESE GESTIONE CONTO CORRENTE  POSTALE 15453301 APRILE 2023;19/05/2023;146;0;52;1;Spese correnti;3;Acquisto di beni e servizi;2;Acquisto di servizi;17;Servizi finanziari;999;Spese per servizi finanziari n.a.c.;24/05/2023
1859;1;9999999;320;320;OMESSO NOMINATIVO NEL RISPETTO DELLA NORMATIVA SULLA PROTEZIONE DATI PERSONALI; ;QUARTA RATA DOPOSCUOLA MARZO 2023 MINORE m.k.;22/05/2023;3757;0;289;1;Spese correnti;4;Trasferimenti correnti;2;Trasferimenti correnti a Famiglie;5;Altri trasferimenti a famiglie;999;Altri trasferimenti a famiglie n.a.c.;24/05/2023
1860;1;9999999;100;100;OMESSO NOMINATIVO NEL RISPETTO DELLA NORMATIVA SULLA PROTEZIONE DATI PERSONALI; ;BORSE DI STUDIO A STUDENTI DELLA SCUOLA SUPERIORE DI I E II GRADO E CFP - ANNO SCOLASTICO 2021/2022.;23/05/2023;1355;0;426;1;Spese correnti;4;Trasferimenti correnti;2;Trasferimenti correnti a Famiglie;5;Altri trasferimenti a famiglie;999;Altri trasferimenti a famiglie n.a.c.;25/05/2023
1861;1;9999999;100;100;OMESSO NOMINATIVO NEL RISPETTO DELLA NORMATIVA SULLA PROTEZIONE DATI PERSONALI; ;BORSE DI STUDIO A STUDENTI DELLA SCUOLA SUPERIORE DI I E II GRADO E CFP - ANNO SCOLASTICO 2021/2022.;23/05/2023;1355;0;427;1;Spese correnti;4;Trasferimenti correnti;2;Trasferimenti correnti a Famiglie;5;Altri trasferimenti a famiglie;999;Altri trasferimenti a famiglie n.a.c.;25/05/2023
1862;1;9999999;100;100;OMESSO NOMINATIVO NEL RISPETTO DELLA NORMATIVA SULLA PROTEZIONE DATI PERSONALI; ;BORSE DI STUDIO A STUDENTI DELLA SCUOLA SUPERIORE DI I E II GRADO E CFP - ANNO SCOLASTICO 2021/2022.;23/05/2023;1355;0;428;1;Spese correnti;4;Trasferimenti correnti;2;Trasferimenti correnti a Famiglie;5;Altri trasferimenti a famiglie;999;Altri trasferimenti a famiglie n.a.c.;25/05/2023
1863;1;9999999;82,05;617,19;SONEPAR ITALIA  SPA;ZB939BAE73;SALDO Fatt.n. 0031115351  del 30/04/2023 MATERIALE ELETTRICO PER MANUTENZIONI;23/05/2023;1338;0;87;1;Spese correnti;3;Acquisto di beni e servizi;2;Acquisto di servizi;9;Manutenzione ordinaria e riparazioni;4;Manutenzione ordinaria e riparazioni di impianti e macchinari;25/05/2023
1863;2;9999999;86,38;617,19;SONEPAR ITALIA  SPA;ZB939BAE73;SALDO Fatt.n. 0031115350  del 30/04/2023 MATERIALE ELETTRICO PER MANUTENZIONI;23/05/2023;1338;0;87;1;Spese correnti;3;Acquisto di beni e servizi;2;Acquisto di servizi;9;Manutenzione ordinaria e riparazioni;4;Manutenzione ordinaria e riparazioni di impianti e macchinari;25/05/2023
1863;3;9999999;448,76;617,19;SONEPAR ITALIA  SPA;ZB939BAE73;SALDO Fatt.n. 0031115361  del 30/04/2023 MATERIALE ELETTRICO PER MANUTENZIONI;23/05/2023;1338;0;87;1;Spese correnti;3;Acquisto di beni e servizi;2;Acquisto di servizi;9;Manutenzione ordinaria e riparazioni;4;Manutenzione ordinaria e riparazioni di impianti e macchinari;25/05/2023
1864;1;9999999;2.371,00;2.371,00;ACME SRL;ZA23AD8041;SALDO Fatt.n. E00023  del 28/04/2023 FORNITURA DI MANGIME PER TRATTAMENTO VOLATILI IN VILLA FARSETTI;23/05/2023;2549;0;395;1;Spese correnti;3;Acquisto di beni e servizi;2;Acquisto di servizi;99;Altri servizi;9;Acquisto di sevizi per verde e arredo urbano;25/05/2023
1865;1;9999999;41,6;41,6;POSTE ITALIANE SPA;ZE23B17C86;SALDO Fatt.n. 1023128014  del 15/05/2023 ACQUISTO N. 6 CONFEZIONI DA 200 PZ. DI CARTOLINE AVVISO DI RICEVIMENTO RACCOMANDATE COD. MDV01304DV;25/05/2023;121;6;435;1;Spese correnti;3;Acquisto di beni e servizi;1;Acquisto di beni;2;Altri beni di consumo;14;Stampati specialistici;29/05/2023
1866;1;9999999;1.974,62;1.974,62;FASTWEB SPA;5133642F61;SALDO Fatt.n. PAE0014781  del 30/04/2023 CANONE CONNETIVITA CITTA METROPOLITANA PERIODO DAL 1 MARZO AL 30 APRILE 2023;25/05/2023;134;32;33;1;Spese correnti;3;Acquisto di beni e servizi;2;Acquisto di servizi;5;Utenze e canoni;999;Utenze e canoni per altri servizi n.a.c.;29/05/2023
1867;1;9999999;122;122;POSTE ITALIANE SPA;Z5E3B3141E;SALDO Fatt.n. 2023023165  del 15/05/2023 SERVIZIO DI SICURIZZAZIONE BPIOL KEY PERIODO ANNO 2022;25/05/2023;1145;0;441;1;Spese correnti;3;Acquisto di beni e servizi;2;Acquisto di servizi;16;Servizi amministrativi;999;Altre spese per servizi amministrativi;29/05/2023
